Workbook

Sheet Main
A2: On behalf of the B.C. Ministry of Environment, Associated Environmental Consultants Inc. prepared this workbook to provide a monthly water budget for Similkameen Valley Aquifer (259). Throuhgout the workbook, yellow cells indicate user-input parameters and data and blue cells indicate auto-populated terms.
A8: Revision Date | B8: 2016-06-01
A9: Revised By | B9: Associated
K10: Navigation
A11: Aquifer Name | B11: Similkameen Valley Aquifer
A12: Aquifer Number | B12: 259

Sheet Model Parameters
B1: =Main!$B$11 -> Similkameen Valley Aquifer
B2: =CONCATENATE("Aquifer #", Main!$B$12) -> Aquifer #259
B5: MODEL SCENARIO | C5: Units | D5: Select Scenario | F5: WATER BUDGET OUTPUTS | G5: Units
B7: Select 'Normal', 'Dry', 'Wet', or 'Other' Year | C7: - | D7: NORMAL | F7: Evaporation Direct from Similkameen River
F8: Annual Total Evaporation | G8: mm | H8: ='Lookup Tables'!AD16 -> 967.4
B9: SYSTEM CHARACTERISTICS | C9: Units
F10: Surface Water Outflow
B11: Aquifer Characteristics | F11: Mean Annual Similkameen River Outflow | G11: m3/s | H11: ='Lookup Tables'!AD24 -> 54.475
B12: Aquifer Length | C12: m | D12: 94300
B13: Aquifer Area | C13: m2 | D13: 120629426 | F13: Groundwater Outflow
B14: Specific Yield | C14: - | D14: 0.26 | F14: Outflow at Downstream Aquifer Boundary | G14: m3/day | H14: =IF('Lookup Tables'!D76=2, H15*H16*H17*H18, IF('Lookup Tables'!D76=1, 'Model Parameters'!H15*'Model Parameters'!H16*'Model Sensitivity'!M29*'Model Parameters'!H18)) -> 20000
F15: Aquifer Width | G15: m | H15: 1250
B16: Similkameen River Characteristics | F16: Aquifer Depth | G16: m | H16: 40
B17: Similkameen River Surface Area | C17: m2 | D17: 10260397 | F17: Hydraulic Conductivity (K) | G17: m/day | H17: 100
F18: Hydraulic Gradient (i) | G18: - | H18: 0.004
B19: WATER BUDGET INPUTS | C19: Units
F20: Water Demand
B21: Precipitation | F21: Select Water Demand Scenario | G21: - | H21: Estimated Actual Demand
B22: Annual Total Precipitation | C22: mm | D22: ='Lookup Tables'!O13 -> 347
F23: Estimated Existing Surface Water Demand
B24: Surface Water Inflow | F24: Mean Annual Surface Water Demand | G24: m3/s | H24: ='Lookup Tables'!AD34 -> 0.02941666667
B25: Mean Annual Similkameen River Inflow | C25: m3/s | D25: ='Lookup Tables'!O23 -> 42.20083333 | F25: Mean Seasonal Surface Water Demand | G25: m3/s | H25: ='Lookup Tables'!AD42 -> 0.2579166667
B26: Mean Annual Tributary Inflow | C26: m3/s | D26: ='Lookup Tables'!O31 -> 12.57883333
F27: Estimated Existing Groundwater Demand
B28: Aquifer Recharge | F28: Mean Annual Groundwater Demand | G28: m3/s | H28: ='Lookup Tables'!AD52 -> 0.06975
B29: Select Aquifer Recharge Option | C29: - | D29: Monthly Distribution | F29: Mean Seasonal Groundwater Demand | G29: m3/s | H29: ='Lookup Tables'!AD60 -> 0.3179166667
B30: Percentage of Precipitation Recharging Aquifer | C30: % | D30: 20
F31: Total Existing Licensed Surface Water Demand
B32: Water Demand | F32: Mean Annual Licensed Water Demand | G32: m3/s | H32: ='Lookup Tables'!AD63 -> 0.9055
B33: Select Irrigation Return Option | C33: - | D33: Fixed Percentage | F33: Mean Seasonal Licensed Water Demand | G33: m3/s | H33: ='Lookup Tables'!AD64 -> 1.114916667
B34: Irrigation Return to Aquifer | C34: % | D34: 15
F35: =CONCATENATE("Model Sensitivity Mode is ",IF('Lookup Tables'!D76=1,"ON",IF('Lookup Tables'!D76=2,"OFF. A summary of current parameters is provided below.")),". ", IF('Lookup Tables'!D76=1, " Parameters highlighted red may be adjusted on the Model Sensitivity Page. A summary of current adjustments is provided below. Turn off Model Sensitivity Mode to revert changes.", "")) -> Model Sensitivity Mode is OFF. A summary of current parameters is provided below..
B36: Groundwater Inflow
B37: Inflow at Upstream Aquifer Boundary | C37: m3/day | D37: =IF('Lookup Tables'!D76=2, D38*D39*D40*D41, IF('Lookup Tables'!D76=1, 'Model Parameters'!D38*D39*'Model Sensitivity'!M25*'Model Parameters'!D41)) -> 10235
B38: Aquifer Width | C38: m | D38: 1150
B39: Aquifer Depth | C39: m | D39: 20 | F39: Specific Yield | G39: =IF('Lookup Tables'!$D$76=2, 'Model Parameters'!$D$14, IF('Lookup Tables'!$D$76=1, 'Model Sensitivity'!$M$17)) -> 0.26
B40: Hydraulic Conductivity (K) | C40: m/day | D40: 89 | F40: Percentage of Precipitation Recharging to Aquifer | G40: =IF('Lookup Tables'!$D$76=2,'Model Parameters'!$D$30/100,IF('Lookup Tables'!$D$76=1,'Model Sensitivity'!$M$19/100)) -> 0.2
B41: Hydraulic Gradient (i) | C41: - | D41: 0.005 | F41: Irrigation Return to Aquifer | G41: =IF('Lookup Tables'!$D$76=2, 'Model Parameters'!$D$34/100, IF('Lookup Tables'!$D$76=1, 'Model Sensitivity'!$M$21/100)) -> 0.15
F42: Percentage change of Tributary Inflow Estimates | G42: =IF('Lookup Tables'!$D$76=2, 0, IF('Lookup Tables'!$D$76=1, 'Model Sensitivity'!M23/100)) -> 0
B43: Mountain Block Recharge | F43: Groundwater Inflow - Hydraulic Conductivity (K) | G43: =IF('Lookup Tables'!$D$76=2,'Model Parameters'!$D$40,IF('Lookup Tables'!$D$76=1,'Model Sensitivity'!$M$25)) -> 89
B44: Select MBR Method | C44: - | D44: Darcy Equation | F44: Percentage change of MBR Estimate | G44: =IF('Lookup Tables'!$D$76=2, 0, IF('Lookup Tables'!$D$76=1, 'Model Sensitivity'!$M$27/100)) -> 0
B45: Aquifer Length | C45: m | D45: =D12 -> 94300 | F45: Groundwater Outflow - Hydraulic Conductivity (K) | G45: =IF('Lookup Tables'!$D$76=2, 'Model Parameters'!$H$17, IF('Lookup Tables'!$D$76=1, 'Model Sensitivity'!$M$29)) -> 100
B46: Aquifer Depth | C46: m | D46: 60 | F46: Percentage change of Total Estimated Surface Water Demand | G46: =IF('Lookup Tables'!$D$76=2, 0, IF('Lookup Tables'!$D$76=1, 'Model Sensitivity'!$M$31/100)) -> 0
B47: =IF(D44="Neilson-Welch", "Neilson-Welch Flux Rate (30-50 mm/y)", "Hydraulic Conductivity (K)") -> Hydraulic Conductivity (K) | C47: =IF(B47="Hydraulic Conductivity (K)", "m/day", IF(B47="Neilson-Welch Flux Rate (30-50 mm/y)", "mm/year")) -> m/day | D47: 0.00864 | F47: Percentage change of Total Estimated Groundwater Demand | G47: =IF('Lookup Tables'!$D$76=2, 0, IF('Lookup Tables'!$D$76=1, 'Model Sensitivity'!$M$33/100)) -> 0
B48: =IF(D44="Neilson-Welch", "", "Hydraulic Gradient (i)") -> Hydraulic Gradient (i) | C48: =IF(D44="Neilson-Welch", "", "-") -> - | D48: 0.05 | F48: Percentage change of Total Licensed Water Demand | G48: =IF('Lookup Tables'!$D$76=2, 0, IF('Lookup Tables'!$D$76=1, 'Model Sensitivity'!$M$35/100)) -> 0
B49: MBR Estimate | C49: m3/day | D49: =IF(D44="Neilson-Welch",((D45*D46*2)*(D47/1000))/'Lookup Tables'!O3, IF(D44="Darcy Equation", ((D45*D46*2)*D47*D48), "Select MBR Method")) -> 4888.512

Sheet Input Data
B1: =Main!$B$11 -> Similkameen Valley Aquifer
B2: =CONCATENATE("Aquifer #", Main!$B$12) -> Aquifer #259
B5: WATER BUDGET INPUTS | R5: WATER BUDGET OUTPUTS
B7: PRECIPITATION DATA | C7: Units | D7: JAN | E7: FEB | F7: MAR | G7: APR | H7: MAY | I7: JUN | J7: JUL | K7: AUG | L7: SEP | M7: OCT | N7: NOV | O7: DEC | P7: ANNUAL TOTAL | R7: EVAPORATION DATA | S7: Units | T7: JAN | U7: FEB | V7: MAR | W7: APR | X7: MAY | Y7: JUN | Z7: JUL | AA7: AUG | AB7: SEP | AC7: OCT | AD7: NOV | AE7: DEC | AF7: ANNUAL TOTAL
B8: Normal Year | C8: mm | D8: 39.7 | E8: 20.5 | F8: 16.5 | G8: 18.4 | H8: 29.6 | I8: 37.6 | J8: 29.6 | K8: 24.3 | L8: 23.8 | M8: 26.1 | N8: 44.5 | O8: 36.4 | P8: =SUM(D8:O8) -> 347 | R8: Normal Year | S8: mm | T8: 18.3 | U8: 27.4 | V8: 57.6 | W8: 89 | X8: 127.7 | Y8: 143.8 | Z8: 165.4 | AA8: 147.6 | AB8: 98.1 | AC8: 52.9 | AD8: 23.7 | AE8: 15.9 | AF8: =SUM(T8:AE8) -> 967.4
B9: Dry Year | C9: mm | D9: 19.6 | E9: 21.3 | F9: 16.2 | G9: 11.9 | H9: 7.4 | I9: 21.3 | J9: 14.3 | K9: 2.2 | L9: 6.8 | M9: 15.9 | N9: 26.4 | O9: 26.3 | P9: =SUM(D9:O9) -> 189.6 | R9: Dry Year | S9: mm | T9: 18.4 | U9: 25.3 | V9: 57.9 | W9: 84.6 | X9: 135.2 | Y9: 134.8 | Z9: 161.7 | AA9: 155.3 | AB9: 104.7 | AC9: 49.3 | AD9: 27.2 | AE9: 16.8 | AF9: =SUM(T9:AE9) -> 971.2
B10: Wet Year | C10: mm | D10: 35.9 | E10: 23.3 | F10: 20.4 | G10: 40.2 | H10: 54.2 | I10: 62.2 | J10: 24 | K10: 42.6 | L10: 5.2 | M10: 19 | N10: 37.4 | O10: 30.4 | P10: 394.8 | R10: Wet Year | S10: mm | T10: 16.2 | U10: 28.9 | V10: 52.8 | W10: 87.3 | X10: 116.7 | Y10: 131 | Z10: 166.3 | AA10: 140.3 | AB10: 109 | AC10: 57.6 | AD10: 23.9 | AE10: 18 | AF10: 948
B11: Other | C11: mm | P11: 0 | R11: Other | S11: mm | AF11: 0
B13: SURFACE WATER INFLOW DATA | C13: Units | D13: JAN | E13: FEB | F13: MAR | G13: APR | H13: MAY | I13: JUN | J13: JUL | K13: AUG | L13: SEP | M13: OCT | N13: NOV | O13: DEC | P13: ANNUAL MEAN | R13: SURFACE WATER OUTFLOW DATA | S13: Units | T13: JAN | U13: FEB | V13: MAR | W13: APR | X13: MAY | Y13: JUN | Z13: JUL | AA13: AUG | AB13: SEP | AC13: OCT | AD13: NOV | AE13: DEC | AF13: ANNUAL MEAN
R14: Normal Year | S14: m3/s | T14: 19.1 | U14: 17.7 | V14: 22.9 | W14: 58.6 | X14: 183 | Y14: 186 | Z14: 67.7 | AA14: 21.6 | AB14: 13.4 | AC14: 16 | AD14: 27.6 | AE14: 20.1 | AF14: =AVERAGE(T14:AE14) -> 54.475
B15: SIMILKAMEEN RIVER INFLOW | R15: Dry Year | S15: m3/s | T15: 9.39 | U15: 8.22 | V15: 9.38 | W15: 21.3 | X15: 109 | Y15: 78.8 | Z15: 25.1 | AA15: 9.36 | AB15: 5.39 | AC15: 7.19 | AD15: 15.2 | AE15: 10.1 | AF15: =AVERAGE(T15:AE15) -> 25.7025
B16: Normal Year | C16: m3/s | D16: 15 | E16: 12.3 | F16: 18.4 | G16: 55.1 | H16: 155 | I16: 138 | J16: 42.6 | K16: 11.4 | L16: 7.61 | M16: 11.7 | N16: 24.7 | O16: 14.6 | P16: =AVERAGE(D16:O16) -> 42.20083333 | R16: Wet Year | S16: m3/s | T16: 30.3 | U16: 47.7 | V16: 40.2 | W16: 94.5 | X16: 319 | Y16: 342 | Z16: 194 | AA16: 47.9 | AB16: 20.1 | AC16: 12.8 | AD16: 19.2 | AE16: 15.5 | AF16: 98.6
B17: Dry Year | C17: m3/s | D17: 6.54 | E17: 5.07 | F17: 6.18 | G17: 21.7 | H17: 102 | I17: 54.4 | J17: 12.6 | K17: 4.74 | L17: 3.35 | M17: 5.21 | N17: 13 | O17: 7.71 | P17: =AVERAGE(D17:O17) -> 20.20833333 | R17: Other | S17: m3/s
B18: Wet Year | C18: m3/s | D18: 20.1 | E18: 39.4 | F18: 29.9 | G18: 82.7 | H18: 243 | I18: 260 | J18: 139 | K18: 30.4 | L18: 11.5 | M18: 6.6 | N18: 13.1 | O18: 11 | P18: 73.89166667
B19: Other | C19: m3/s | R19: EXISTING SURFACE WATER DEMAND DATA | S19: Units | T19: JAN | U19: FEB | V19: MAR | W19: APR | X19: MAY | Y19: JUN | Z19: JUL | AA19: AUG | AB19: SEP | AC19: OCT | AD19: NOV | AE19: DEC | AF19: ANNUAL MEAN
B21: TRIBUTARY INFLOW | R21: ANNUAL WATER DEMAND
B22: Normal Year | C22: m3/s | D22: 2.774 | E22: 2.519 | F22: 3.34 | G22: 11.8 | H22: 48.16 | I22: 44.99 | J22: 16.49 | K22: 5.865 | L22: 3.802 | M22: 3.567 | N22: 4.437 | O22: 3.202 | P22: =AVERAGE(D22:O22) -> 12.57883333 | R22: Normal Year | S22: m3/s | T22: 0.029 | U22: 0.029 | V22: 0.029 | W22: 0.029 | X22: 0.03 | Y22: 0.03 | Z22: 0.03 | AA22: 0.03 | AB22: 0.03 | AC22: 0.029 | AD22: 0.029 | AE22: 0.029 | AF22: =AVERAGE(T22:AE22) -> 0.02941666667
B23: Dry Year | C23: m3/s | D23: 1.8 | E23: 1.6 | F23: 1.83 | G23: 5.17 | H23: 26.53 | I23: 17.57 | J23: 7.14 | K23: 3.09 | L23: 1.58 | M23: 1.75 | N23: 2.78 | O23: 2.47 | P23: =AVERAGE(D23:O23) -> 6.109166667 | R23: Dry Year | S23: m3/s | T23: 0.029 | U23: 0.029 | V23: 0.029 | W23: 0.029 | X23: 0.03 | Y23: 0.03 | Z23: 0.03 | AA23: 0.03 | AB23: 0.03 | AC23: 0.029 | AD23: 0.029 | AE23: 0.029 | AF23: =AVERAGE(T23:AE23) -> 0.02941666667
B24: Wet Year | C24: m3/s | D24: 4.239 | E24: 5.879 | F24: 5.126 | G24: 16.47 | H24: 89.46 | I24: 99.4 | J24: 41.96 | K24: 11.43 | L24: 5.02 | M24: 2.989 | N24: 3.316 | O24: 2.734 | P24: 24.00191667 | R24: Wet Year | S24: m3/s | T24: 0.029 | U24: 0.029 | V24: 0.029 | W24: 0.029 | X24: 0.03 | Y24: 0.03 | Z24: 0.03 | AA24: 0.03 | AB24: 0.03 | AC24: 0.029 | AD24: 0.029 | AE24: 0.029 | AF24: 0.02941666667
B25: Other | C25: m3/s | R25: Other | S25: m3/s
B27: AQUIFER RECHARGE | D27: JAN | E27: FEB | F27: MAR | G27: APR | H27: MAY | I27: JUN | J27: JUL | K27: AUG | L27: SEP | M27: OCT | N27: NOV | O27: DEC | P27: ANNUAL TOTAL | R27: SEASONAL WATER DEMAND
B28: Normal Year | C28: % | D28: 4 | E28: 2 | F28: 20 | G28: 24 | H28: 18 | I28: 8 | J28: 4 | K28: 3 | L28: 4 | M28: 9 | N28: 1.5 | O28: 2.5 | P28: =SUM(D28:O28) -> 100 | R28: Normal Year | S28: m3/s | T28: 0 | U28: 0 | V28: 0 | W28: 0.018 | X28: 0.207 | Y28: 0.654 | Z28: 0.901 | AA28: 0.818 | AB28: 0.497 | AC28: 0 | AD28: 0 | AE28: 0 | AF28: 0.2579166667
B29: Dry Year | C29: % | D29: 4 | E29: 2 | F29: 20 | G29: 24 | H29: 18 | I29: 8 | J29: 4 | K29: 3 | L29: 4 | M29: 9 | N29: 1.5 | O29: 2.5 | P29: =SUM(D29:O29) -> 100 | R29: Dry Year | S29: m3/s | T29: 0 | U29: 0 | V29: 0 | W29: 0.009 | X29: 0.183 | Y29: 0.766 | Z29: 0.858 | AA29: 0.944 | AB29: 0.617 | AC29: 0 | AD29: 0 | AE29: 0 | AF29: 0.2814166667
B30: Wet Year | C30: % | D30: 4 | E30: 2 | F30: 20 | G30: 24 | H30: 18 | I30: 8 | J30: 4 | K30: 3 | L30: 4 | M30: 9 | N30: 1.5 | O30: 2.5 | P30: 100 | R30: Wet Year | S30: m3/s | T30: 0 | U30: 0 | V30: 0 | W30: 0.014 | X30: 0.103 | Y30: 0.509 | Z30: 0.904 | AA30: 0.673 | AB30: 0.618 | AC30: 0 | AD30: 0 | AE30: 0 | AF30: 0.2350833333
B31: Other | C31: % | P31: 0 | R31: Other | S31: m3/s
B33: IRRIGATION RETURN | D33: JAN | E33: FEB | F33: MAR | G33: APR | H33: MAY | I33: JUN | J33: JUL | K33: AUG | L33: SEP | M33: OCT | N33: NOV | O33: DEC | P33: ANNUAL TOTAL | R33: EXISTING GROUNDWATER DEMAND DATA | S33: Units | T33: JAN | U33: FEB | V33: MAR | W33: APR | X33: MAY | Y33: JUN | Z33: JUL | AA33: AUG | AB33: SEP | AC33: OCT | AD33: NOV | AE33: DEC | AF33: ANNUAL MEAN
B34: Normal Year | C34: % | D34: 0 | E34: 0 | F34: 0 | G34: 0 | H34: 0 | I34: 0 | J34: 0 | K34: 0 | L34: 0 | M34: 0 | N34: 0 | O34: 0 | P34: =SUM(D34:O34) -> 0
B35: Dry Year | C35: % | D35: 0 | E35: 0 | F35: 0 | G35: 0 | H35: 0 | I35: 0 | J35: 0 | K35: 0 | L35: 0 | M35: 0 | N35: 0 | O35: 0 | P35: =SUM(D35:O35) -> 0 | R35: ANNUAL WATER DEMAND
B36: Wet Year | C36: % | D36: 0 | E36: 0 | F36: 0 | G36: 0 | H36: 0 | I36: 0 | J36: 0 | K36: 0 | L36: 0 | M36: 0 | N36: 0 | O36: 0 | P36: 0 | R36: Normal Year | S36: m3/s | T36: 0.066 | U36: 0.055 | V36: 0.059 | W36: 0.067 | X36: 0.077 | Y36: 0.078 | Z36: 0.082 | AA36: 0.088 | AB36: 0.079 | AC36: 0.065 | AD36: 0.056 | AE36: 0.065 | AF36: =AVERAGE(T36:AE36) -> 0.06975
B37: Other | C37: % | P37: 0 | R37: Dry Year | S37: m3/s | T37: 0.064 | U37: 0.053 | V37: 0.057 | W37: 0.065 | X37: 0.074 | Y37: 0.075 | Z37: 0.079 | AA37: 0.084 | AB37: 0.076 | AC37: 0.063 | AD37: 0.055 | AE37: 0.063 | AF37: =AVERAGE(T37:AE37) -> 0.06733333333
R38: Wet Year | S38: m3/s | T38: 0.064 | U38: 0.053 | V38: 0.057 | W38: 0.065 | X38: 0.074 | Y38: 0.075 | Z38: 0.079 | AA38: 0.084 | AB38: 0.076 | AC38: 0.063 | AD38: 0.055 | AE38: 0.063 | AF38: 0.06733333333
B39: MODEL CALIBRATION - OBSERVATION WELL DATA | R39: Other | S39: m3/s
B41: OBSERVATION WELL DATA | C41: Units | D41: DEC1 | E41: JAN | F41: FEB | G41: MAR | H41: APR | I41: MAY | J41: JUN | K41: JUL | L41: AUG | M41: SEP | N41: OCT | O41: NOV | P41: DEC | R41: SEASONAL WATER DEMAND
R42: Normal Year | S42: m3/s | T42: 0 | U42: 0 | V42: 0 | W42: 0.078 | X42: 0.384 | Y42: 0.81 | Z42: 1.053 | AA42: 0.927 | AB42: 0.563 | AC42: 0 | AD42: 0 | AE42: 0 | AF42: =AVERAGE(T42:AE42) -> 0.3179166667
B43: Keremeos (Well # 75) | R43: Dry Year | S43: m3/s | T43: 0 | U43: 0 | V43: 0 | W43: 0.058 | X43: 0.372 | Y43: 0.895 | Z43: 0.994 | AA43: 1.087 | AB43: 0.695 | AC43: 0 | AD43: 0 | AE43: 0 | AF43: 0.34175
B44: Normal Year | C44: m bgl | D44: 2.688 | E44: 2.586 | F44: 2.702 | G44: 2.644 | H44: 2.467 | I44: 1.97 | J44: 2.055 | K44: 2.307 | L44: 2.735 | M44: 2.883 | N44: 2.868 | O44: 2.686 | P44: 2.688 | R44: Wet Year | S44: m3/s | T44: 0 | U44: 0 | V44: 0 | W44: 0.054 | X44: 0.234 | Y44: 0.618 | Z44: 1.037 | AA44: 0.767 | AB44: 0.631 | AC44: 0 | AD44: 0 | AE44: 0 | AF44: 0.2784166667
B45: Dry Year | C45: m bgl | D45: 2.875 | E45: 2.975 | F45: 3.025 | G45: 2.965 | H45: 2.795 | I45: 2.275 | J45: 2.505 | K45: 2.865 | L45: 3.195 | M45: 3.025 | N45: 3.055 | O45: 3.01 | P45: 3.005 | R45: Other | S45: m3/s
B46: Wet Year | C46: m bgl | D46: 2.015 | E46: 1.9425 | F46: 1.9475 | G46: 2.07 | H46: 2.1175 | I46: 1.22 | J46: 1.17 | K46: 1.4475 | L46: 2.26 | M46: 2.565 | N46: 2.615 | O46: 2.62 | P46: 2.635
B47: Other | C47: m bgl | R47: TOTAL LICENSED WATER DEMAND | S47: Units | T47: JAN | U47: FEB | V47: MAR | W47: APR | X47: MAY | Y47: JUN | Z47: JUL | AA47: AUG | AB47: SEP | AC47: OCT | AD47: NOV | AE47: DEC | AF47: ANNUAL MEAN
R48: Annual Demand | S48: m3/s | T48: 0.608 | U48: 0.572 | V48: 0.568 | W48: 0.726 | X48: 1.096 | Y48: 1.185 | Z48: 1.685 | AA48: 1.616 | AB48: 1.066 | AC48: 0.671 | AD48: 0.532 | AE48: 0.541 | AF48: =AVERAGE(T48:AE48) -> 0.9055
B49: Other | R49: Seasonal Demand | S49: m3/s | T49: 0 | U49: 0 | V49: 0 | W49: 0.082 | X49: 0.896 | Y49: 2.82 | Z49: 3.889 | AA49: 3.553 | AB49: 2.139 | AC49: 0 | AD49: 0 | AE49: 0 | AF49: =AVERAGE(T49:AE49) -> 1.114916667
B50: Normal Year | C50: m bgl
B51: Dry Year | C51: m bgl
B52: Wet Year | C52: m bgl
B53: Other | C53: m bgl
B55: Mean Groundwater Level
B56: Normal Year | C56: m | D56: =IF(D50="",D44,(AVERAGE(D50,D44))) -> 2.688 | E56: =IF(E50="",E44,(AVERAGE(E50,E44))) -> 2.586 | F56: 2.702 | G56: 2.644 | H56: 2.467 | I56: 1.97 | J56: 2.055 | K56: 2.307 | L56: 2.735 | M56: 2.883 | N56: 2.868 | O56: 2.686 | P56: 2.688
B57: Dry Year | C57: m | D57: =IF(D51="",D45,(AVERAGE(D51,D45))) -> 2.875 | E57: 2.975 | F57: 3.025 | G57: 2.965 | H57: 2.795 | I57: 2.275 | J57: 2.505 | K57: 2.865 | L57: 3.195 | M57: 3.025 | N57: 3.055 | O57: 3.01 | P57: 3.005
B58: Wet Year | C58: m | D58: =IF(D52="",D46,(AVERAGE(D52,D46))) -> 2.015 | E58: 1.9425 | F58: 1.9475 | G58: 2.07 | H58: 2.1175 | I58: 1.22 | J58: 1.17 | K58: 1.4475 | L58: 2.26 | M58: 2.565 | N58: 2.615 | O58: 2.62 | P58: 2.635
B59: Other | C59: m | D59: =IF(D53="",D47,(AVERAGE(D53,D47))) -> 0 | E59: 0 | F59: 0 | G59: 0 | H59: 0 | I59: 0 | J59: 0 | K59: 0 | L59: 0 | M59: 0 | N59: 0 | O59: 0 | P59: 0
B60: Notes:
B61: 1. Average groundwater level from the preceding December. For 'Normal' Year, this value is assumed to equal the average December groundwater level

Sheet Water Budget
B1: =Main!$B$11 -> Similkameen Valley Aquifer
B2: =CONCATENATE("Aquifer #", Main!$B$12) -> Aquifer #259
B5: WATER BUDGET
B7: INPUTS | C7: Units | D7: JAN | E7: FEB | F7: MAR | G7: APR | H7: MAY | I7: JUN | J7: JUL | K7: AUG | L7: SEP | M7: OCT | N7: NOV | O7: DEC | P7: ANNUAL TOTAL
B8: Direct Precipitation to Similkameen river | C8: m3 | D8: =('Lookup Tables'!C13/1000) * 'Model Parameters'!$D$17 -> 407337.7609 | E8: =('Lookup Tables'!D13/1000)*'Model Parameters'!$D$17 -> 210338.1385 | F8: =('Lookup Tables'!E13/1000)*'Model Parameters'!$D$17 -> 169296.5505 | G8: =('Lookup Tables'!F13/1000)*'Model Parameters'!$D$17 -> 188791.3048 | H8: =('Lookup Tables'!G13/1000)*'Model Parameters'!$D$17 -> 303707.7512 | I8: =('Lookup Tables'!H13/1000)*'Model Parameters'!$D$17 -> 385790.9272 | J8: =('Lookup Tables'!I13/1000)*'Model Parameters'!$D$17 -> 303707.7512 | K8: =('Lookup Tables'!J13/1000)*'Model Parameters'!$D$17 -> 249327.6471 | L8: =('Lookup Tables'!K13/1000)*'Model Parameters'!$D$17 -> 244197.4486 | M8: =('Lookup Tables'!L13/1000)*'Model Parameters'!$D$17 -> 267796.3617 | N8: =('Lookup Tables'!M13/1000)*'Model Parameters'!$D$17 -> 456587.6665 | O8: =('Lookup Tables'!N13/1000)*'Model Parameters'!$D$17 -> 373478.4508 | P8: =SUM(D8:O8) -> 3560357.759
B9: Similkameen River Inflow | C9: m3 | D9: =('Lookup Tables'!C23*(60*60*24)) * 'Lookup Tables'!C3 -> 40176000 | E9: =('Lookup Tables'!D23*(60*60*24)) * 'Lookup Tables'!D3 -> 29756160 | F9: =('Lookup Tables'!E23*(60*60*24)) * 'Lookup Tables'!E3 -> 49282560 | G9: =('Lookup Tables'!F23*(60*60*24)) * 'Lookup Tables'!F3 -> 142819200 | H9: =('Lookup Tables'!G23*(60*60*24)) * 'Lookup Tables'!G3 -> 415152000 | I9: =('Lookup Tables'!H23*(60*60*24)) * 'Lookup Tables'!H3 -> 357696000 | J9: =('Lookup Tables'!I23*(60*60*24)) * 'Lookup Tables'!I3 -> 114099840 | K9: =('Lookup Tables'!J23*(60*60*24)) * 'Lookup Tables'!J3 -> 30533760 | L9: =('Lookup Tables'!K23*(60*60*24)) * 'Lookup Tables'!K3 -> 19725120 | M9: =('Lookup Tables'!L23*(60*60*24)) * 'Lookup Tables'!L3 -> 31337280 | N9: =('Lookup Tables'!M23*(60*60*24)) * 'Lookup Tables'!M3 -> 64022400 | O9: =('Lookup Tables'!N23*(60*60*24)) * 'Lookup Tables'!N3 -> 39104640 | P9: =SUM(D9:O9) -> 1333704960
B10: Tributary Inflow | C10: m3 | D10: =IF('Lookup Tables'!$D$76=2, (('Lookup Tables'!C31*(60*60*24)) * 'Lookup Tables'!C3), IF('Lookup Tables'!$D$76=1, (('Lookup Tables'!C31*(60*60*24)) * 'Lookup Tables'!C3) + ((('Lookup Tables'!C31*(60*60*24)) * 'Lookup Tables'!C3) * ('Model Sensitivity'!$M$23/100)), "Error")) -> 7429881.6 | E10: =IF('Lookup Tables'!$D$76=2, ('Lookup Tables'!D31*60*60*24*'Lookup Tables'!D3), IF('Lookup Tables'!$D$76=1, ('Lookup Tables'!D31*60*60*24*'Lookup Tables'!D3) + (('Lookup Tables'!D31*60*60*24*'Lookup Tables'!D3) * ('Model Sensitivity'!$M$23/100)), "Error")) -> 6093964.8 | F10: =IF('Lookup Tables'!$D$76=2, ('Lookup Tables'!E31*60*60*24*'Lookup Tables'!E3), IF('Lookup Tables'!$D$76=1, ('Lookup Tables'!E31*60*60*24*'Lookup Tables'!E3) + (('Lookup Tables'!E31*60*60*24*'Lookup Tables'!E3) * ('Model Sensitivity'!$M$23/100)), "Error")) -> 8945856 | G10: =IF('Lookup Tables'!$D$76=2, ('Lookup Tables'!F31*60*60*24*'Lookup Tables'!F3), IF('Lookup Tables'!$D$76=1, ('Lookup Tables'!F31*60*60*24*'Lookup Tables'!F3) + (('Lookup Tables'!F31*60*60*24*'Lookup Tables'!F3) * ('Model Sensitivity'!$M$23/100)), "Error")) -> 30585600 | H10: =IF('Lookup Tables'!$D$76=2, ('Lookup Tables'!G31*60*60*24*'Lookup Tables'!G3), IF('Lookup Tables'!$D$76=1, ('Lookup Tables'!G31*60*60*24*'Lookup Tables'!G3) + (('Lookup Tables'!G31*60*60*24*'Lookup Tables'!G3) * ('Model Sensitivity'!$M$23/100)), "Error")) -> 128991744 | I10: =IF('Lookup Tables'!$D$76=2, ('Lookup Tables'!H31*60*60*24*'Lookup Tables'!H3), IF('Lookup Tables'!$D$76=1, ('Lookup Tables'!H31*60*60*24*'Lookup Tables'!H3) + (('Lookup Tables'!H31*60*60*24*'Lookup Tables'!H3) * ('Model Sensitivity'!$M$23/100)), "Error")) -> 116614080 | J10: =IF('Lookup Tables'!$D$76=2, ('Lookup Tables'!I31*60*60*24*'Lookup Tables'!I3), IF('Lookup Tables'!$D$76=1, ('Lookup Tables'!I31*60*60*24*'Lookup Tables'!I3) + (('Lookup Tables'!I31*60*60*24*'Lookup Tables'!I3) * ('Model Sensitivity'!$M$23/100)), "Error")) -> 44166816 | K10: =IF('Lookup Tables'!$D$76=2, ('Lookup Tables'!J31*60*60*24*'Lookup Tables'!J3), IF('Lookup Tables'!$D$76=1, ('Lookup Tables'!J31*60*60*24*'Lookup Tables'!J3) + (('Lookup Tables'!J31*60*60*24*'Lookup Tables'!J3) * ('Model Sensitivity'!$M$23/100)), "Error")) -> 15708816 | L10: =IF('Lookup Tables'!$D$76=2, ('Lookup Tables'!K31*60*60*24*'Lookup Tables'!K3), IF('Lookup Tables'!$D$76=1, ('Lookup Tables'!K31*60*60*24*'Lookup Tables'!K3) + (('Lookup Tables'!K31*60*60*24*'Lookup Tables'!K3) * ('Model Sensitivity'!$M$23/100)), "Error")) -> 9854784 | M10: =IF('Lookup Tables'!$D$76=2, ('Lookup Tables'!L31*60*60*24*'Lookup Tables'!L3), IF('Lookup Tables'!$D$76=1, ('Lookup Tables'!L31*60*60*24*'Lookup Tables'!L3) + (('Lookup Tables'!L31*60*60*24*'Lookup Tables'!L3) * ('Model Sensitivity'!$M$23/100)), "Error")) -> 9553852.8 | N10: =IF('Lookup Tables'!$D$76=2, ('Lookup Tables'!M31*60*60*24*'Lookup Tables'!M3), IF('Lookup Tables'!$D$76=1, ('Lookup Tables'!M31*60*60*24*'Lookup Tables'!M3) + (('Lookup Tables'!M31*60*60*24*'Lookup Tables'!M3) * ('Model Sensitivity'!$M$23/100)), "Error")) -> 11500704 | O10: =IF('Lookup Tables'!$D$76=2, ('Lookup Tables'!N31*60*60*24*'Lookup Tables'!N3), IF('Lookup Tables'!$D$76=1, ('Lookup Tables'!N31*60*60*24*'Lookup Tables'!N3) + (('Lookup Tables'!N31*60*60*24*'Lookup Tables'!N3) * ('Model Sensitivity'!$M$23/100)), "Error")) -> 8576236.8 | P10: =SUM(D10:O10) -> 398022336
B11: Direct Aquifer Recharge | C11: m3 | D11: =IF('Model Parameters'!$D$29="Fixed Percentage",IF('Lookup Tables'!$D$76=2,((('Lookup Tables'!$O$13/12)/1000)*('Model Parameters'!$D$13-'Model Parameters'!$D$17)*('Model Parameters'!$D$30/100)),IF('Lookup Tables'!$D$76=1,((('Lookup Tables'!$O$13/12)/1000)*('Model Parameters'!$D$13-'Model Parameters'!$D$17)*('Model Sensitivity'!$M$19/100)))),IF('Model Parameters'!$D$29="Monthly Distribution",IF('Lookup Tables'!$D$76=2,(('Lookup Tables'!$O$13/1000)*('Model Parameters'!$D$13-'Model Parameters'!$D$17)*('Model Parameters'!$D$30/100)*('Lookup Tables'!C39/100)),IF('Lookup Tables'!$D$76=1,(('Lookup Tables'!$O$13/1000)*('Model Parameters'!$D$13-'Model Parameters'!$D$17)*('Model Sensitivity'!$M$19/100)*('Lookup Tables'!C39/100)))))) -> 306384.4245 | E11: =IF('Model Parameters'!$D$29="Fixed Percentage",IF('Lookup Tables'!$D$76=2,((('Lookup Tables'!$O$13/12)/1000)*('Model Parameters'!$D$13-'Model Parameters'!$D$17)*('Model Parameters'!$D$30/100)),IF('Lookup Tables'!$D$76=1,((('Lookup Tables'!$O$13/12)/1000)*('Model Parameters'!$D$13-'Model Parameters'!$D$17)*('Model Sensitivity'!$M$19/100)))),IF('Model Parameters'!$D$29="Monthly Distribution",IF('Lookup Tables'!$D$76=2,(('Lookup Tables'!$O$13/1000)*('Model Parameters'!$D$13-'Model Parameters'!$D$17)*('Model Parameters'!$D$30/100)*('Lookup Tables'!D39/100)),IF('Lookup Tables'!$D$76=1,(('Lookup Tables'!$O$13/1000)*('Model Parameters'!$D$13-'Model Parameters'!$D$17)*('Model Sensitivity'!$M$19/100)*('Lookup Tables'!D39/100)))))) -> 153192.2123 | F11: =IF('Model Parameters'!$D$29="Fixed Percentage",IF('Lookup Tables'!$D$76=2,((('Lookup Tables'!$O$13/12)/1000)*('Model Parameters'!$D$13-'Model Parameters'!$D$17)*('Model Parameters'!$D$30/100)),IF('Lookup Tables'!$D$76=1,((('Lookup Tables'!$O$13/12)/1000)*('Model Parameters'!$D$13-'Model Parameters'!$D$17)*('Model Sensitivity'!$M$19/100)))),IF('Model Parameters'!$D$29="Monthly Distribution",IF('Lookup Tables'!$D$76=2,(('Lookup Tables'!$O$13/1000)*('Model Parameters'!$D$13-'Model Parameters'!$D$17)*('Model Parameters'!$D$30/100)*('Lookup Tables'!E39/100)),IF('Lookup Tables'!$D$76=1,(('Lookup Tables'!$O$13/1000)*('Model Parameters'!$D$13-'Model Parameters'!$D$17)*('Model Sensitivity'!$M$19/100)*('Lookup Tables'!E39/100)))))) -> 1531922.123 | G11: =IF('Model Parameters'!$D$29="Fixed Percentage",IF('Lookup Tables'!$D$76=2,((('Lookup Tables'!$O$13/12)/1000)*('Model Parameters'!$D$13-'Model Parameters'!$D$17)*('Model Parameters'!$D$30/100)),IF('Lookup Tables'!$D$76=1,((('Lookup Tables'!$O$13/12)/1000)*('Model Parameters'!$D$13-'Model Parameters'!$D$17)*('Model Sensitivity'!$M$19/100)))),IF('Model Parameters'!$D$29="Monthly Distribution",IF('Lookup Tables'!$D$76=2,(('Lookup Tables'!$O$13/1000)*('Model Parameters'!$D$13-'Model Parameters'!$D$17)*('Model Parameters'!$D$30/100)*('Lookup Tables'!F39/100)),IF('Lookup Tables'!$D$76=1,(('Lookup Tables'!$O$13/1000)*('Model Parameters'!$D$13-'Model Parameters'!$D$17)*('Model Sensitivity'!$M$19/100)*('Lookup Tables'!F39/100)))))) -> 1838306.547 | H11: =IF('Model Parameters'!$D$29="Fixed Percentage",IF('Lookup Tables'!$D$76=2,((('Lookup Tables'!$O$13/12)/1000)*('Model Parameters'!$D$13-'Model Parameters'!$D$17)*('Model Parameters'!$D$30/100)),IF('Lookup Tables'!$D$76=1,((('Lookup Tables'!$O$13/12)/1000)*('Model Parameters'!$D$13-'Model Parameters'!$D$17)*('Model Sensitivity'!$M$19/100)))),IF('Model Parameters'!$D$29="Monthly Distribution",IF('Lookup Tables'!$D$76=2,(('Lookup Tables'!$O$13/1000)*('Model Parameters'!$D$13-'Model Parameters'!$D$17)*('Model Parameters'!$D$30/100)*('Lookup Tables'!G39/100)),IF('Lookup Tables'!$D$76=1,(('Lookup Tables'!$O$13/1000)*('Model Parameters'!$D$13-'Model Parameters'!$D$17)*('Model Sensitivity'!$M$19/100)*('Lookup Tables'!G39/100)))))) -> 1378729.91 | I11: =IF('Model Parameters'!$D$29="Fixed Percentage",IF('Lookup Tables'!$D$76=2,((('Lookup Tables'!$O$13/12)/1000)*('Model Parameters'!$D$13-'Model Parameters'!$D$17)*('Model Parameters'!$D$30/100)),IF('Lookup Tables'!$D$76=1,((('Lookup Tables'!$O$13/12)/1000)*('Model Parameters'!$D$13-'Model Parameters'!$D$17)*('Model Sensitivity'!$M$19/100)))),IF('Model Parameters'!$D$29="Monthly Distribution",IF('Lookup Tables'!$D$76=2,(('Lookup Tables'!$O$13/1000)*('Model Parameters'!$D$13-'Model Parameters'!$D$17)*('Model Parameters'!$D$30/100)*('Lookup Tables'!H39/100)),IF('Lookup Tables'!$D$76=1,(('Lookup Tables'!$O$13/1000)*('Model Parameters'!$D$13-'Model Parameters'!$D$17)*('Model Sensitivity'!$M$19/100)*('Lookup Tables'!H39/100)))))) -> 612768.849 | J11: =IF('Model Parameters'!$D$29="Fixed Percentage",IF('Lookup Tables'!$D$76=2,((('Lookup Tables'!$O$13/12)/1000)*('Model Parameters'!$D$13-'Model Parameters'!$D$17)*('Model Parameters'!$D$30/100)),IF('Lookup Tables'!$D$76=1,((('Lookup Tables'!$O$13/12)/1000)*('Model Parameters'!$D$13-'Model Parameters'!$D$17)*('Model Sensitivity'!$M$19/100)))),IF('Model Parameters'!$D$29="Monthly Distribution",IF('Lookup Tables'!$D$76=2,(('Lookup Tables'!$O$13/1000)*('Model Parameters'!$D$13-'Model Parameters'!$D$17)*('Model Parameters'!$D$30/100)*('Lookup Tables'!I39/100)),IF('Lookup Tables'!$D$76=1,(('Lookup Tables'!$O$13/1000)*('Model Parameters'!$D$13-'Model Parameters'!$D$17)*('Model Sensitivity'!$M$19/100)*('Lookup Tables'!I39/100)))))) -> 306384.4245 | K11: =IF('Model Parameters'!$D$29="Fixed Percentage",IF('Lookup Tables'!$D$76=2,((('Lookup Tables'!$O$13/12)/1000)*('Model Parameters'!$D$13-'Model Parameters'!$D$17)*('Model Parameters'!$D$30/100)),IF('Lookup Tables'!$D$76=1,((('Lookup Tables'!$O$13/12)/1000)*('Model Parameters'!$D$13-'Model Parameters'!$D$17)*('Model Sensitivity'!$M$19/100)))),IF('Model Parameters'!$D$29="Monthly Distribution",IF('Lookup Tables'!$D$76=2,(('Lookup Tables'!$O$13/1000)*('Model Parameters'!$D$13-'Model Parameters'!$D$17)*('Model Parameters'!$D$30/100)*('Lookup Tables'!J39/100)),IF('Lookup Tables'!$D$76=1,(('Lookup Tables'!$O$13/1000)*('Model Parameters'!$D$13-'Model Parameters'!$D$17)*('Model Sensitivity'!$M$19/100)*('Lookup Tables'!J39/100)))))) -> 229788.3184 | L11: =IF('Model Parameters'!$D$29="Fixed Percentage",IF('Lookup Tables'!$D$76=2,((('Lookup Tables'!$O$13/12)/1000)*('Model Parameters'!$D$13-'Model Parameters'!$D$17)*('Model Parameters'!$D$30/100)),IF('Lookup Tables'!$D$76=1,((('Lookup Tables'!$O$13/12)/1000)*('Model Parameters'!$D$13-'Model Parameters'!$D$17)*('Model Sensitivity'!$M$19/100)))),IF('Model Parameters'!$D$29="Monthly Distribution",IF('Lookup Tables'!$D$76=2,(('Lookup Tables'!$O$13/1000)*('Model Parameters'!$D$13-'Model Parameters'!$D$17)*('Model Parameters'!$D$30/100)*('Lookup Tables'!K39/100)),IF('Lookup Tables'!$D$76=1,(('Lookup Tables'!$O$13/1000)*('Model Parameters'!$D$13-'Model Parameters'!$D$17)*('Model Sensitivity'!$M$19/100)*('Lookup Tables'!K39/100)))))) -> 306384.4245 | M11: =IF('Model Parameters'!$D$29="Fixed Percentage",IF('Lookup Tables'!$D$76=2,((('Lookup Tables'!$O$13/12)/1000)*('Model Parameters'!$D$13-'Model Parameters'!$D$17)*('Model Parameters'!$D$30/100)),IF('Lookup Tables'!$D$76=1,((('Lookup Tables'!$O$13/12)/1000)*('Model Parameters'!$D$13-'Model Parameters'!$D$17)*('Model Sensitivity'!$M$19/100)))),IF('Model Parameters'!$D$29="Monthly Distribution",IF('Lookup Tables'!$D$76=2,(('Lookup Tables'!$O$13/1000)*('Model Parameters'!$D$13-'Model Parameters'!$D$17)*('Model Parameters'!$D$30/100)*('Lookup Tables'!L39/100)),IF('Lookup Tables'!$D$76=1,(('Lookup Tables'!$O$13/1000)*('Model Parameters'!$D$13-'Model Parameters'!$D$17)*('Model Sensitivity'!$M$19/100)*('Lookup Tables'!L39/100)))))) -> 689364.9551 | N11: =IF('Model Parameters'!$D$29="Fixed Percentage",IF('Lookup Tables'!$D$76=2,((('Lookup Tables'!$O$13/12)/1000)*('Model Parameters'!$D$13-'Model Parameters'!$D$17)*('Model Parameters'!$D$30/100)),IF('Lookup Tables'!$D$76=1,((('Lookup Tables'!$O$13/12)/1000)*('Model Parameters'!$D$13-'Model Parameters'!$D$17)*('Model Sensitivity'!$M$19/100)))),IF('Model Parameters'!$D$29="Monthly Distribution",IF('Lookup Tables'!$D$76=2,(('Lookup Tables'!$O$13/1000)*('Model Parameters'!$D$13-'Model Parameters'!$D$17)*('Model Parameters'!$D$30/100)*('Lookup Tables'!M39/100)),IF('Lookup Tables'!$D$76=1,(('Lookup Tables'!$O$13/1000)*('Model Parameters'!$D$13-'Model Parameters'!$D$17)*('Model Sensitivity'!$M$19/100)*('Lookup Tables'!M39/100)))))) -> 114894.1592 | O11: =IF('Model Parameters'!$D$29="Fixed Percentage",IF('Lookup Tables'!$D$76=2,((('Lookup Tables'!$O$13/12)/1000)*('Model Parameters'!$D$13-'Model Parameters'!$D$17)*('Model Parameters'!$D$30/100)),IF('Lookup Tables'!$D$76=1,((('Lookup Tables'!$O$13/12)/1000)*('Model Parameters'!$D$13-'Model Parameters'!$D$17)*('Model Sensitivity'!$M$19/100)))),IF('Model Parameters'!$D$29="Monthly Distribution",IF('Lookup Tables'!$D$76=2,(('Lookup Tables'!$O$13/1000)*('Model Parameters'!$D$13-'Model Parameters'!$D$17)*('Model Parameters'!$D$30/100)*('Lookup Tables'!N39/100)),IF('Lookup Tables'!$D$76=1,(('Lookup Tables'!$O$13/1000)*('Model Parameters'!$D$13-'Model Parameters'!$D$17)*('Model Sensitivity'!$M$19/100)*('Lookup Tables'!N39/100)))))) -> 191490.2653 | P11: =SUM(D11:O11) -> 7659610.613
B12: Irrigation Return | C12: m3 | D12: =IF('Model Parameters'!$D$33="Fixed Percentage", IF('Lookup Tables'!$D$76=2, (SUM('Lookup Tables'!R42,'Lookup Tables'!R60)*(60*60*24*'Lookup Tables'!C3))*('Model Parameters'!$D$34/100), IF('Lookup Tables'!$D$76=1, (SUM('Lookup Tables'!R42,'Lookup Tables'!R60)*(60*60*24*'Lookup Tables'!C3)) * ('Model Sensitivity'!$M$21/100))), IF('Model Parameters'!$D$33="Monthly Distribution",(SUM('Lookup Tables'!R42,'Lookup Tables'!R60)*(60*60*24*'Lookup Tables'!C3)) * 'Lookup Tables'!C47/100)) -> 0 | E12: =IF('Model Parameters'!$D$33="Fixed Percentage", IF('Lookup Tables'!$D$76=2, (SUM('Lookup Tables'!S42,'Lookup Tables'!S60)*(60*60*24*'Lookup Tables'!D3))*('Model Parameters'!$D$34/100), IF('Lookup Tables'!$D$76=1, (SUM('Lookup Tables'!S42,'Lookup Tables'!S60)*(60*60*24*'Lookup Tables'!D3)) * ('Model Sensitivity'!$M$21/100))), IF('Model Parameters'!$D$33="Monthly Distribution",(SUM('Lookup Tables'!S42,'Lookup Tables'!S60)*(60*60*24*'Lookup Tables'!D3)) * 'Lookup Tables'!D47/100)) -> 0 | F12: =IF('Model Parameters'!$D$33="Fixed Percentage", IF('Lookup Tables'!$D$76=2, (SUM('Lookup Tables'!T42,'Lookup Tables'!T60)*(60*60*24*'Lookup Tables'!E3))*('Model Parameters'!$D$34/100), IF('Lookup Tables'!$D$76=1, (SUM('Lookup Tables'!T42,'Lookup Tables'!T60)*(60*60*24*'Lookup Tables'!E3)) * ('Model Sensitivity'!$M$21/100))), IF('Model Parameters'!$D$33="Monthly Distribution",(SUM('Lookup Tables'!T42,'Lookup Tables'!T60)*(60*60*24*'Lookup Tables'!E3)) * 'Lookup Tables'!E47/100)) -> 0 | G12: =IF('Model Parameters'!$D$33="Fixed Percentage", IF('Lookup Tables'!$D$76=2, (SUM('Lookup Tables'!U42,'Lookup Tables'!U60)*(60*60*24*'Lookup Tables'!F3))*('Model Parameters'!$D$34/100), IF('Lookup Tables'!$D$76=1, (SUM('Lookup Tables'!U42,'Lookup Tables'!U60)*(60*60*24*'Lookup Tables'!F3)) * ('Model Sensitivity'!$M$21/100))), IF('Model Parameters'!$D$33="Monthly Distribution",(SUM('Lookup Tables'!U42,'Lookup Tables'!U60)*(60*60*24*'Lookup Tables'!F3)) * 'Lookup Tables'!F47/100)) -> 37324.8 | H12: =IF('Model Parameters'!$D$33="Fixed Percentage", IF('Lookup Tables'!$D$76=2, (SUM('Lookup Tables'!V42,'Lookup Tables'!V60)*(60*60*24*'Lookup Tables'!G3))*('Model Parameters'!$D$34/100), IF('Lookup Tables'!$D$76=1, (SUM('Lookup Tables'!V42,'Lookup Tables'!V60)*(60*60*24*'Lookup Tables'!G3)) * ('Model Sensitivity'!$M$21/100))), IF('Model Parameters'!$D$33="Monthly Distribution",(SUM('Lookup Tables'!V42,'Lookup Tables'!V60)*(60*60*24*'Lookup Tables'!G3)) * 'Lookup Tables'!G47/100)) -> 237440.16 | I12: =IF('Model Parameters'!$D$33="Fixed Percentage", IF('Lookup Tables'!$D$76=2, (SUM('Lookup Tables'!W42,'Lookup Tables'!W60)*(60*60*24*'Lookup Tables'!H3))*('Model Parameters'!$D$34/100), IF('Lookup Tables'!$D$76=1, (SUM('Lookup Tables'!W42,'Lookup Tables'!W60)*(60*60*24*'Lookup Tables'!H3)) * ('Model Sensitivity'!$M$21/100))), IF('Model Parameters'!$D$33="Monthly Distribution",(SUM('Lookup Tables'!W42,'Lookup Tables'!W60)*(60*60*24*'Lookup Tables'!H3)) * 'Lookup Tables'!H47/100)) -> 569203.2 | J12: =IF('Model Parameters'!$D$33="Fixed Percentage", IF('Lookup Tables'!$D$76=2, (SUM('Lookup Tables'!X42,'Lookup Tables'!X60)*(60*60*24*'Lookup Tables'!I3))*('Model Parameters'!$D$34/100), IF('Lookup Tables'!$D$76=1, (SUM('Lookup Tables'!X42,'Lookup Tables'!X60)*(60*60*24*'Lookup Tables'!I3)) * ('Model Sensitivity'!$M$21/100))), IF('Model Parameters'!$D$33="Monthly Distribution",(SUM('Lookup Tables'!X42,'Lookup Tables'!X60)*(60*60*24*'Lookup Tables'!I3)) * 'Lookup Tables'!I47/100)) -> 785039.04 | K12: =IF('Model Parameters'!$D$33="Fixed Percentage", IF('Lookup Tables'!$D$76=2, (SUM('Lookup Tables'!Y42,'Lookup Tables'!Y60)*(60*60*24*'Lookup Tables'!J3))*('Model Parameters'!$D$34/100), IF('Lookup Tables'!$D$76=1, (SUM('Lookup Tables'!Y42,'Lookup Tables'!Y60)*(60*60*24*'Lookup Tables'!J3)) * ('Model Sensitivity'!$M$21/100))), IF('Model Parameters'!$D$33="Monthly Distribution",(SUM('Lookup Tables'!Y42,'Lookup Tables'!Y60)*(60*60*24*'Lookup Tables'!J3)) * 'Lookup Tables'!J47/100)) -> 701071.2 | L12: =IF('Model Parameters'!$D$33="Fixed Percentage", IF('Lookup Tables'!$D$76=2, (SUM('Lookup Tables'!Z42,'Lookup Tables'!Z60)*(60*60*24*'Lookup Tables'!K3))*('Model Parameters'!$D$34/100), IF('Lookup Tables'!$D$76=1, (SUM('Lookup Tables'!Z42,'Lookup Tables'!Z60)*(60*60*24*'Lookup Tables'!K3)) * ('Model Sensitivity'!$M$21/100))), IF('Model Parameters'!$D$33="Monthly Distribution",(SUM('Lookup Tables'!Z42,'Lookup Tables'!Z60)*(60*60*24*'Lookup Tables'!K3)) * 'Lookup Tables'!K47/100)) -> 412128 | M12: =IF('Model Parameters'!$D$33="Fixed Percentage", IF('Lookup Tables'!$D$76=2, (SUM('Lookup Tables'!AA42,'Lookup Tables'!AA60)*(60*60*24*'Lookup Tables'!L3))*('Model Parameters'!$D$34/100), IF('Lookup Tables'!$D$76=1, (SUM('Lookup Tables'!AA42,'Lookup Tables'!AA60)*(60*60*24*'Lookup Tables'!L3)) * ('Model Sensitivity'!$M$21/100))), IF('Model Parameters'!$D$33="Monthly Distribution",(SUM('Lookup Tables'!AA42,'Lookup Tables'!AA60)*(60*60*24*'Lookup Tables'!L3)) * 'Lookup Tables'!L47/100)) -> 0 | N12: =IF('Model Parameters'!$D$33="Fixed Percentage", IF('Lookup Tables'!$D$76=2, (SUM('Lookup Tables'!AB42,'Lookup Tables'!AB60)*(60*60*24*'Lookup Tables'!M3))*('Model Parameters'!$D$34/100), IF('Lookup Tables'!$D$76=1, (SUM('Lookup Tables'!AB42,'Lookup Tables'!AB60)*(60*60*24*'Lookup Tables'!M3)) * ('Model Sensitivity'!$M$21/100))), IF('Model Parameters'!$D$33="Monthly Distribution",(SUM('Lookup Tables'!AB42,'Lookup Tables'!AB60)*(60*60*24*'Lookup Tables'!M3)) * 'Lookup Tables'!M47/100)) -> 0 | O12: =IF('Model Parameters'!$D$33="Fixed Percentage", IF('Lookup Tables'!$D$76=2, (SUM('Lookup Tables'!AC42,'Lookup Tables'!AC60)*(60*60*24*'Lookup Tables'!N3))*('Model Parameters'!$D$34/100), IF('Lookup Tables'!$D$76=1, (SUM('Lookup Tables'!AC42,'Lookup Tables'!AC60)*(60*60*24*'Lookup Tables'!N3)) * ('Model Sensitivity'!$M$21/100))), IF('Model Parameters'!$D$33="Monthly Distribution",(SUM('Lookup Tables'!AC42,'Lookup Tables'!AC60)*(60*60*24*'Lookup Tables'!N3)) * 'Lookup Tables'!N47/100)) -> 0 | P12: =SUM(D12:O12) -> 2742206.4
B13: Groundwater Inflow at Upstream Aquifer Boundary | C13: m3 | D13: ='Model Parameters'!$D$37*'Lookup Tables'!C3 -> 317285 | E13: ='Model Parameters'!$D$37*'Lookup Tables'!D3 -> 286580 | F13: ='Model Parameters'!$D$37*'Lookup Tables'!E3 -> 317285 | G13: ='Model Parameters'!$D$37*'Lookup Tables'!F3 -> 307050 | H13: ='Model Parameters'!$D$37*'Lookup Tables'!G3 -> 317285 | I13: ='Model Parameters'!$D$37*'Lookup Tables'!H3 -> 307050 | J13: ='Model Parameters'!$D$37*'Lookup Tables'!I3 -> 317285 | K13: ='Model Parameters'!$D$37*'Lookup Tables'!J3 -> 317285 | L13: ='Model Parameters'!$D$37*'Lookup Tables'!K3 -> 307050 | M13: ='Model Parameters'!$D$37*'Lookup Tables'!L3 -> 317285 | N13: ='Model Parameters'!$D$37*'Lookup Tables'!M3 -> 307050 | O13: ='Model Parameters'!$D$37*'Lookup Tables'!N3 -> 317285 | P13: 3735775
B14: Mountain Block Recharge (Bedrock Aquifer) to Valley Aquifer | C14: m3 | D14: =IF('Lookup Tables'!$D$76=2,('Model Parameters'!$D$49*'Lookup Tables'!C3),IF('Lookup Tables'!$D$76=1,('Model Parameters'!$D$49*'Lookup Tables'!C3)+(('Model Parameters'!$D$49*'Lookup Tables'!C3)*('Model Sensitivity'!$M$27/100)))) -> 151543.872 | E14: =IF('Lookup Tables'!$D$76=2,('Model Parameters'!$D$49*'Lookup Tables'!D3),IF('Lookup Tables'!$D$76=1,('Model Parameters'!$D$49*'Lookup Tables'!D3)+(('Model Parameters'!$D$49*'Lookup Tables'!D3)*('Model Sensitivity'!$M$27/100)))) -> 136878.336 | F14: =IF('Lookup Tables'!$D$76=2,('Model Parameters'!$D$49*'Lookup Tables'!E3),IF('Lookup Tables'!$D$76=1,('Model Parameters'!$D$49*'Lookup Tables'!E3)+(('Model Parameters'!$D$49*'Lookup Tables'!E3)*('Model Sensitivity'!$M$27/100)))) -> 151543.872 | G14: =IF('Lookup Tables'!$D$76=2,('Model Parameters'!$D$49*'Lookup Tables'!F3),IF('Lookup Tables'!$D$76=1,('Model Parameters'!$D$49*'Lookup Tables'!F3)+(('Model Parameters'!$D$49*'Lookup Tables'!F3)*('Model Sensitivity'!$M$27/100)))) -> 146655.36 | H14: =IF('Lookup Tables'!$D$76=2,('Model Parameters'!$D$49*'Lookup Tables'!G3),IF('Lookup Tables'!$D$76=1,('Model Parameters'!$D$49*'Lookup Tables'!G3)+(('Model Parameters'!$D$49*'Lookup Tables'!G3)*('Model Sensitivity'!$M$27/100)))) -> 151543.872 | I14: =IF('Lookup Tables'!$D$76=2,('Model Parameters'!$D$49*'Lookup Tables'!H3),IF('Lookup Tables'!$D$76=1,('Model Parameters'!$D$49*'Lookup Tables'!H3)+(('Model Parameters'!$D$49*'Lookup Tables'!H3)*('Model Sensitivity'!$M$27/100)))) -> 146655.36 | J14: =IF('Lookup Tables'!$D$76=2,('Model Parameters'!$D$49*'Lookup Tables'!I3),IF('Lookup Tables'!$D$76=1,('Model Parameters'!$D$49*'Lookup Tables'!I3)+(('Model Parameters'!$D$49*'Lookup Tables'!I3)*('Model Sensitivity'!$M$27/100)))) -> 151543.872 | K14: =IF('Lookup Tables'!$D$76=2,('Model Parameters'!$D$49*'Lookup Tables'!J3),IF('Lookup Tables'!$D$76=1,('Model Parameters'!$D$49*'Lookup Tables'!J3)+(('Model Parameters'!$D$49*'Lookup Tables'!J3)*('Model Sensitivity'!$M$27/100)))) -> 151543.872 | L14: =IF('Lookup Tables'!$D$76=2,('Model Parameters'!$D$49*'Lookup Tables'!K3),IF('Lookup Tables'!$D$76=1,('Model Parameters'!$D$49*'Lookup Tables'!K3)+(('Model Parameters'!$D$49*'Lookup Tables'!K3)*('Model Sensitivity'!$M$27/100)))) -> 146655.36 | M14: =IF('Lookup Tables'!$D$76=2,('Model Parameters'!$D$49*'Lookup Tables'!L3),IF('Lookup Tables'!$D$76=1,('Model Parameters'!$D$49*'Lookup Tables'!L3)+(('Model Parameters'!$D$49*'Lookup Tables'!L3)*('Model Sensitivity'!$M$27/100)))) -> 151543.872 | N14: =IF('Lookup Tables'!$D$76=2,('Model Parameters'!$D$49*'Lookup Tables'!M3),IF('Lookup Tables'!$D$76=1,('Model Parameters'!$D$49*'Lookup Tables'!M3)+(('Model Parameters'!$D$49*'Lookup Tables'!M3)*('Model Sensitivity'!$M$27/100)))) -> 146655.36 | O14: =IF('Lookup Tables'!$D$76=2,('Model Parameters'!$D$49*'Lookup Tables'!N3),IF('Lookup Tables'!$D$76=1,('Model Parameters'!$D$49*'Lookup Tables'!N3)+(('Model Parameters'!$D$49*'Lookup Tables'!N3)*('Model Sensitivity'!$M$27/100)))) -> 151543.872 | P14: 1784306.88
B16: TOTAL | C16: m3 | D16: =SUM(D8:D14) -> 48788432.66 | E16: =SUM(E8:E14) -> 36637113.49 | F16: =SUM(F8:F14) -> 60398463.55 | G16: =SUM(G8:G14) -> 175922928 | H16: =SUM(H8:H14) -> 546532450.7 | I16: 476331548.3 | J16: 160130616.1 | K16: 47891592.04 | L16: 30996319.23 | M16: 42317122.99 | N16: 76548291.19 | O16: 48714674.39 | P16: =SUM(P8:P14) -> 1751209553
B18: OUTPUTS | C18: Units | D18: JAN | E18: FEB | F18: MAR | G18: APR | H18: MAY | I18: JUN | J18: JUL | K18: AUG | L18: SEP | M18: OCT | N18: NOV | O18: DEC | P18: ANNUAL TOTAL
B19: Direct Evaporation from Similkameen River | C19: m3 | D19: =('Lookup Tables'!R16/1000)*'Model Parameters'!$D$17 -> 187765.2651 | E19: =('Lookup Tables'!S16/1000)*'Model Parameters'!$D$17 -> 281134.8778 | F19: =('Lookup Tables'!T16/1000)*'Model Parameters'!$D$17 -> 590998.8672 | G19: =('Lookup Tables'!U16/1000)*'Model Parameters'!$D$17 -> 913175.333 | H19: =('Lookup Tables'!V16/1000)*'Model Parameters'!$D$17 -> 1310252.697 | I19: =('Lookup Tables'!W16/1000)*'Model Parameters'!$D$17 -> 1475445.089 | J19: =('Lookup Tables'!X16/1000)*'Model Parameters'!$D$17 -> 1697069.664 | K19: =('Lookup Tables'!Y16/1000)*'Model Parameters'!$D$17 -> 1514434.597 | L19: =('Lookup Tables'!Z16/1000)*'Model Parameters'!$D$17 -> 1006544.946 | M19: =('Lookup Tables'!AA16/1000)*'Model Parameters'!$D$17 -> 542775.0013 | N19: =('Lookup Tables'!AB16/1000)*'Model Parameters'!$D$17 -> 243171.4089 | O19: =('Lookup Tables'!AC16/1000)*'Model Parameters'!$D$17 -> 163140.3123 | P19: =SUM(D19:O19) -> 9925908.058
B20: Similkameen River Outflow | C20: m3 | D20: =('Lookup Tables'!R24*(60*60*24)) * 'Lookup Tables'!C3 -> 51157440 | E20: =('Lookup Tables'!S24*(60*60*24)) * 'Lookup Tables'!D3 -> 42819840 | F20: =('Lookup Tables'!T24*(60*60*24)) * 'Lookup Tables'!E3 -> 61335360 | G20: =('Lookup Tables'!U24*(60*60*24)) * 'Lookup Tables'!F3 -> 151891200 | H20: =('Lookup Tables'!V24*(60*60*24)) * 'Lookup Tables'!G3 -> 490147200 | I20: =('Lookup Tables'!W24*(60*60*24)) * 'Lookup Tables'!H3 -> 482112000 | J20: =('Lookup Tables'!X24*(60*60*24)) * 'Lookup Tables'!I3 -> 181327680 | K20: =('Lookup Tables'!Y24*(60*60*24)) * 'Lookup Tables'!J3 -> 57853440 | L20: =('Lookup Tables'!Z24*(60*60*24)) * 'Lookup Tables'!K3 -> 34732800 | M20: =('Lookup Tables'!AA24*(60*60*24)) * 'Lookup Tables'!L3 -> 42854400 | N20: =('Lookup Tables'!AB24*(60*60*24)) * 'Lookup Tables'!M3 -> 71539200 | O20: =('Lookup Tables'!AC24*(60*60*24)) * 'Lookup Tables'!N3 -> 53835840 | P20: =SUM(D20:O20) -> 1721606400
B21: Groundwater Outflow at Downstream Aquifer Boundary | C21: m3 | D21: ='Model Parameters'!$H$14*'Lookup Tables'!C3 -> 620000 | E21: ='Model Parameters'!$H$14*'Lookup Tables'!D3 -> 560000 | F21: ='Model Parameters'!$H$14*'Lookup Tables'!E3 -> 620000 | G21: ='Model Parameters'!$H$14*'Lookup Tables'!F3 -> 600000 | H21: ='Model Parameters'!$H$14*'Lookup Tables'!G3 -> 620000 | I21: ='Model Parameters'!$H$14*'Lookup Tables'!H3 -> 600000 | J21: ='Model Parameters'!$H$14*'Lookup Tables'!I3 -> 620000 | K21: ='Model Parameters'!$H$14*'Lookup Tables'!J3 -> 620000 | L21: ='Model Parameters'!$H$14*'Lookup Tables'!K3 -> 600000 | M21: ='Model Parameters'!$H$14*'Lookup Tables'!L3 -> 620000 | N21: ='Model Parameters'!$H$14*'Lookup Tables'!M3 -> 600000 | O21: ='Model Parameters'!$H$14*'Lookup Tables'!N3 -> 620000 | P21: =SUM(D21:O21) -> 7300000
B22: Existing Annual Surface Water Demand From Similkameen River | C22: m3 | D22: =IF('Model Parameters'!$H$21="Estimated Actual Demand", IF('Lookup Tables'!$D$76=2, ('Lookup Tables'!R34*60*60*24*'Lookup Tables'!C3), IF('Lookup Tables'!$D$76=1, ('Lookup Tables'!R34*60*60*24*'Lookup Tables'!C3) + (('Lookup Tables'!R34*60*60*24*'Lookup Tables'!C3) * ('Model Sensitivity'!$M$31/100)))), 0) -> 77673.6 | E22: =IF('Model Parameters'!$H$21="Estimated Actual Demand", IF('Lookup Tables'!$D$76=2, ('Lookup Tables'!S34*60*60*24*'Lookup Tables'!D3), IF('Lookup Tables'!$D$76=1, ('Lookup Tables'!S34*60*60*24*'Lookup Tables'!D3) + (('Lookup Tables'!S34*60*60*24*'Lookup Tables'!D3) * ('Model Sensitivity'!$M$31/100)))), 0) -> 70156.8 | F22: =IF('Model Parameters'!$H$21="Estimated Actual Demand", IF('Lookup Tables'!$D$76=2, ('Lookup Tables'!T34*60*60*24*'Lookup Tables'!E3), IF('Lookup Tables'!$D$76=1, ('Lookup Tables'!T34*60*60*24*'Lookup Tables'!E3) + (('Lookup Tables'!T34*60*60*24*'Lookup Tables'!E3) * ('Model Sensitivity'!$M$31/100)))), 0) -> 77673.6 | G22: =IF('Model Parameters'!$H$21="Estimated Actual Demand", IF('Lookup Tables'!$D$76=2, ('Lookup Tables'!U34*60*60*24*'Lookup Tables'!F3), IF('Lookup Tables'!$D$76=1, ('Lookup Tables'!U34*60*60*24*'Lookup Tables'!F3) + (('Lookup Tables'!U34*60*60*24*'Lookup Tables'!F3) * ('Model Sensitivity'!$M$31/100)))), 0) -> 75168 | H22: =IF('Model Parameters'!$H$21="Estimated Actual Demand", IF('Lookup Tables'!$D$76=2, ('Lookup Tables'!V34*60*60*24*'Lookup Tables'!G3), IF('Lookup Tables'!$D$76=1, ('Lookup Tables'!V34*60*60*24*'Lookup Tables'!G3) + (('Lookup Tables'!V34*60*60*24*'Lookup Tables'!G3) * ('Model Sensitivity'!$M$31/100)))), 0) -> 80352 | I22: =IF('Model Parameters'!$H$21="Estimated Actual Demand", IF('Lookup Tables'!$D$76=2, ('Lookup Tables'!W34*60*60*24*'Lookup Tables'!H3), IF('Lookup Tables'!$D$76=1, ('Lookup Tables'!W34*60*60*24*'Lookup Tables'!H3) + (('Lookup Tables'!W34*60*60*24*'Lookup Tables'!H3) * ('Model Sensitivity'!$M$31/100)))), 0) -> 77760 | J22: =IF('Model Parameters'!$H$21="Estimated Actual Demand", IF('Lookup Tables'!$D$76=2, ('Lookup Tables'!X34*60*60*24*'Lookup Tables'!I3), IF('Lookup Tables'!$D$76=1, ('Lookup Tables'!X34*60*60*24*'Lookup Tables'!I3) + (('Lookup Tables'!X34*60*60*24*'Lookup Tables'!I3) * ('Model Sensitivity'!$M$31/100)))), 0) -> 80352 | K22: =IF('Model Parameters'!$H$21="Estimated Actual Demand", IF('Lookup Tables'!$D$76=2, ('Lookup Tables'!Y34*60*60*24*'Lookup Tables'!J3), IF('Lookup Tables'!$D$76=1, ('Lookup Tables'!Y34*60*60*24*'Lookup Tables'!J3) + (('Lookup Tables'!Y34*60*60*24*'Lookup Tables'!J3) * ('Model Sensitivity'!$M$31/100)))), 0) -> 80352 | L22: =IF('Model Parameters'!$H$21="Estimated Actual Demand", IF('Lookup Tables'!$D$76=2, ('Lookup Tables'!Z34*60*60*24*'Lookup Tables'!K3), IF('Lookup Tables'!$D$76=1, ('Lookup Tables'!Z34*60*60*24*'Lookup Tables'!K3) + (('Lookup Tables'!Z34*60*60*24*'Lookup Tables'!K3) * ('Model Sensitivity'!$M$31/100)))), 0) -> 77760 | M22: =IF('Model Parameters'!$H$21="Estimated Actual Demand", IF('Lookup Tables'!$D$76=2, ('Lookup Tables'!AA34*60*60*24*'Lookup Tables'!L3), IF('Lookup Tables'!$D$76=1, ('Lookup Tables'!AA34*60*60*24*'Lookup Tables'!L3) + (('Lookup Tables'!AA34*60*60*24*'Lookup Tables'!L3) * ('Model Sensitivity'!$M$31/100)))), 0) -> 77673.6 | N22: =IF('Model Parameters'!$H$21="Estimated Actual Demand", IF('Lookup Tables'!$D$76=2, ('Lookup Tables'!AB34*60*60*24*'Lookup Tables'!M3), IF('Lookup Tables'!$D$76=1, ('Lookup Tables'!AB34*60*60*24*'Lookup Tables'!M3) + (('Lookup Tables'!AB34*60*60*24*'Lookup Tables'!M3) * ('Model Sensitivity'!$M$31/100)))), 0) -> 75168 | O22: =IF('Model Parameters'!$H$21="Estimated Actual Demand", IF('Lookup Tables'!$D$76=2, ('Lookup Tables'!AC34*60*60*24*'Lookup Tables'!N3), IF('Lookup Tables'!$D$76=1, ('Lookup Tables'!AC34*60*60*24*'Lookup Tables'!N3) + (('Lookup Tables'!AC34*60*60*24*'Lookup Tables'!N3) * ('Model Sensitivity'!$M$31/100)))), 0) -> 77673.6 | P22: =SUM(D22:O22) -> 927763.2
B23: Existing Seasonal Surface Water Demand From Similkameen River | C23: m3 | D23: =IF('Model Parameters'!$H$21="Estimated Actual Demand", IF('Lookup Tables'!$D$76=2, ('Lookup Tables'!R42*60*60*24*'Lookup Tables'!C3), IF('Lookup Tables'!$D$76=1, ('Lookup Tables'!R42*60*60*24*'Lookup Tables'!C3) + (('Lookup Tables'!R42*60*60*24*'Lookup Tables'!C3) * ('Model Sensitivity'!$M$31/100)))), 0) -> 0 | E23: =IF('Model Parameters'!$H$21="Estimated Actual Demand", IF('Lookup Tables'!$D$76=2, ('Lookup Tables'!S42*60*60*24*'Lookup Tables'!D3), IF('Lookup Tables'!$D$76=1, ('Lookup Tables'!S42*60*60*24*'Lookup Tables'!D3) + (('Lookup Tables'!S42*60*60*24*'Lookup Tables'!D3) * ('Model Sensitivity'!$M$31/100)))), 0) -> 0 | F23: =IF('Model Parameters'!$H$21="Estimated Actual Demand", IF('Lookup Tables'!$D$76=2, ('Lookup Tables'!T42*60*60*24*'Lookup Tables'!E3), IF('Lookup Tables'!$D$76=1, ('Lookup Tables'!T42*60*60*24*'Lookup Tables'!E3) + (('Lookup Tables'!T42*60*60*24*'Lookup Tables'!E3) * ('Model Sensitivity'!$M$31/100)))), 0) -> 0 | G23: =IF('Model Parameters'!$H$21="Estimated Actual Demand", IF('Lookup Tables'!$D$76=2, ('Lookup Tables'!U42*60*60*24*'Lookup Tables'!F3), IF('Lookup Tables'!$D$76=1, ('Lookup Tables'!U42*60*60*24*'Lookup Tables'!F3) + (('Lookup Tables'!U42*60*60*24*'Lookup Tables'!F3) * ('Model Sensitivity'!$M$31/100)))), 0) -> 46656 | H23: =IF('Model Parameters'!$H$21="Estimated Actual Demand", IF('Lookup Tables'!$D$76=2, ('Lookup Tables'!V42*60*60*24*'Lookup Tables'!G3), IF('Lookup Tables'!$D$76=1, ('Lookup Tables'!V42*60*60*24*'Lookup Tables'!G3) + (('Lookup Tables'!V42*60*60*24*'Lookup Tables'!G3) * ('Model Sensitivity'!$M$31/100)))), 0) -> 554428.8 | I23: =IF('Model Parameters'!$H$21="Estimated Actual Demand", IF('Lookup Tables'!$D$76=2, ('Lookup Tables'!W42*60*60*24*'Lookup Tables'!H3), IF('Lookup Tables'!$D$76=1, ('Lookup Tables'!W42*60*60*24*'Lookup Tables'!H3) + (('Lookup Tables'!W42*60*60*24*'Lookup Tables'!H3) * ('Model Sensitivity'!$M$31/100)))), 0) -> 1695168 | J23: =IF('Model Parameters'!$H$21="Estimated Actual Demand", IF('Lookup Tables'!$D$76=2, ('Lookup Tables'!X42*60*60*24*'Lookup Tables'!I3), IF('Lookup Tables'!$D$76=1, ('Lookup Tables'!X42*60*60*24*'Lookup Tables'!I3) + (('Lookup Tables'!X42*60*60*24*'Lookup Tables'!I3) * ('Model Sensitivity'!$M$31/100)))), 0) -> 2413238.4 | K23: =IF('Model Parameters'!$H$21="Estimated Actual Demand", IF('Lookup Tables'!$D$76=2, ('Lookup Tables'!Y42*60*60*24*'Lookup Tables'!J3), IF('Lookup Tables'!$D$76=1, ('Lookup Tables'!Y42*60*60*24*'Lookup Tables'!J3) + (('Lookup Tables'!Y42*60*60*24*'Lookup Tables'!J3) * ('Model Sensitivity'!$M$31/100)))), 0) -> 2190931.2 | L23: =IF('Model Parameters'!$H$21="Estimated Actual Demand", IF('Lookup Tables'!$D$76=2, ('Lookup Tables'!Z42*60*60*24*'Lookup Tables'!K3), IF('Lookup Tables'!$D$76=1, ('Lookup Tables'!Z42*60*60*24*'Lookup Tables'!K3) + (('Lookup Tables'!Z42*60*60*24*'Lookup Tables'!K3) * ('Model Sensitivity'!$M$31/100)))), 0) -> 1288224 | M23: =IF('Model Parameters'!$H$21="Estimated Actual Demand", IF('Lookup Tables'!$D$76=2, ('Lookup Tables'!AA42*60*60*24*'Lookup Tables'!L3), IF('Lookup Tables'!$D$76=1, ('Lookup Tables'!AA42*60*60*24*'Lookup Tables'!L3) + (('Lookup Tables'!AA42*60*60*24*'Lookup Tables'!L3) * ('Model Sensitivity'!$M$31/100)))), 0) -> 0 | N23: =IF('Model Parameters'!$H$21="Estimated Actual Demand", IF('Lookup Tables'!$D$76=2, ('Lookup Tables'!AB42*60*60*24*'Lookup Tables'!M3), IF('Lookup Tables'!$D$76=1, ('Lookup Tables'!AB42*60*60*24*'Lookup Tables'!M3) + (('Lookup Tables'!AB42*60*60*24*'Lookup Tables'!M3) * ('Model Sensitivity'!$M$31/100)))), 0) -> 0 | O23: =IF('Model Parameters'!$H$21="Estimated Actual Demand", IF('Lookup Tables'!$D$76=2, ('Lookup Tables'!AC42*60*60*24*'Lookup Tables'!N3), IF('Lookup Tables'!$D$76=1, ('Lookup Tables'!AC42*60*60*24*'Lookup Tables'!N3) + (('Lookup Tables'!AC42*60*60*24*'Lookup Tables'!N3) * ('Model Sensitivity'!$M$31/100)))), 0) -> 0 | P23: 8188646.4
B24: Existing Annual Groundwater Demand | C24: m3 | D24: =IF('Lookup Tables'!$D$76=2,('Lookup Tables'!R52*60*60*24*'Lookup Tables'!C3),IF('Lookup Tables'!$D$76=1,('Lookup Tables'!R52*60*60*24*'Lookup Tables'!C3)+(('Lookup Tables'!R52*60*60*24*'Lookup Tables'!C3)*('Model Sensitivity'!$M$33/100)),0)) -> 176774.4 | E24: =IF('Lookup Tables'!$D$76=2,('Lookup Tables'!S52*60*60*24*'Lookup Tables'!D3),IF('Lookup Tables'!$D$76=1,('Lookup Tables'!S52*60*60*24*'Lookup Tables'!D3)+(('Lookup Tables'!S52*60*60*24*'Lookup Tables'!D3)*('Model Sensitivity'!$M$33/100)),0)) -> 133056 | F24: =IF('Lookup Tables'!$D$76=2,('Lookup Tables'!T52*60*60*24*'Lookup Tables'!E3),IF('Lookup Tables'!$D$76=1,('Lookup Tables'!T52*60*60*24*'Lookup Tables'!E3)+(('Lookup Tables'!T52*60*60*24*'Lookup Tables'!E3)*('Model Sensitivity'!$M$33/100)),0)) -> 158025.6 | G24: =IF('Lookup Tables'!$D$76=2,('Lookup Tables'!U52*60*60*24*'Lookup Tables'!F3),IF('Lookup Tables'!$D$76=1,('Lookup Tables'!U52*60*60*24*'Lookup Tables'!F3)+(('Lookup Tables'!U52*60*60*24*'Lookup Tables'!F3)*('Model Sensitivity'!$M$33/100)),0)) -> 173664 | H24: =IF('Lookup Tables'!$D$76=2,('Lookup Tables'!V52*60*60*24*'Lookup Tables'!G3),IF('Lookup Tables'!$D$76=1,('Lookup Tables'!V52*60*60*24*'Lookup Tables'!G3)+(('Lookup Tables'!V52*60*60*24*'Lookup Tables'!G3)*('Model Sensitivity'!$M$33/100)),0)) -> 206236.8 | I24: =IF('Lookup Tables'!$D$76=2,('Lookup Tables'!W52*60*60*24*'Lookup Tables'!H3),IF('Lookup Tables'!$D$76=1,('Lookup Tables'!W52*60*60*24*'Lookup Tables'!H3)+(('Lookup Tables'!W52*60*60*24*'Lookup Tables'!H3)*('Model Sensitivity'!$M$33/100)),0)) -> 202176 | J24: =IF('Lookup Tables'!$D$76=2,('Lookup Tables'!X52*60*60*24*'Lookup Tables'!I3),IF('Lookup Tables'!$D$76=1,('Lookup Tables'!X52*60*60*24*'Lookup Tables'!I3)+(('Lookup Tables'!X52*60*60*24*'Lookup Tables'!I3)*('Model Sensitivity'!$M$33/100)),0)) -> 219628.8 | K24: =IF('Lookup Tables'!$D$76=2,('Lookup Tables'!Y52*60*60*24*'Lookup Tables'!J3),IF('Lookup Tables'!$D$76=1,('Lookup Tables'!Y52*60*60*24*'Lookup Tables'!J3)+(('Lookup Tables'!Y52*60*60*24*'Lookup Tables'!J3)*('Model Sensitivity'!$M$33/100)),0)) -> 235699.2 | L24: =IF('Lookup Tables'!$D$76=2,('Lookup Tables'!Z52*60*60*24*'Lookup Tables'!K3),IF('Lookup Tables'!$D$76=1,('Lookup Tables'!Z52*60*60*24*'Lookup Tables'!K3)+(('Lookup Tables'!Z52*60*60*24*'Lookup Tables'!K3)*('Model Sensitivity'!$M$33/100)),0)) -> 204768 | M24: =IF('Lookup Tables'!$D$76=2,('Lookup Tables'!AA52*60*60*24*'Lookup Tables'!L3),IF('Lookup Tables'!$D$76=1,('Lookup Tables'!AA52*60*60*24*'Lookup Tables'!L3)+(('Lookup Tables'!AA52*60*60*24*'Lookup Tables'!L3)*('Model Sensitivity'!$M$33/100)),0)) -> 174096 | N24: =IF('Lookup Tables'!$D$76=2,('Lookup Tables'!AB52*60*60*24*'Lookup Tables'!M3),IF('Lookup Tables'!$D$76=1,('Lookup Tables'!AB52*60*60*24*'Lookup Tables'!M3)+(('Lookup Tables'!AB52*60*60*24*'Lookup Tables'!M3)*('Model Sensitivity'!$M$33/100)),0)) -> 145152 | O24: =IF('Lookup Tables'!$D$76=2,('Lookup Tables'!AC52*60*60*24*'Lookup Tables'!N3),IF('Lookup Tables'!$D$76=1,('Lookup Tables'!AC52*60*60*24*'Lookup Tables'!N3)+(('Lookup Tables'!AC52*60*60*24*'Lookup Tables'!N3)*('Model Sensitivity'!$M$33/100)),0)) -> 174096 | P24: 2203372.8
B25: Existing Seasonal Groundwater Demand | C25: m3 | D25: =IF('Lookup Tables'!$D$76=2,('Lookup Tables'!R60*60*60*24*'Lookup Tables'!C3),IF('Lookup Tables'!$D$76=1,('Lookup Tables'!R60*60*60*24*'Lookup Tables'!C3)+(('Lookup Tables'!R60*60*60*24*'Lookup Tables'!C3)*('Model Sensitivity'!$M$33/100)),0)) -> 0 | E25: =IF('Lookup Tables'!$D$76=2,('Lookup Tables'!S60*60*60*24*'Lookup Tables'!D3),IF('Lookup Tables'!$D$76=1,('Lookup Tables'!S60*60*60*24*'Lookup Tables'!D3)+(('Lookup Tables'!S60*60*60*24*'Lookup Tables'!D3)*('Model Sensitivity'!$M$33/100)),0)) -> 0 | F25: =IF('Lookup Tables'!$D$76=2,('Lookup Tables'!T60*60*60*24*'Lookup Tables'!E3),IF('Lookup Tables'!$D$76=1,('Lookup Tables'!T60*60*60*24*'Lookup Tables'!E3)+(('Lookup Tables'!T60*60*60*24*'Lookup Tables'!E3)*('Model Sensitivity'!$M$33/100)),0)) -> 0 | G25: =IF('Lookup Tables'!$D$76=2,('Lookup Tables'!U60*60*60*24*'Lookup Tables'!F3),IF('Lookup Tables'!$D$76=1,('Lookup Tables'!U60*60*60*24*'Lookup Tables'!F3)+(('Lookup Tables'!U60*60*60*24*'Lookup Tables'!F3)*('Model Sensitivity'!$M$33/100)),0)) -> 202176 | H25: =IF('Lookup Tables'!$D$76=2,('Lookup Tables'!V60*60*60*24*'Lookup Tables'!G3),IF('Lookup Tables'!$D$76=1,('Lookup Tables'!V60*60*60*24*'Lookup Tables'!G3)+(('Lookup Tables'!V60*60*60*24*'Lookup Tables'!G3)*('Model Sensitivity'!$M$33/100)),0)) -> 1028505.6 | I25: =IF('Lookup Tables'!$D$76=2,('Lookup Tables'!W60*60*60*24*'Lookup Tables'!H3),IF('Lookup Tables'!$D$76=1,('Lookup Tables'!W60*60*60*24*'Lookup Tables'!H3)+(('Lookup Tables'!W60*60*60*24*'Lookup Tables'!H3)*('Model Sensitivity'!$M$33/100)),0)) -> 2099520 | J25: =IF('Lookup Tables'!$D$76=2,('Lookup Tables'!X60*60*60*24*'Lookup Tables'!I3),IF('Lookup Tables'!$D$76=1,('Lookup Tables'!X60*60*60*24*'Lookup Tables'!I3)+(('Lookup Tables'!X60*60*60*24*'Lookup Tables'!I3)*('Model Sensitivity'!$M$33/100)),0)) -> 2820355.2 | K25: =IF('Lookup Tables'!$D$76=2,('Lookup Tables'!Y60*60*60*24*'Lookup Tables'!J3),IF('Lookup Tables'!$D$76=1,('Lookup Tables'!Y60*60*60*24*'Lookup Tables'!J3)+(('Lookup Tables'!Y60*60*60*24*'Lookup Tables'!J3)*('Model Sensitivity'!$M$33/100)),0)) -> 2482876.8 | L25: =IF('Lookup Tables'!$D$76=2,('Lookup Tables'!Z60*60*60*24*'Lookup Tables'!K3),IF('Lookup Tables'!$D$76=1,('Lookup Tables'!Z60*60*60*24*'Lookup Tables'!K3)+(('Lookup Tables'!Z60*60*60*24*'Lookup Tables'!K3)*('Model Sensitivity'!$M$33/100)),0)) -> 1459296 | M25: =IF('Lookup Tables'!$D$76=2,('Lookup Tables'!AA60*60*60*24*'Lookup Tables'!L3),IF('Lookup Tables'!$D$76=1,('Lookup Tables'!AA60*60*60*24*'Lookup Tables'!L3)+(('Lookup Tables'!AA60*60*60*24*'Lookup Tables'!L3)*('Model Sensitivity'!$M$33/100)),0)) -> 0 | N25: =IF('Lookup Tables'!$D$76=2,('Lookup Tables'!AB60*60*60*24*'Lookup Tables'!M3),IF('Lookup Tables'!$D$76=1,('Lookup Tables'!AB60*60*60*24*'Lookup Tables'!M3)+(('Lookup Tables'!AB60*60*60*24*'Lookup Tables'!M3)*('Model Sensitivity'!$M$33/100)),0)) -> 0 | O25: =IF('Lookup Tables'!$D$76=2,('Lookup Tables'!AC60*60*60*24*'Lookup Tables'!N3),IF('Lookup Tables'!$D$76=1,('Lookup Tables'!AC60*60*60*24*'Lookup Tables'!N3)+(('Lookup Tables'!AC60*60*60*24*'Lookup Tables'!N3)*('Model Sensitivity'!$M$33/100)),0)) -> 0 | P25: 10092729.6
B27: Total Existing Licensed Surface Water Demand | C27: m3 | D27: =IF('Model Parameters'!$H$21="Total Licensed Demand", IF('Lookup Tables'!$D$76=2,('Lookup Tables'!R66*60*60*24*'Lookup Tables'!C3), IF('Lookup Tables'!$D$76=1, ('Lookup Tables'!R66*60*60*24*'Lookup Tables'!C3) + (('Lookup Tables'!R66*60*60*24*'Lookup Tables'!C3) * ('Model Sensitivity'!$M$35/100)))),0) -> 0 | E27: =IF('Model Parameters'!$H$21="Total Licensed Demand", IF('Lookup Tables'!$D$76=2,('Lookup Tables'!S66*60*60*24*'Lookup Tables'!D3), IF('Lookup Tables'!$D$76=1, ('Lookup Tables'!S66*60*60*24*'Lookup Tables'!D3) + (('Lookup Tables'!S66*60*60*24*'Lookup Tables'!D3) * ('Model Sensitivity'!$M$35/100)))),0) -> 0 | F27: =IF('Model Parameters'!$H$21="Total Licensed Demand", IF('Lookup Tables'!$D$76=2,('Lookup Tables'!T66*60*60*24*'Lookup Tables'!E3), IF('Lookup Tables'!$D$76=1, ('Lookup Tables'!T66*60*60*24*'Lookup Tables'!E3) + (('Lookup Tables'!T66*60*60*24*'Lookup Tables'!E3) * ('Model Sensitivity'!$M$35/100)))),0) -> 0 | G27: =IF('Model Parameters'!$H$21="Total Licensed Demand", IF('Lookup Tables'!$D$76=2,('Lookup Tables'!U66*60*60*24*'Lookup Tables'!F3), IF('Lookup Tables'!$D$76=1, ('Lookup Tables'!U66*60*60*24*'Lookup Tables'!F3) + (('Lookup Tables'!U66*60*60*24*'Lookup Tables'!F3) * ('Model Sensitivity'!$M$35/100)))),0) -> 0 | H27: =IF('Model Parameters'!$H$21="Total Licensed Demand", IF('Lookup Tables'!$D$76=2,('Lookup Tables'!V66*60*60*24*'Lookup Tables'!G3), IF('Lookup Tables'!$D$76=1, ('Lookup Tables'!V66*60*60*24*'Lookup Tables'!G3) + (('Lookup Tables'!V66*60*60*24*'Lookup Tables'!G3) * ('Model Sensitivity'!$M$35/100)))),0) -> 0 | I27: =IF('Model Parameters'!$H$21="Total Licensed Demand", IF('Lookup Tables'!$D$76=2,('Lookup Tables'!W66*60*60*24*'Lookup Tables'!H3), IF('Lookup Tables'!$D$76=1, ('Lookup Tables'!W66*60*60*24*'Lookup Tables'!H3) + (('Lookup Tables'!W66*60*60*24*'Lookup Tables'!H3) * ('Model Sensitivity'!$M$35/100)))),0) -> 0 | J27: =IF('Model Parameters'!$H$21="Total Licensed Demand", IF('Lookup Tables'!$D$76=2,('Lookup Tables'!X66*60*60*24*'Lookup Tables'!I3), IF('Lookup Tables'!$D$76=1, ('Lookup Tables'!X66*60*60*24*'Lookup Tables'!I3) + (('Lookup Tables'!X66*60*60*24*'Lookup Tables'!I3) * ('Model Sensitivity'!$M$35/100)))),0) -> 0 | K27: =IF('Model Parameters'!$H$21="Total Licensed Demand", IF('Lookup Tables'!$D$76=2,('Lookup Tables'!Y66*60*60*24*'Lookup Tables'!J3), IF('Lookup Tables'!$D$76=1, ('Lookup Tables'!Y66*60*60*24*'Lookup Tables'!J3) + (('Lookup Tables'!Y66*60*60*24*'Lookup Tables'!J3) * ('Model Sensitivity'!$M$35/100)))),0) -> 0 | L27: =IF('Model Parameters'!$H$21="Total Licensed Demand", IF('Lookup Tables'!$D$76=2,('Lookup Tables'!Z66*60*60*24*'Lookup Tables'!K3), IF('Lookup Tables'!$D$76=1, ('Lookup Tables'!Z66*60*60*24*'Lookup Tables'!K3) + (('Lookup Tables'!Z66*60*60*24*'Lookup Tables'!K3) * ('Model Sensitivity'!$M$35/100)))),0) -> 0 | M27: =IF('Model Parameters'!$H$21="Total Licensed Demand", IF('Lookup Tables'!$D$76=2,('Lookup Tables'!AA66*60*60*24*'Lookup Tables'!L3), IF('Lookup Tables'!$D$76=1, ('Lookup Tables'!AA66*60*60*24*'Lookup Tables'!L3) + (('Lookup Tables'!AA66*60*60*24*'Lookup Tables'!L3) * ('Model Sensitivity'!$M$35/100)))),0) -> 0 | N27: =IF('Model Parameters'!$H$21="Total Licensed Demand", IF('Lookup Tables'!$D$76=2,('Lookup Tables'!AB66*60*60*24*'Lookup Tables'!M3), IF('Lookup Tables'!$D$76=1, ('Lookup Tables'!AB66*60*60*24*'Lookup Tables'!M3) + (('Lookup Tables'!AB66*60*60*24*'Lookup Tables'!M3) * ('Model Sensitivity'!$M$35/100)))),0) -> 0 | O27: =IF('Model Parameters'!$H$21="Total Licensed Demand", IF('Lookup Tables'!$D$76=2,('Lookup Tables'!AC66*60*60*24*'Lookup Tables'!N3), IF('Lookup Tables'!$D$76=1, ('Lookup Tables'!AC66*60*60*24*'Lookup Tables'!N3) + (('Lookup Tables'!AC66*60*60*24*'Lookup Tables'!N3) * ('Model Sensitivity'!$M$35/100)))),0) -> 0 | P27: =SUM(D27:O27) -> 0
B29: TOTAL | C29: m3 | D29: =SUM(D19:D27) -> 52219653.27 | E29: =SUM(E19:E27) -> 43864187.68 | F29: 62782058.07 | G29: 153902039.3 | H29: 493946975.9 | I29: 488262069.1 | J29: 189178324.1 | K29: 64977733.8 | L29: 39369392.95 | M29: 44268944.6 | N29: 72602691.41 | O29: 54870749.91 | P29: =SUM(P19:P25,P27) -> 1760244820
B31: RESULT | C31: Units | D31: JAN | E31: FEB | F31: MAR | G31: APR | H31: MAY | I31: JUN | J31: JUL | K31: AUG | L31: SEP | M31: OCT | N31: NOV | O31: DEC | P31: ANNUAL TOTAL
B32: System Net
B33: Surplus/Deficit | C33: m3 | D33: =D16-D29 -> -3431220.608 | E33: -7227074.191 | F33: -2383594.522 | G33: 22020888.68 | H33: 52585474.8 | I33: -11930520.75 | J33: -29047707.98 | K33: -17086141.76 | L33: -8373073.713 | M33: -1951821.612 | N33: 3945599.777 | O33: -6156075.524 | P33: -9035267.406
B34: ΔhGW (Simulated) | C34: m | D34: =IF('Lookup Tables'!$D$76=2, ('Water Budget'!D33/('Model Parameters'!$D$13*'Model Parameters'!$D$14)), IF('Lookup Tables'!$D$76=1, 'Water Budget'!D33/('Model Parameters'!$D$13 * 'Model Sensitivity'!$M$17))) -> -0.1094011866 | E34: =IF('Lookup Tables'!$D$76=2, ('Water Budget'!E33/('Model Parameters'!$D$13*'Model Parameters'!$D$14)), IF('Lookup Tables'!$D$76=1, 'Water Budget'!E33/('Model Parameters'!$D$13 * 'Model Sensitivity'!$M$17))) -> -0.2304283467 | F34: =IF('Lookup Tables'!$D$76=2, ('Water Budget'!F33/('Model Parameters'!$D$13*'Model Parameters'!$D$14)), IF('Lookup Tables'!$D$76=1, 'Water Budget'!F33/('Model Parameters'!$D$13 * 'Model Sensitivity'!$M$17))) -> -0.07599863104 | G34: =IF('Lookup Tables'!$D$76=2, ('Water Budget'!G33/('Model Parameters'!$D$13*'Model Parameters'!$D$14)), IF('Lookup Tables'!$D$76=1, 'Water Budget'!G33/('Model Parameters'!$D$13 * 'Model Sensitivity'!$M$17))) -> 0.7021149689 | H34: =IF('Lookup Tables'!$D$76=2, ('Water Budget'!H33/('Model Parameters'!$D$13*'Model Parameters'!$D$14)), IF('Lookup Tables'!$D$76=1, 'Water Budget'!H33/('Model Parameters'!$D$13 * 'Model Sensitivity'!$M$17))) -> 1.676637557 | I34: =IF('Lookup Tables'!$D$76=2, ('Water Budget'!I33/('Model Parameters'!$D$13*'Model Parameters'!$D$14)), IF('Lookup Tables'!$D$76=1, 'Water Budget'!I33/('Model Parameters'!$D$13 * 'Model Sensitivity'!$M$17))) -> -0.3803932407 | J34: =IF('Lookup Tables'!$D$76=2, ('Water Budget'!J33/('Model Parameters'!$D$13*'Model Parameters'!$D$14)), IF('Lookup Tables'!$D$76=1, 'Water Budget'!J33/('Model Parameters'!$D$13 * 'Model Sensitivity'!$M$17))) -> -0.9261583799 | K34: =IF('Lookup Tables'!$D$76=2, ('Water Budget'!K33/('Model Parameters'!$D$13*'Model Parameters'!$D$14)), IF('Lookup Tables'!$D$76=1, 'Water Budget'!K33/('Model Parameters'!$D$13 * 'Model Sensitivity'!$M$17))) -> -0.5447752843 | L34: =IF('Lookup Tables'!$D$76=2, ('Water Budget'!L33/('Model Parameters'!$D$13*'Model Parameters'!$D$14)), IF('Lookup Tables'!$D$76=1, 'Water Budget'!L33/('Model Parameters'!$D$13 * 'Model Sensitivity'!$M$17))) -> -0.2669674451 | M34: =IF('Lookup Tables'!$D$76=2, ('Water Budget'!M33/('Model Parameters'!$D$13*'Model Parameters'!$D$14)), IF('Lookup Tables'!$D$76=1, 'Water Budget'!M33/('Model Parameters'!$D$13 * 'Model Sensitivity'!$M$17))) -> -0.06223196488 | N34: =IF('Lookup Tables'!$D$76=2, ('Water Budget'!N33/('Model Parameters'!$D$13*'Model Parameters'!$D$14)), IF('Lookup Tables'!$D$76=1, 'Water Budget'!N33/('Model Parameters'!$D$13 * 'Model Sensitivity'!$M$17))) -> 0.1258016743 | O34: =IF('Lookup Tables'!$D$76=2, ('Water Budget'!O33/('Model Parameters'!$D$13*'Model Parameters'!$D$14)), IF('Lookup Tables'!$D$76=1, 'Water Budget'!O33/('Model Parameters'!$D$13 * 'Model Sensitivity'!$M$17))) -> -0.1962805788 | P34: =IF('Lookup Tables'!$D$76=2, ('Water Budget'!P33/('Model Parameters'!$D$13*'Model Parameters'!$D$14)), IF('Lookup Tables'!$D$76=1, 'Water Budget'!P33/('Model Parameters'!$D$13 * 'Model Sensitivity'!$M$17))) -> -0.2880808575
B35: Ratio Qsw in - R/Qsw out | C35: - | D35: =((D9+D10)-D11)/D20 -> 0.924586867 | E35: 0.8336540395 | F35: 0.9243688123 | G35: 1.12953544 | H35: 1.107351045 | I35: 0.982546195 | J35: 0.8711315976 | K35: 0.7953336514 | L35: 0.8428206069 | M35: 0.9381012882 | N35: 1.054082375 | O35: 0.8821147127 | P35: 1.001429645
B37: Surface Water Only
B38: Surplus/Deficit | C38: m3 | D38: =(D8+D9+D10) - (D19+D20+D22+D23+D27) -> -3409659.504 | E38: =(E8+E9+E10) - (E19+E20+E22+E23+E27) -> -7110668.739 | F38: -3606319.917 | G38: 20667391.97 | H38: 52355218.25 | I38: -10664502.16 | J38: -26947976.31 | K38: -15147254.15 | L38: -7281227.497 | M38: -2315919.44 | N38: 4122152.258 | O38: -6022298.662 | P38: -5361063.899
B39: Δh Surface Water Component Only | C39: m | D39: =IF('Lookup Tables'!$D$76=2, 'Water Budget'!D38/('Model Parameters'!$D$13 * 'Model Parameters'!$D$14), IF('Lookup Tables'!$D$76=1, 'Water Budget'!D38/('Model Parameters'!$D$13 * 'Model Sensitivity'!$M$17))) -> -0.1087137314 | E39: =IF('Lookup Tables'!$D$76=2, 'Water Budget'!E38/('Model Parameters'!$D$13 * 'Model Parameters'!$D$14), IF('Lookup Tables'!$D$76=1, 'Water Budget'!E38/('Model Parameters'!$D$13 * 'Model Sensitivity'!$M$17))) -> -0.2267168702 | F39: =IF('Lookup Tables'!$D$76=2, 'Water Budget'!F38/('Model Parameters'!$D$13 * 'Model Parameters'!$D$14), IF('Lookup Tables'!$D$76=1, 'Water Budget'!F38/('Model Parameters'!$D$13 * 'Model Sensitivity'!$M$17))) -> -0.1149840605 | G39: =IF('Lookup Tables'!$D$76=2, 'Water Budget'!G38/('Model Parameters'!$D$13 * 'Model Parameters'!$D$14), IF('Lookup Tables'!$D$76=1, 'Water Budget'!G38/('Model Parameters'!$D$13 * 'Model Sensitivity'!$M$17))) -> 0.6589600213 | H39: =IF('Lookup Tables'!$D$76=2, 'Water Budget'!H38/('Model Parameters'!$D$13 * 'Model Parameters'!$D$14), IF('Lookup Tables'!$D$76=1, 'Water Budget'!H38/('Model Parameters'!$D$13 * 'Model Sensitivity'!$M$17))) -> 1.669296048 | I39: =IF('Lookup Tables'!$D$76=2, 'Water Budget'!I38/('Model Parameters'!$D$13 * 'Model Parameters'!$D$14), IF('Lookup Tables'!$D$76=1, 'Water Budget'!I38/('Model Parameters'!$D$13 * 'Model Sensitivity'!$M$17))) -> -0.3400274491 | J39: =IF('Lookup Tables'!$D$76=2, 'Water Budget'!J38/('Model Parameters'!$D$13 * 'Model Parameters'!$D$14), IF('Lookup Tables'!$D$76=1, 'Water Budget'!J38/('Model Parameters'!$D$13 * 'Model Sensitivity'!$M$17))) -> -0.8592104446 | K39: =IF('Lookup Tables'!$D$76=2, 'Water Budget'!K38/('Model Parameters'!$D$13 * 'Model Parameters'!$D$14), IF('Lookup Tables'!$D$76=1, 'Water Budget'!K38/('Model Parameters'!$D$13 * 'Model Sensitivity'!$M$17))) -> -0.4829557077 | L39: =IF('Lookup Tables'!$D$76=2, 'Water Budget'!L38/('Model Parameters'!$D$13 * 'Model Parameters'!$D$14), IF('Lookup Tables'!$D$76=1, 'Water Budget'!L38/('Model Parameters'!$D$13 * 'Model Sensitivity'!$M$17))) -> -0.2321549731 | M39: =IF('Lookup Tables'!$D$76=2, 'Water Budget'!M38/('Model Parameters'!$D$13 * 'Model Parameters'!$D$14), IF('Lookup Tables'!$D$76=1, 'Water Budget'!M38/('Model Parameters'!$D$13 * 'Model Sensitivity'!$M$17))) -> -0.07384087577 | N39: =IF('Lookup Tables'!$D$76=2, 'Water Budget'!N38/('Model Parameters'!$D$13 * 'Model Parameters'!$D$14), IF('Lookup Tables'!$D$76=1, 'Water Budget'!N38/('Model Parameters'!$D$13 * 'Model Sensitivity'!$M$17))) -> 0.1314308812 | O39: =IF('Lookup Tables'!$D$76=2, 'Water Budget'!O38/('Model Parameters'!$D$13 * 'Model Parameters'!$D$14), IF('Lookup Tables'!$D$76=1, 'Water Budget'!O38/('Model Parameters'!$D$13 * 'Model Sensitivity'!$M$17))) -> -0.1920152315 | P39: =IF('Lookup Tables'!$D$76=2, 'Water Budget'!P38/('Model Parameters'!$D$13 * 'Model Parameters'!$D$14), IF('Lookup Tables'!$D$76=1, 'Water Budget'!P38/('Model Parameters'!$D$13 * 'Model Sensitivity'!$M$17))) -> -0.1709323937
B41: Groundwater Only
B42: Surplus/Deficit | C42: m3 | D42: =(D11+D12+D13+D14) - (D21+D24+D25) -> -21561.1035 | E42: =(E11+E12+E13+E14) - (E21+E24+E25) -> -116405.4517 | F42: 1222725.395 | G42: 1353496.707 | H42: =(H11+H12+H13+H14) - (H21+H24+H25) -> 230256.5423 | I42: -1266018.591 | J42: -2099731.663 | K42: -1938887.61 | L42: -1091846.215 | M42: 364097.8271 | N42: -176552.4808 | O42: -133776.8627 | P42: -3674203.507
B43: Δh Groundwater Component Only | C43: m | D43: =IF('Lookup Tables'!$D$76=2, 'Water Budget'!D42/('Model Parameters'!$D$13 * 'Model Parameters'!$D$14), IF('Lookup Tables'!$D$76=1, 'Water Budget'!D42/('Model Parameters'!$D$13 * 'Model Sensitivity'!$M$17))) -> -0.0006874551582 | E43: =IF('Lookup Tables'!$D$76=2, 'Water Budget'!E42/('Model Parameters'!$D$13 * 'Model Parameters'!$D$14), IF('Lookup Tables'!$D$76=1, 'Water Budget'!E42/('Model Parameters'!$D$13 * 'Model Sensitivity'!$M$17))) -> -0.003711476468 | F43: =IF('Lookup Tables'!$D$76=2, 'Water Budget'!F42/('Model Parameters'!$D$13 * 'Model Parameters'!$D$14), IF('Lookup Tables'!$D$76=1, 'Water Budget'!F42/('Model Parameters'!$D$13 * 'Model Sensitivity'!$M$17))) -> 0.03898542947 | G43: =IF('Lookup Tables'!$D$76=2, 'Water Budget'!G42/('Model Parameters'!$D$13 * 'Model Parameters'!$D$14), IF('Lookup Tables'!$D$76=1, 'Water Budget'!G42/('Model Parameters'!$D$13 * 'Model Sensitivity'!$M$17))) -> 0.04315494766 | H43: =IF('Lookup Tables'!$D$76=2, 'Water Budget'!H42/('Model Parameters'!$D$13 * 'Model Parameters'!$D$14), IF('Lookup Tables'!$D$76=1, 'Water Budget'!H42/('Model Parameters'!$D$13 * 'Model Sensitivity'!$M$17))) -> 0.007341509572 | I43: =IF('Lookup Tables'!$D$76=2, 'Water Budget'!I42/('Model Parameters'!$D$13 * 'Model Parameters'!$D$14), IF('Lookup Tables'!$D$76=1, 'Water Budget'!I42/('Model Parameters'!$D$13 * 'Model Sensitivity'!$M$17))) -> -0.04036579162 | J43: =IF('Lookup Tables'!$D$76=2, 'Water Budget'!J42/('Model Parameters'!$D$13 * 'Model Parameters'!$D$14), IF('Lookup Tables'!$D$76=1, 'Water Budget'!J42/('Model Parameters'!$D$13 * 'Model Sensitivity'!$M$17))) -> -0.06694793535 | K43: =IF('Lookup Tables'!$D$76=2, 'Water Budget'!K42/('Model Parameters'!$D$13 * 'Model Parameters'!$D$14), IF('Lookup Tables'!$D$76=1, 'Water Budget'!K42/('Model Parameters'!$D$13 * 'Model Sensitivity'!$M$17))) -> -0.06181957657 | L43: =IF('Lookup Tables'!$D$76=2, 'Water Budget'!L42/('Model Parameters'!$D$13 * 'Model Parameters'!$D$14), IF('Lookup Tables'!$D$76=1, 'Water Budget'!L42/('Model Parameters'!$D$13 * 'Model Sensitivity'!$M$17))) -> -0.03481247205 | M43: =IF('Lookup Tables'!$D$76=2, 'Water Budget'!M42/('Model Parameters'!$D$13 * 'Model Parameters'!$D$14), IF('Lookup Tables'!$D$76=1, 'Water Budget'!M42/('Model Parameters'!$D$13 * 'Model Sensitivity'!$M$17))) -> 0.0116089109 | N43: =IF('Lookup Tables'!$D$76=2, 'Water Budget'!N42/('Model Parameters'!$D$13 * 'Model Parameters'!$D$14), IF('Lookup Tables'!$D$76=1, 'Water Budget'!N42/('Model Parameters'!$D$13 * 'Model Sensitivity'!$M$17))) -> -0.005629206949 | O43: =IF('Lookup Tables'!$D$76=2, 'Water Budget'!O42/('Model Parameters'!$D$13 * 'Model Parameters'!$D$14), IF('Lookup Tables'!$D$76=1, 'Water Budget'!O42/('Model Parameters'!$D$13 * 'Model Sensitivity'!$M$17))) -> -0.004265347287 | P43: =IF('Lookup Tables'!$D$76=2, 'Water Budget'!P42/('Model Parameters'!$D$13 * 'Model Parameters'!$D$14), IF('Lookup Tables'!$D$76=1, 'Water Budget'!P42/('Model Parameters'!$D$13 * 'Model Sensitivity'!$M$17))) -> -0.1171484639

Sheet Model Sensitivity
B1: =Main!$B$11 -> Similkameen Valley Aquifer
B2: =CONCATENATE("Aquifer #", Main!$B$12) -> Aquifer #259
B5: MODEL SENSITIVITY
C7: Units | D7: JAN | E7: FEB | F7: MAR | G7: APR | H7: MAY | I7: JUN | J7: JUL | K7: AUG | L7: SEP | M7: OCT | N7: NOV | O7: DEC
B8: Simulated ΔhGW | C8: m | D8: ='Water Budget'!D34 -> -0.1094011866 | E8: ='Water Budget'!E34 -> -0.2304283467 | F8: ='Water Budget'!F34 -> -0.07599863104 | G8: ='Water Budget'!G34 -> 0.7021149689 | H8: ='Water Budget'!H34 -> 1.676637557 | I8: ='Water Budget'!I34 -> -0.3803932407 | J8: ='Water Budget'!J34 -> -0.9261583799 | K8: ='Water Budget'!K34 -> -0.5447752843 | L8: ='Water Budget'!L34 -> -0.2669674451 | M8: ='Water Budget'!M34 -> -0.06223196488 | N8: ='Water Budget'!N34 -> 0.1258016743 | O8: ='Water Budget'!O34 -> -0.1962805788
B10: Observed ΔhGW | C10: m | D10: ='Lookup Tables'!C71-'Lookup Tables'!D71 -> 0.102 | E10: ='Lookup Tables'!D71-'Lookup Tables'!E71 -> -0.116 | F10: ='Lookup Tables'!E71-'Lookup Tables'!F71 -> 0.058 | G10: ='Lookup Tables'!F71-'Lookup Tables'!G71 -> 0.177 | H10: ='Lookup Tables'!G71-'Lookup Tables'!H71 -> 0.497 | I10: ='Lookup Tables'!H71-'Lookup Tables'!I71 -> -0.085 | J10: ='Lookup Tables'!I71-'Lookup Tables'!J71 -> -0.252 | K10: ='Lookup Tables'!J71-'Lookup Tables'!K71 -> -0.428 | L10: ='Lookup Tables'!K71-'Lookup Tables'!L71 -> -0.148 | M10: ='Lookup Tables'!L71-'Lookup Tables'!M71 -> 0.015 | N10: ='Lookup Tables'!M71-'Lookup Tables'!N71 -> 0.182 | O10: ='Lookup Tables'!N71-'Lookup Tables'!O71 -> -0.002
H13: MODEL SENSITIVITY PARAMETERS
G15: Model Sensitivity Mode:
P16: Slider Value
G17: Specific Yield | M17: =P17/100 -> 0.26 | P17: 26
G19: Percentage of Precipitation Recharging Aquifer | L19: % | M19: 20 | N19: 20
G21: Irrigation Return to Aquifer | L21: % | M21: 15 | N21: 15
G23: Percentage change of Tributary Inflow Estimates | L23: +/- % | M23: =P23-20 -> 0 | P23: 20
G25: Groundwater Inflow - Hydraulic Conductivity (K) | L25: m/day | M25: 89 | N25: 89
G27: Percentage change of MBR Estimate | L27: +/- % | M27: =P27-20 -> 0 | P27: 20
G29: Groundwater Outflow - Hydraulic Conductivity (K) | L29: m/day | M29: 100 | N29: 100
G31: Percentage change of Total Estimated Surface Water Demand | L31: +/- % | M31: =P31-20 -> 0 | P31: 20
G33: Percentage change of Total Estimated Groundwater Demand | L33: +/- % | M33: =P33-20 -> 0 | P33: 20
G35: Percentage change of Total Licensed Water Demand | L35: +/- % | M35: =P35-20 -> 0 | P35: 20
H37: Relationship between ΔhGW
H38: R-Squared | I38: =RSQ(D10:O10,D8:O8) -> 0.7933329899
H39: RMSE | I39: =SQRT(SUM((D10-D8)^2, (E10-E8)^2, (F10-F8)^2, (G10-G8)^2, (H10-H8)^2, (I10-I8)^2, (J10-J8)^2, (K10-K8)^2, (L10-L8)^2, (M10-M8)^2, (N10-N8)^2, (O10-O8)^2)/12) -> 0.4434180512

Sheet Model Output
B1: =Main!$B$11 -> Similkameen Valley Aquifer
B2: =CONCATENATE("Aquifer #", Main!$B$12) -> Aquifer #259
B5: MODEL OUTPUT
B7: SYSTEM NET | C7: Units | D7: JAN | E7: FEB | F7: MAR | G7: APR | H7: MAY | I7: JUN | J7: JUL | K7: AUG | L7: SEP | M7: OCT | N7: NOV | O7: DEC | P7: ANNUAL TOTAL
B8: Surplus/Deficit | C8: m3 | D8: ='Water Budget'!D33 -> -3431220.608 | E8: ='Water Budget'!E33 -> -7227074.191 | F8: ='Water Budget'!F33 -> -2383594.522 | G8: ='Water Budget'!G33 -> 22020888.68 | H8: ='Water Budget'!H33 -> 52585474.8 | I8: ='Water Budget'!I33 -> -11930520.75 | J8: ='Water Budget'!J33 -> -29047707.98 | K8: ='Water Budget'!K33 -> -17086141.76 | L8: ='Water Budget'!L33 -> -8373073.713 | M8: ='Water Budget'!M33 -> -1951821.612 | N8: ='Water Budget'!N33 -> 3945599.777 | O8: ='Water Budget'!O33 -> -6156075.524 | P8: =SUM(D8:O8) -> -9035267.406
B9: Simulated Groundwater Level (Calibrated) | C9: m bgl | D9: ='Lookup Tables'!C71-'Water Budget'!D34 -> 2.797401187 | E9: =D9-'Water Budget'!E34 -> 3.027829533 | F9: =E9-'Water Budget'!F34 -> 3.103828164 | G9: =F9-'Water Budget'!G34 -> 2.401713195 | H9: =G9-'Water Budget'!H34 -> 0.7250756381 | I9: =H9-'Water Budget'!I34 -> 1.105468879 | J9: =I9-'Water Budget'!J34 -> 2.031627259 | K9: =J9-'Water Budget'!K34 -> 2.576402543 | L9: =K9-'Water Budget'!L34 -> 2.843369988 | M9: =L9-'Water Budget'!M34 -> 2.905601953 | N9: =M9-'Water Budget'!N34 -> 2.779800279 | O9: =N9-'Water Budget'!O34 -> 2.976080858
B10: Observed Groundwater Level (Well 75) | C10: m bgl | D10: ='Lookup Tables'!D71 -> 2.586 | E10: ='Lookup Tables'!E71 -> 2.702 | F10: ='Lookup Tables'!F71 -> 2.644 | G10: ='Lookup Tables'!G71 -> 2.467 | H10: ='Lookup Tables'!H71 -> 1.97 | I10: ='Lookup Tables'!I71 -> 2.055 | J10: ='Lookup Tables'!J71 -> 2.307 | K10: ='Lookup Tables'!K71 -> 2.735 | L10: ='Lookup Tables'!L71 -> 2.883 | M10: ='Lookup Tables'!M71 -> 2.868 | N10: ='Lookup Tables'!N71 -> 2.686 | O10: ='Lookup Tables'!O71 -> 2.688
B12: Similkameen River Outflow | C12: m3/s | D12: =IF('Model Parameters'!$H$21="Estimated Actual Demand", 'Lookup Tables'!R24, IF('Model Parameters'!$H$21="Total Licensed Demand", ('Lookup Tables'!R24 + SUM('Lookup Tables'!R34,'Lookup Tables'!R42)) - 'Lookup Tables'!R66)) -> 19.1 | E12: =IF('Model Parameters'!$H$21="Estimated Actual Demand", 'Lookup Tables'!S24, IF('Model Parameters'!$H$21="Total Licensed Demand", ('Lookup Tables'!S24 + SUM('Lookup Tables'!S34,'Lookup Tables'!S42)) - 'Lookup Tables'!S66)) -> 17.7 | F12: =IF('Model Parameters'!$H$21="Estimated Actual Demand", 'Lookup Tables'!T24, IF('Model Parameters'!$H$21="Total Licensed Demand", ('Lookup Tables'!T24 + SUM('Lookup Tables'!T34,'Lookup Tables'!T42)) - 'Lookup Tables'!T66)) -> 22.9 | G12: =IF('Model Parameters'!$H$21="Estimated Actual Demand", 'Lookup Tables'!U24, IF('Model Parameters'!$H$21="Total Licensed Demand", ('Lookup Tables'!U24 + SUM('Lookup Tables'!U34,'Lookup Tables'!U42)) - 'Lookup Tables'!U66)) -> 58.6 | H12: =IF('Model Parameters'!$H$21="Estimated Actual Demand", 'Lookup Tables'!V24, IF('Model Parameters'!$H$21="Total Licensed Demand", ('Lookup Tables'!V24 + SUM('Lookup Tables'!V34,'Lookup Tables'!V42)) - 'Lookup Tables'!V66)) -> 183 | I12: =IF('Model Parameters'!$H$21="Estimated Actual Demand", 'Lookup Tables'!W24, IF('Model Parameters'!$H$21="Total Licensed Demand", ('Lookup Tables'!W24 + SUM('Lookup Tables'!W34,'Lookup Tables'!W42)) - 'Lookup Tables'!W66)) -> 186 | J12: =IF('Model Parameters'!$H$21="Estimated Actual Demand", 'Lookup Tables'!X24, IF('Model Parameters'!$H$21="Total Licensed Demand", ('Lookup Tables'!X24 + SUM('Lookup Tables'!X34,'Lookup Tables'!X42)) - 'Lookup Tables'!X66)) -> 67.7 | K12: =IF('Model Parameters'!$H$21="Estimated Actual Demand", 'Lookup Tables'!Y24, IF('Model Parameters'!$H$21="Total Licensed Demand", ('Lookup Tables'!Y24 + SUM('Lookup Tables'!Y34,'Lookup Tables'!Y42)) - 'Lookup Tables'!Y66)) -> 21.6 | L12: =IF('Model Parameters'!$H$21="Estimated Actual Demand", 'Lookup Tables'!Z24, IF('Model Parameters'!$H$21="Total Licensed Demand", ('Lookup Tables'!Z24 + SUM('Lookup Tables'!Z34,'Lookup Tables'!Z42)) - 'Lookup Tables'!Z66)) -> 13.4 | M12: =IF('Model Parameters'!$H$21="Estimated Actual Demand", 'Lookup Tables'!AA24, IF('Model Parameters'!$H$21="Total Licensed Demand", ('Lookup Tables'!AA24 + SUM('Lookup Tables'!AA34,'Lookup Tables'!AA42)) - 'Lookup Tables'!AA66)) -> 16 | N12: =IF('Model Parameters'!$H$21="Estimated Actual Demand", 'Lookup Tables'!AB24, IF('Model Parameters'!$H$21="Total Licensed Demand", ('Lookup Tables'!AB24 + SUM('Lookup Tables'!AB34,'Lookup Tables'!AB42)) - 'Lookup Tables'!AB66)) -> 27.6 | O12: =IF('Model Parameters'!$H$21="Estimated Actual Demand", 'Lookup Tables'!AC24, IF('Model Parameters'!$H$21="Total Licensed Demand", ('Lookup Tables'!AC24 + SUM('Lookup Tables'!AC34,'Lookup Tables'!AC42)) - 'Lookup Tables'!AC66)) -> 20.1
B13: Environmental Flow Needs (Rearing) | C13: m3/s | H13: 4.78 | I13: 4.78 | J13: 4.78 | K13: 4.78 | L13: 4.78 | M13: 4.78
B14: Environmental Flow Needs (Spawning) | C14: m3/s | H14: 9.53 | I14: 9.53 | J14: 9.53 | K14: 9.53 | L14: 9.53
B16: Surplus/Deficit (including New Licence) | C16: m3 | D16: =D8-D34 -> -3431220.608 | E16: =E8-E34 -> -7227074.191 | F16: -2383594.522 | G16: 22020888.68 | H16: 52585474.8 | I16: -11930520.75 | J16: -29047707.98 | K16: -17086141.76 | L16: -8373073.713 | M16: -1951821.612 | N16: 3945599.777 | O16: -6156075.524 | P16: =SUM(D16:O16) -> -9035267.406
B17: Simulated Groundwater Level (including New Licence) | C17: m bgl | D17: ='Lookup Tables'!C71 - IF('Lookup Tables'!$D$76=2,(D8-D34)/('Model Parameters'!$D$13*'Model Parameters'!$D$14),IF('Lookup Tables'!$D$76=1,(D8-D34)/('Model Parameters'!$D$13*'Model Sensitivity'!$M$17))) -> 2.797401187 | E17: =D9-IF('Lookup Tables'!$D$76=2,(E8-E34)/('Model Parameters'!$D$13*'Model Parameters'!$D$14),IF('Lookup Tables'!$D$76=1,(E8-E34)/('Model Parameters'!$D$13*'Model Sensitivity'!$M$17))) -> 3.027829533 | F17: =E9-IF('Lookup Tables'!$D$76=2,(F8-F34)/('Model Parameters'!$D$13*'Model Parameters'!$D$14),IF('Lookup Tables'!$D$76=1,(F8-F34)/('Model Parameters'!$D$13*'Model Sensitivity'!$M$17))) -> 3.103828164 | G17: =F9-IF('Lookup Tables'!$D$76=2,(G8-G34)/('Model Parameters'!$D$13*'Model Parameters'!$D$14),IF('Lookup Tables'!$D$76=1,(G8-G34)/('Model Parameters'!$D$13*'Model Sensitivity'!$M$17))) -> 2.401713195 | H17: =G9-IF('Lookup Tables'!$D$76=2,(H8-H34)/('Model Parameters'!$D$13*'Model Parameters'!$D$14),IF('Lookup Tables'!$D$76=1,(H8-H34)/('Model Parameters'!$D$13*'Model Sensitivity'!$M$17))) -> 0.7250756381 | I17: =H9-IF('Lookup Tables'!$D$76=2,(I8-I34)/('Model Parameters'!$D$13*'Model Parameters'!$D$14),IF('Lookup Tables'!$D$76=1,(I8-I34)/('Model Parameters'!$D$13*'Model Sensitivity'!$M$17))) -> 1.105468879 | J17: =I9-IF('Lookup Tables'!$D$76=2,(J8-J34)/('Model Parameters'!$D$13*'Model Parameters'!$D$14),IF('Lookup Tables'!$D$76=1,(J8-J34)/('Model Parameters'!$D$13*'Model Sensitivity'!$M$17))) -> 2.031627259 | K17: =J9-IF('Lookup Tables'!$D$76=2,(K8-K34)/('Model Parameters'!$D$13*'Model Parameters'!$D$14),IF('Lookup Tables'!$D$76=1,(K8-K34)/('Model Parameters'!$D$13*'Model Sensitivity'!$M$17))) -> 2.576402543 | L17: =K9-IF('Lookup Tables'!$D$76=2,(L8-L34)/('Model Parameters'!$D$13*'Model Parameters'!$D$14),IF('Lookup Tables'!$D$76=1,(L8-L34)/('Model Parameters'!$D$13*'Model Sensitivity'!$M$17))) -> 2.843369988 | M17: =L9-IF('Lookup Tables'!$D$76=2,(M8-M34)/('Model Parameters'!$D$13*'Model Parameters'!$D$14),IF('Lookup Tables'!$D$76=1,(M8-M34)/('Model Parameters'!$D$13*'Model Sensitivity'!$M$17))) -> 2.905601953 | N17: =M9-IF('Lookup Tables'!$D$76=2,(N8-N34)/('Model Parameters'!$D$13*'Model Parameters'!$D$14),IF('Lookup Tables'!$D$76=1,(N8-N34)/('Model Parameters'!$D$13*'Model Sensitivity'!$M$17))) -> 2.779800279 | O17: =N9-IF('Lookup Tables'!$D$76=2,(O8-O34)/('Model Parameters'!$D$13*'Model Parameters'!$D$14),IF('Lookup Tables'!$D$76=1,(O8-O34)/('Model Parameters'!$D$13*'Model Sensitivity'!$M$17))) -> 2.976080858
B18: Groundwater Level Allocation Threshold | C18: m bgl | D18: 3.195 | E18: 3.195 | F18: 3.195 | G18: 3.195 | H18: 3.195 | I18: 3.195 | J18: 3.195 | K18: 3.195 | L18: 3.195 | M18: 3.195 | N18: 3.195 | O18: 3.195
B19: Volume Available for Allocation (Maximum Licensed versus Allocation Threshold) | C19: m3 | D19: =(D18-'Lookup Tables'!C100) * ('Model Parameters'!$D$14*'Model Parameters'!$D$13) -> 10841683.13 | E19: =(E18-'Lookup Tables'!D100) * ('Model Parameters'!$D$14*'Model Parameters'!$D$13) -> 3859293.737 | F19: =(F18-'Lookup Tables'!E100) * ('Model Parameters'!$D$14*'Model Parameters'!$D$13) -> 1338150.414 | G19: =(G18-'Lookup Tables'!F100) * ('Model Parameters'!$D$14*'Model Parameters'!$D$13) -> 22786034.29 | H19: =(H18-'Lookup Tables'!G100) * ('Model Parameters'!$D$14*'Model Parameters'!$D$13) -> 72130472.29 | I19: =(I18-'Lookup Tables'!H100) * ('Model Parameters'!$D$14*'Model Parameters'!$D$13) -> 55154364.34 | J19: =(J18-'Lookup Tables'!I100) * ('Model Parameters'!$D$14*'Model Parameters'!$D$13) -> 21558214.76 | K19: =(K18-'Lookup Tables'!J100) * ('Model Parameters'!$D$14*'Model Parameters'!$D$13) -> 5556825.002 | L19: =(L18-'Lookup Tables'!K100) * ('Model Parameters'!$D$14*'Model Parameters'!$D$13) -> 2721040.889 | M19: =(M18-'Lookup Tables'!L100) * ('Model Parameters'!$D$14*'Model Parameters'!$D$13) -> 7279372.877 | N19: =(N18-'Lookup Tables'!M100) * ('Model Parameters'!$D$14*'Model Parameters'!$D$13) -> 11643235.05 | O19: =(O18-'Lookup Tables'!N100) * ('Model Parameters'!$D$14*'Model Parameters'!$D$13) -> 5417089.129 | P19: =SUM(D19:O19) -> 220285775.9
B20: Similkameen River Outflow (including New Licence) | C20: m3/s | D20: =IF((D12 - (D34 / (60*60*24*'Lookup Tables'!C3))) < 0, 0, D12 - (D34 / (60*60*24*'Lookup Tables'!C3))) -> 19.1 | E20: =IF((E12 - (E34 / (60*60*24*'Lookup Tables'!D3))) < 0, 0, E12 - (E34 / (60*60*24*'Lookup Tables'!D3))) -> 17.7 | F20: =IF((F12 - (F34 / (60*60*24*'Lookup Tables'!E3))) < 0, 0, F12 - (F34 / (60*60*24*'Lookup Tables'!E3))) -> 22.9 | G20: =IF((G12 - (G34 / (60*60*24*'Lookup Tables'!F3))) < 0, 0, G12 - (G34 / (60*60*24*'Lookup Tables'!F3))) -> 58.6 | H20: =IF((H12 - (H34 / (60*60*24*'Lookup Tables'!G3))) < 0, 0, H12 - (H34 / (60*60*24*'Lookup Tables'!G3))) -> 183 | I20: =IF((I12 - (I34 / (60*60*24*'Lookup Tables'!H3))) < 0, 0, I12 - (I34 / (60*60*24*'Lookup Tables'!H3))) -> 186 | J20: =IF((J12 - (J34 / (60*60*24*'Lookup Tables'!I3))) < 0, 0, J12 - (J34 / (60*60*24*'Lookup Tables'!I3))) -> 67.7 | K20: =IF((K12 - (K34 / (60*60*24*'Lookup Tables'!J3))) < 0, 0, K12 - (K34 / (60*60*24*'Lookup Tables'!J3))) -> 21.6 | L20: =IF((L12 - (L34 / (60*60*24*'Lookup Tables'!K3))) < 0, 0, L12 - (L34 / (60*60*24*'Lookup Tables'!K3))) -> 13.4 | M20: =IF((M12 - (M34 / (60*60*24*'Lookup Tables'!L3))) < 0, 0, M12 - (M34 / (60*60*24*'Lookup Tables'!L3))) -> 16 | N20: =IF((N12 - (N34 / (60*60*24*'Lookup Tables'!M3))) < 0, 0, N12 - (N34 / (60*60*24*'Lookup Tables'!M3))) -> 27.6 | O20: =IF((O12 - (O34 / (60*60*24*'Lookup Tables'!N3))) < 0, 0, O12 - (O34 / (60*60*24*'Lookup Tables'!N3))) -> 20.1
B22: FUTURE LICENSED WATER DEMAND | C22: Units | F22: Select Demand Distribution
B24: New Surface Water Licence | C24: m3/year | F24: ANNUAL
B25: New Groundwater Licence | C25: m3/year | F25: ANNUAL
B27: FUTURE LICENSED WATER DEMAND DATA | C27: Units | D27: JAN | E27: FEB | F27: MAR | G27: APR | H27: MAY | I27: JUN | J27: JUL | K27: AUG | L27: SEP | M27: OCT | N27: NOV | O27: DEC | P27: ANNUAL TOTAL
B28: Annual Demand | C28: m3 | D28: =SUM('Lookup Tables'!R69,'Lookup Tables'!R76) -> 0 | E28: =SUM('Lookup Tables'!S69,'Lookup Tables'!S76) -> 0 | F28: =SUM('Lookup Tables'!T69,'Lookup Tables'!T76) -> 0 | G28: =SUM('Lookup Tables'!U69,'Lookup Tables'!U76) -> 0 | H28: =SUM('Lookup Tables'!V69,'Lookup Tables'!V76) -> 0 | I28: =SUM('Lookup Tables'!W69,'Lookup Tables'!W76) -> 0 | J28: =SUM('Lookup Tables'!X69,'Lookup Tables'!X76) -> 0 | K28: =SUM('Lookup Tables'!Y69,'Lookup Tables'!Y76) -> 0 | L28: =SUM('Lookup Tables'!Z69,'Lookup Tables'!Z76) -> 0 | M28: =SUM('Lookup Tables'!AA69,'Lookup Tables'!AA76) -> 0 | N28: =SUM('Lookup Tables'!AB69,'Lookup Tables'!AB76) -> 0 | O28: =SUM('Lookup Tables'!AC69,'Lookup Tables'!AC76) -> 0 | P28: =SUM(D28:O28) -> 0
B29: Seasonal Demand | C29: m3 | D29: =SUM('Lookup Tables'!R70,'Lookup Tables'!R77) -> 0 | E29: =SUM('Lookup Tables'!S70,'Lookup Tables'!S77) -> 0 | F29: =SUM('Lookup Tables'!T70,'Lookup Tables'!T77) -> 0 | G29: =SUM('Lookup Tables'!U70,'Lookup Tables'!U77) -> 0 | H29: =SUM('Lookup Tables'!V70,'Lookup Tables'!V77) -> 0 | I29: =SUM('Lookup Tables'!W70,'Lookup Tables'!W77) -> 0 | J29: =SUM('Lookup Tables'!X70,'Lookup Tables'!X77) -> 0 | K29: =SUM('Lookup Tables'!Y70,'Lookup Tables'!Y77) -> 0 | L29: =SUM('Lookup Tables'!Z70,'Lookup Tables'!Z77) -> 0 | M29: =SUM('Lookup Tables'!AA70,'Lookup Tables'!AA77) -> 0 | N29: =SUM('Lookup Tables'!AB70,'Lookup Tables'!AB77) -> 0 | O29: =SUM('Lookup Tables'!AC70,'Lookup Tables'!AC77) -> 0 | P29: =SUM(D29:O29) -> 0
B30: Other Demand | C30: m3 | D30: =SUM('Lookup Tables'!R71,'Lookup Tables'!R78) -> 0 | E30: =SUM('Lookup Tables'!S71,'Lookup Tables'!S78) -> 0 | F30: =SUM('Lookup Tables'!T71,'Lookup Tables'!T78) -> 0 | G30: =SUM('Lookup Tables'!U71,'Lookup Tables'!U78) -> 0 | H30: =SUM('Lookup Tables'!V71,'Lookup Tables'!V78) -> 0 | I30: =SUM('Lookup Tables'!W71,'Lookup Tables'!W78) -> 0 | J30: =SUM('Lookup Tables'!X71,'Lookup Tables'!X78) -> 0 | K30: =SUM('Lookup Tables'!Y71,'Lookup Tables'!Y78) -> 0 | L30: =SUM('Lookup Tables'!Z71,'Lookup Tables'!Z78) -> 0 | M30: =SUM('Lookup Tables'!AA71,'Lookup Tables'!AA78) -> 0 | N30: =SUM('Lookup Tables'!AB71,'Lookup Tables'!AB78) -> 0 | O30: =SUM('Lookup Tables'!AC71,'Lookup Tables'!AC78) -> 0 | P30: =SUM(D30:O30) -> 0
B32: If 'Other Demand', define monthly distribution | C32: % | P32: =SUM(D32:O32) -> 0
B34: Total Demand | C34: m3 | D34: =SUM('Lookup Tables'!R73,'Lookup Tables'!R80) -> 0 | E34: =SUM('Lookup Tables'!S73,'Lookup Tables'!S80) -> 0 | F34: =SUM('Lookup Tables'!T73,'Lookup Tables'!T80) -> 0 | G34: =SUM('Lookup Tables'!U73,'Lookup Tables'!U80) -> 0 | H34: =SUM('Lookup Tables'!V73,'Lookup Tables'!V80) -> 0 | I34: =SUM('Lookup Tables'!W73,'Lookup Tables'!W80) -> 0 | J34: =SUM('Lookup Tables'!X73,'Lookup Tables'!X80) -> 0 | K34: =SUM('Lookup Tables'!Y73,'Lookup Tables'!Y80) -> 0 | L34: =SUM('Lookup Tables'!Z73,'Lookup Tables'!Z80) -> 0 | M34: =SUM('Lookup Tables'!AA73,'Lookup Tables'!AA80) -> 0 | N34: =SUM('Lookup Tables'!AB73,'Lookup Tables'!AB80) -> 0 | O34: =SUM('Lookup Tables'!AC73,'Lookup Tables'!AC80) -> 0 | P34: =SUM(D34:O34) -> 0
B60: SURFACE WATER ONLY | C60: Units | D60: JAN | E60: FEB | F60: MAR | G60: APR | H60: MAY | I60: JUN | J60: JUL | K60: AUG | L60: SEP | M60: OCT | N60: NOV | O60: DEC | P60: ANNUAL TOTAL
B61: Surplus/Deficit | C61: m3 | D61: ='Water Budget'!D38 -> -3409659.504 | E61: ='Water Budget'!E38 -> -7110668.739 | F61: ='Water Budget'!F38 -> -3606319.917 | G61: ='Water Budget'!G38 -> 20667391.97 | H61: ='Water Budget'!H38 -> 52355218.25 | I61: ='Water Budget'!I38 -> -10664502.16 | J61: ='Water Budget'!J38 -> -26947976.31 | K61: ='Water Budget'!K38 -> -15147254.15 | L61: ='Water Budget'!L38 -> -7281227.497 | M61: ='Water Budget'!M38 -> -2315919.44 | N61: ='Water Budget'!N38 -> 4122152.258 | O61: ='Water Budget'!O38 -> -6022298.662 | P61: ='Water Budget'!P38 -> -5361063.899
B62: Δh Surface Water Component | C62: m | D62: ='Water Budget'!D39 -> -0.1087137314 | E62: ='Water Budget'!E39 -> -0.2267168702 | F62: ='Water Budget'!F39 -> -0.1149840605 | G62: ='Water Budget'!G39 -> 0.6589600213 | H62: ='Water Budget'!H39 -> 1.669296048 | I62: ='Water Budget'!I39 -> -0.3400274491 | J62: ='Water Budget'!J39 -> -0.8592104446 | K62: ='Water Budget'!K39 -> -0.4829557077 | L62: ='Water Budget'!L39 -> -0.2321549731 | M62: ='Water Budget'!M39 -> -0.07384087577 | N62: ='Water Budget'!N39 -> 0.1314308812 | O62: ='Water Budget'!O39 -> -0.1920152315
B63: Δh Surface Water Component including New Licence | C63: m | D63: =IF('Lookup Tables'!$D$76=2,(D61-'Lookup Tables'!R73)/('Model Parameters'!$D$13*'Model Parameters'!$D$14),IF('Lookup Tables'!$D$76=1,(D61-'Lookup Tables'!R73)/('Model Parameters'!$D$13*'Model Sensitivity'!$M$17))) -> -0.1087137314 | E63: =IF('Lookup Tables'!$D$76=2,(E61-'Lookup Tables'!S73)/('Model Parameters'!$D$13*'Model Parameters'!$D$14),IF('Lookup Tables'!$D$76=1,(E61-'Lookup Tables'!S73)/('Model Parameters'!$D$13*'Model Sensitivity'!$M$17))) -> -0.2267168702 | F63: =IF('Lookup Tables'!$D$76=2,(F61-'Lookup Tables'!T73)/('Model Parameters'!$D$13*'Model Parameters'!$D$14),IF('Lookup Tables'!$D$76=1,(F61-'Lookup Tables'!T73)/('Model Parameters'!$D$13*'Model Sensitivity'!$M$17))) -> -0.1149840605 | G63: =IF('Lookup Tables'!$D$76=2,(G61-'Lookup Tables'!U73)/('Model Parameters'!$D$13*'Model Parameters'!$D$14),IF('Lookup Tables'!$D$76=1,(G61-'Lookup Tables'!U73)/('Model Parameters'!$D$13*'Model Sensitivity'!$M$17))) -> 0.6589600213 | H63: =IF('Lookup Tables'!$D$76=2,(H61-'Lookup Tables'!V73)/('Model Parameters'!$D$13*'Model Parameters'!$D$14),IF('Lookup Tables'!$D$76=1,(H61-'Lookup Tables'!V73)/('Model Parameters'!$D$13*'Model Sensitivity'!$M$17))) -> 1.669296048 | I63: =IF('Lookup Tables'!$D$76=2,(I61-'Lookup Tables'!W73)/('Model Parameters'!$D$13*'Model Parameters'!$D$14),IF('Lookup Tables'!$D$76=1,(I61-'Lookup Tables'!W73)/('Model Parameters'!$D$13*'Model Sensitivity'!$M$17))) -> -0.3400274491 | J63: =IF('Lookup Tables'!$D$76=2,(J61-'Lookup Tables'!X73)/('Model Parameters'!$D$13*'Model Parameters'!$D$14),IF('Lookup Tables'!$D$76=1,(J61-'Lookup Tables'!X73)/('Model Parameters'!$D$13*'Model Sensitivity'!$M$17))) -> -0.8592104446 | K63: =IF('Lookup Tables'!$D$76=2,(K61-'Lookup Tables'!Y73)/('Model Parameters'!$D$13*'Model Parameters'!$D$14),IF('Lookup Tables'!$D$76=1,(K61-'Lookup Tables'!Y73)/('Model Parameters'!$D$13*'Model Sensitivity'!$M$17))) -> -0.4829557077 | L63: =IF('Lookup Tables'!$D$76=2,(L61-'Lookup Tables'!Z73)/('Model Parameters'!$D$13*'Model Parameters'!$D$14),IF('Lookup Tables'!$D$76=1,(L61-'Lookup Tables'!Z73)/('Model Parameters'!$D$13*'Model Sensitivity'!$M$17))) -> -0.2321549731 | M63: =IF('Lookup Tables'!$D$76=2,(M61-'Lookup Tables'!AA73)/('Model Parameters'!$D$13*'Model Parameters'!$D$14),IF('Lookup Tables'!$D$76=1,(M61-'Lookup Tables'!AA73)/('Model Parameters'!$D$13*'Model Sensitivity'!$M$17))) -> -0.07384087577 | N63: =IF('Lookup Tables'!$D$76=2,(N61-'Lookup Tables'!AB73)/('Model Parameters'!$D$13*'Model Parameters'!$D$14),IF('Lookup Tables'!$D$76=1,(N61-'Lookup Tables'!AB73)/('Model Parameters'!$D$13*'Model Sensitivity'!$M$17))) -> 0.1314308812 | O63: =IF('Lookup Tables'!$D$76=2,(O61-'Lookup Tables'!AC73)/('Model Parameters'!$D$13*'Model Parameters'!$D$14),IF('Lookup Tables'!$D$76=1,(O61-'Lookup Tables'!AC73)/('Model Parameters'!$D$13*'Model Sensitivity'!$M$17))) -> -0.1920152315
B65: GROUNDWATER ONLY | C65: Units | D65: JAN | E65: FEB | F65: MAR | G65: APR | H65: MAY | I65: JUN | J65: JUL | K65: AUG | L65: SEP | M65: OCT | N65: NOV | O65: DEC | P65: ANNUAL TOTAL
B66: Surplus/Deficit | C66: m3 | D66: ='Water Budget'!D42 -> -21561.1035 | E66: ='Water Budget'!E42 -> -116405.4517 | F66: ='Water Budget'!F42 -> 1222725.395 | G66: ='Water Budget'!G42 -> 1353496.707 | H66: ='Water Budget'!H42 -> 230256.5423 | I66: ='Water Budget'!I42 -> -1266018.591 | J66: ='Water Budget'!J42 -> -2099731.663 | K66: ='Water Budget'!K42 -> -1938887.61 | L66: ='Water Budget'!L42 -> -1091846.215 | M66: ='Water Budget'!M42 -> 364097.8271 | N66: ='Water Budget'!N42 -> -176552.4808 | O66: ='Water Budget'!O42 -> -133776.8627 | P66: ='Water Budget'!P42 -> -3674203.507
B67: Δh Groundwater Component | C67: m | D67: ='Water Budget'!D43 -> -0.0006874551582 | E67: ='Water Budget'!E43 -> -0.003711476468 | F67: ='Water Budget'!F43 -> 0.03898542947 | G67: ='Water Budget'!G43 -> 0.04315494766 | H67: ='Water Budget'!H43 -> 0.007341509572 | I67: ='Water Budget'!I43 -> -0.04036579162 | J67: ='Water Budget'!J43 -> -0.06694793535 | K67: ='Water Budget'!K43 -> -0.06181957657 | L67: ='Water Budget'!L43 -> -0.03481247205 | M67: ='Water Budget'!M43 -> 0.0116089109 | N67: ='Water Budget'!N43 -> -0.005629206949 | O67: ='Water Budget'!O43 -> -0.004265347287
B68: Δh Groundwater Component Only including New Licence | C68: m | D68: =IF('Lookup Tables'!$D$76=2,(D66-'Lookup Tables'!R80)/('Model Parameters'!$D$13*'Model Parameters'!$D$14),IF('Lookup Tables'!$D$76=1,(D66-'Lookup Tables'!R80)/('Model Parameters'!$D$13*'Model Sensitivity'!$M$17))) -> -0.0006874551582 | E68: =IF('Lookup Tables'!$D$76=2,(E66-'Lookup Tables'!S80)/('Model Parameters'!$D$13*'Model Parameters'!$D$14),IF('Lookup Tables'!$D$76=1,(E66-'Lookup Tables'!S80)/('Model Parameters'!$D$13*'Model Sensitivity'!$M$17))) -> -0.003711476468 | F68: =IF('Lookup Tables'!$D$76=2,(F66-'Lookup Tables'!T80)/('Model Parameters'!$D$13*'Model Parameters'!$D$14),IF('Lookup Tables'!$D$76=1,(F66-'Lookup Tables'!T80)/('Model Parameters'!$D$13*'Model Sensitivity'!$M$17))) -> 0.03898542947 | G68: =IF('Lookup Tables'!$D$76=2,(G66-'Lookup Tables'!U80)/('Model Parameters'!$D$13*'Model Parameters'!$D$14),IF('Lookup Tables'!$D$76=1,(G66-'Lookup Tables'!U80)/('Model Parameters'!$D$13*'Model Sensitivity'!$M$17))) -> 0.04315494766 | H68: =IF('Lookup Tables'!$D$76=2,(H66-'Lookup Tables'!V80)/('Model Parameters'!$D$13*'Model Parameters'!$D$14),IF('Lookup Tables'!$D$76=1,(H66-'Lookup Tables'!V80)/('Model Parameters'!$D$13*'Model Sensitivity'!$M$17))) -> 0.007341509572 | I68: =IF('Lookup Tables'!$D$76=2,(I66-'Lookup Tables'!W80)/('Model Parameters'!$D$13*'Model Parameters'!$D$14),IF('Lookup Tables'!$D$76=1,(I66-'Lookup Tables'!W80)/('Model Parameters'!$D$13*'Model Sensitivity'!$M$17))) -> -0.04036579162 | J68: =IF('Lookup Tables'!$D$76=2,(J66-'Lookup Tables'!X80)/('Model Parameters'!$D$13*'Model Parameters'!$D$14),IF('Lookup Tables'!$D$76=1,(J66-'Lookup Tables'!X80)/('Model Parameters'!$D$13*'Model Sensitivity'!$M$17))) -> -0.06694793535 | K68: =IF('Lookup Tables'!$D$76=2,(K66-'Lookup Tables'!Y80)/('Model Parameters'!$D$13*'Model Parameters'!$D$14),IF('Lookup Tables'!$D$76=1,(K66-'Lookup Tables'!Y80)/('Model Parameters'!$D$13*'Model Sensitivity'!$M$17))) -> -0.06181957657 | L68: =IF('Lookup Tables'!$D$76=2,(L66-'Lookup Tables'!Z80)/('Model Parameters'!$D$13*'Model Parameters'!$D$14),IF('Lookup Tables'!$D$76=1,(L66-'Lookup Tables'!Z80)/('Model Parameters'!$D$13*'Model Sensitivity'!$M$17))) -> -0.03481247205 | M68: =IF('Lookup Tables'!$D$76=2,(M66-'Lookup Tables'!AA80)/('Model Parameters'!$D$13*'Model Parameters'!$D$14),IF('Lookup Tables'!$D$76=1,(M66-'Lookup Tables'!AA80)/('Model Parameters'!$D$13*'Model Sensitivity'!$M$17))) -> 0.0116089109 | N68: =IF('Lookup Tables'!$D$76=2,(N66-'Lookup Tables'!AB80)/('Model Parameters'!$D$13*'Model Parameters'!$D$14),IF('Lookup Tables'!$D$76=1,(N66-'Lookup Tables'!AB80)/('Model Parameters'!$D$13*'Model Sensitivity'!$M$17))) -> -0.005629206949 | O68: =IF('Lookup Tables'!$D$76=2,(O66-'Lookup Tables'!AC80)/('Model Parameters'!$D$13*'Model Parameters'!$D$14),IF('Lookup Tables'!$D$76=1,(O66-'Lookup Tables'!AC80)/('Model Parameters'!$D$13*'Model Sensitivity'!$M$17))) -> -0.004265347287

Sheet Definitions
B1: =Main!$B$11 -> Similkameen Valley Aquifer
B2: =CONCATENATE("Aquifer #", Main!$B$12) -> Aquifer #259
B5: MODEL SCENARIO | L5: WATER BALANCE OUTPUTS
B6: Normal: Represents 'average' conditions based on average data for the latest climate normal period (i.e., 1981-2010).
B7: Dry: Represents 'dry' conditions based on data from 2001. | L7: Evaporation Direct from Similkameen River
B8: Wet: Represents 'wet' conditions based on data from 1991. | L8: Annual Total Evaporation: Total annual evaporation for the current scenario (i.e., 'Normal', 'Dry', 'Wet', or 'Other'). Value is calculated based on Evaporation data entered on 'Input Data' tab. Included here for user reference only. Evaporation data included in the water budget is taken from the gridded climate dataset used within the AWDM (van der Gulik et al. 2013).
B9: Other: Represents user-defined conditions based on data entered into 'Other' categories on 'Input Data' tab.
L10: Surface Water
B11: SYSTEM CHARACTERISTICS | L11: Mean Annual Similkameen River Outflow: Estimated mean annual discharge for the Similkameen River at the downstream boundary of the Similkameen Valley Aquifer for the current scenario (i.e., 'Normal', 'Dry', 'Wet', or 'Other'). Value is calculated based on Similkameen River Outflow data entered on the 'Input Data' tab. Included here for reference only. Similkameen River Outflow estimates included in the water budget (enetered on the 'Input Data' tab) is based on streamflow records from WSC Station 08NL022 (Similkameen River near Nighthawk) for each climate scenario scaled to the U.S. border (using a drainage area of 8,117 km2).
B13: Aquifer Characteristics | L13: Groundwater Outflow
B14: Aquifer Length: Length of the Similkameen Aquifer based on information taken from BC Water Resources Atlas (http://maps.gov.bc.ca/ess/sv/wrbc/). | L14: Outflow at Downstream Aquifer Boundary: Groundwater outflow calculated at the downstream boundary of the Similkameen Valley Aquifer using Darcy's Law. Below parameters are used within the Darcy's Law equation.
B15: Aquifer Area: Total surface area of the Similkameen Valley Aquifer (including the Similkameen River) based on information taken from BC Water Resources Atlas (http://maps.gov.bc.ca/ess/sv/wrbc/). | L15: Aquifer Width: Aquifer width at the downstream boundary of the Similkameen Valley Aquifer based on information taken from BC Water Resources Atlas (http://maps.gov.bc.ca/ess/sv/wrbc/).
B16: Specific Yield: Level of saturation in an unconfined unit with changes in the amount of storage. Suggested range for Similkameen Valley Aquifer is between 0.15 and 0.26 (Fetter 1994 and Freeze et. al. 1979). | L16: Aquifer Depth: Aquifer depth at the downstream boundary of the Similkameen Valley Aquifer.
L17: Hydraulic Conductivity (K): Represents the permeability of the Similkameen Valley Aquifer at the downstream boundary. Suggested range for Similkameen Valley Aquifer is between 8 and 864 m/d (Freeze et. al. 1979).
B18: Similkameen River Characteristics | L18: Hydraulic Gradient (i): Represents the difference between two groundwater levels over a known distance. Herein, i is estimated using groundwater levels recorded at Princeton and Keremeos. Suggested range is 0.001 to 0.1.
B19: Similkameen River Surface Area: Total surface area of the Similkameen River within the Similkameen Valley Aquifer boundary.
L20: Water Demand
B21: WATER BALANCE INPUTS | L21: Select Water Demand Scenario
L22: → Estimated Actual Demand: Water balance calculations include only 'Estimated Existing Water Demand' for the current scenario (i.e., 'Normal', 'Dry', 'Wet', or 'Other') for both surface water and groundwater based on data entered on the 'Input Data' tab. Water demand data included in the water budget is taken from the AWDM (van der Gulik at al. 2013).
B23: Precipitation | L23: → Total Licensed Demand: Water balance calculations include only 'Total Existing Licensed Water Demand' for the current scenario (i.e., 'Normal', 'Dry', 'Wet', or 'Other') values based on data entered on the 'Input Data' tab. Total licensed demand data included in the water budget was estimated from existing water licenses within the Similkameen River.
B24: Annual Total Precipitation: Total annual precipitation for the current scenario (i.e., 'Normal', 'Dry', 'Wet', or 'Other'). Value is calculated based on Precipitation data entered on 'Input Data' tab. Included here for user reference only. Precipitation data included in the water budget (entered on the 'Input Data' tab) is taken from precipitation records at Princeton A Cilmate Station (Station ID: 1126510) for the period 1981-2010 (Normal), 2001 (Dry), 1991 (Wet). | L24: Estimated Existing Surface Water Demand
L25: Mean Annual Surface Water Demand: Estimated mean annual surface water demand within the Similkameen Valley Aquifer boundary for the current scenario (i.e., 'Normal', 'Dry', 'Wet', or 'Other'). Value is calculated based on 'Existing Surface Water Demand' data entered on the 'Input Data' tab. Included here for user reference only.
B26: Surface Water | L26: Mean Seasonal Surface Water Demand: Estimated mean seasonal surface water demand within the Similkameen Valley Aquifer boundary for the current scenario (i.e., 'Normal', 'Dry', 'Wet', or 'Other'). Value is calculated based on 'Existing Surface Water Demand' data entered on the 'Input Data' tab. Included here for user reference only.
B27: Mean Annual Similkameen River Inflow: Estimated mean annual discharge for the Similkameen River at the upstream boundary of the Similakmeen Valley Aquifer for the current scenario (i.e., 'Normal', 'Dry', 'Wet', or 'Other'). Value is calculated based on Similkameen River Inflow data entered on the 'Input Data' tab. Included here for user reference only. Similkameen River Inflow is the sum of streamflows recorded at the WSC hydrometric stations Similkameen River at Princeton (WSC Station 08NL007) and Tulameen River at Princeton (WSC Station 08NL024) for each of the climate scenarios. | L27: Estimated Existing Groundwater Demand
B28: Mean Annual Tributary Inflow: Estimated mean annual discharge for all tributary flow into the Similkameen River within the Similkameen Valley Aquifer boundary for the current scenario (i.e., 'Normal', 'Dry', 'Wet', or 'Other'). Value is calculated based on Tributary Inflow data entered on the 'Input Data' tab. Included here for user reference only. A summary of Tributary Inflow estimates is provided in the accompanying report. | L28: Mean Annual Groundwater Demand: Estimated mean annual groundwater demand within the Similkameen Valley Aquifer boundary for the current scenario (i.e., 'Normal', 'Dry', 'Wet', or 'Other'). Value is calculated based on 'Existing Groundwater Demand' data entered on the 'Input Data' tab. Included here for user reference only.
L29: Mean Seasonal Groundwater Demand: Estimated mean seasonal Groundwater demand within the Similkameen Valley Aquifer boundary for the current scenario (i.e., 'Normal', 'Dry', 'Wet', or 'Other'). Value is calculated based on 'Existing Groundwater Demand' data entered on the 'Input Data' tab. Included here for user reference only.
B30: Aquifer Recharge | L30: Total Existing Licensed Water Demand
B31: Select Aquifer Recharge Option: | L31: Mean Annual Licensed Water Demand: Mean annual total licensed water demand within the Similkameen Valley Aquifer. Total licensed water demand values do not consider the current scenario (i.e., 'Normal', 'Dry', 'Wet', or 'Other') since water licences are not conditional on climate conditions.
B32: → Fixed Percentage: Total annual precipitation is distributed evenly across all 12 months, and the select 'Percentage of Precipitation Recharging Aquifer' is then applied to each monthly value. Accordingly, 'Aquifer Recharge' is assumed constant throughout the year. | L32: Mean Seasonal Licensed Water Demand: Mean seasonal total licensed water demand within the Similkameen Valley Aquifer. Total licensed water demand values do not consider the current scenario (i.e., 'Normal', 'Dry', 'Wet', or 'Other') since water licences are not conditional on climate conditions.
B33: → Monthly Distribution: Total annual precipitation is distributed monthly based on monthly distribution defined on the 'Input Data' tab. The select 'Percentage of Precipitation Recharging Aquifer' is then applied to each monthly value. Accordingly, 'Aquifer Recharge' varies throughout the year.
B34: Percentage of Precipitation Recharging Aquifer: The percentage of precipitation that recharges the aquifer. Recharge only occurs across the 'residual' aquifer area (i.e., Total aquifer area - Similkameen River Surface Area). The suggested range is 10 to 20 % for the sand and gravel aquifer (Golder 2005).
B36: Water Demand
B37: Select Irrigation Return Option:
B38: → Fixed Percentage: A fixed percentage of total monthly 'Seasonal' water demand (i.e., Seasonal water demand from both surface water and groundwater sources)
B39: → Monthly Distribution: A percentage of total monthly 'Seasonal' water demand (i.e., Seasonal water demand from both surface water and groundwater sources), based on the monthly distribution defined by the user on the 'Input Data' tab.
B40: Irrigation Return to Aquifer: If 'Fixed Percentage' is selected, define the percentage of total monthly 'Seasonal' water demand (i.e., Seasonal water demand from both surface water and groundwater sources) to return to the aquifer as 'Irrigation Return'.
B42: Groundwater Inflow
B43: Inflow at Upstream Aquifer Boundary: Groundwater inflow calculated at the upstream boundary of the Similkameen Valley Aquifer using Darcy's Law. Below parameters are used within the Darcy's Law equation.
B44: Aquifer Width: Aquifer width at the upstream boundary of the Similkameen Valley Aquifer based on information taken from BC Water Resources Atlas (http://maps.gov.bc.ca/ess/sv/wrbc/).
B45: Aquifer Depth: Aquifer depth at the upstream boundary of the Similkameen Valley Aquifer based on information taken from BC Water Resources Atlas (http://maps.gov.bc.ca/ess/sv/wrbc/).
B46: Hydraulic Conductivity (K): Represents the permeability of the Similkameen Valley Aquifer at the upstream boundary. Suggested range for Similkameen Valley Aquifer is between 8 and 864 m/d (Freeze et. al. 1979).
B47: Hydraulic Gradient (i): Represents the difference between two groundwater levels over a known distance. Herein, i is estimated using groundwater levels recorded at Princeton and Keremeos. Suggested range is 0.001 to 0.1.
B49: Mountain Block Recharge
B50: Mountain Block Recharge (MBR) is the collective name for the fractured aquifer on both sides and below the unconsolidated aquifer which interacts with groundwater flow into the Similkameen Valley Aquifer.
B51: Select MBR Method
B52: → Darcy Equation: MBR is calculated using Darcy's Law Equation, similar to Groundwater Inflow/Outflow. However, K is typically much lower for MBR estimates with a suggested value for the Similkameen Valley Aquifer of 0.0086 m/d (Voeckler 2012).
B53: → Neilson-Welch: MBR is calculated using the Nielson-Welch and Allen (2007) method. This method uses a 'Neilson-Welch Flux Rate' with a typical range between 30 and 50 mm/year.
B54: Aquifer Length: Aquifer length based on information taken from BC Water Resources Atlas (http://maps.gov.bc.ca/ess/sv/wrbc/).
B55: Aquifer Depth: Mean aquifer depth along the length of the Similkameen Valley Aquifer.
B56: Neilson-Welch Flux Rate (30-50 mm/y): This term is only used if 'Neilson-Welch' is selected for the MBR method. This term replaces K within the Neilson-Welch and Allen MBR estimation method. Suggested range for Similkameen Valley Aquifer is between 30 and 50 mm/year (Nielson-Welch and Allen 2007).
B57: Hydraulic Conductivity (K): This term is only used if 'Darcy Equation' is selected for the MBR method. K represents the permeability of the Similkameen Valley Aquifer at the boundary with fractured aquifer on both sides and below the Similkameen Valley Aquifer. Suggested value for the Similkameen Valley Aquifer is 0.0086 m/d (Voeckler 2012).
B58: Hydraulic Gradient (i): Represents the difference between two groundwater levels over a known distance. Due to the steep nature of the Similkameen Valley, the estimated suggested range for the Similkameen Valley Aquifer is between 0.001 and 0.1.

Sheet Lookup Tables
B2: Number of Days in Month | C2: JAN | D2: FEB | E2: MAR | F2: APR | G2: MAY | H2: JUN | I2: JUL | J2: AUG | K2: SEP | L2: OCT | M2: NOV | N2: DEC | O2: ANNUAL TOTAL | Q2: Water Demand - Monthly Distribution | R2: JAN | S2: FEB | T2: MAR | U2: APR | V2: MAY | W2: JUN | X2: JUL | Y2: AUG | Z2: SEP | AA2: OCT | AB2: NOV | AC2: DEC | AD2: ANNUAL TOTAL
B3: Result to use for model run | C3: 31 | D3: 28 | E3: 31 | F3: 30 | G3: 31 | H3: 30 | I3: 31 | J3: 31 | K3: 30 | L3: 31 | M3: 30 | N3: 31 | O3: =SUM(C3:N3) -> 365 | Q3: ANNUAL | R3: 0.056 | S3: 0.048 | T3: 0.053 | U3: 0.067 | V3: 0.105 | W3: 0.11 | X3: 0.163 | Y3: 0.149 | Z3: 0.092 | AA3: 0.061 | AB3: 0.046 | AC3: 0.05 | AD3: =SUM(R3:AC3) -> 1
Q4: SEASONAL | R4: 0 | S4: 0 | T4: 0 | U4: 0.01 | V4: 0.08 | W4: 0.21 | X4: 0.29 | Y4: 0.26 | Z4: 0.15 | AA4: 0 | AB4: 0 | AC4: 0 | AD4: =SUM(R4:AC4) -> 1
B5: WATER BALANCE INPUTS | Q5: OTHER
Q6: Other Demand | R6: ='Model Output'!D32/100 -> 0 | S6: ='Model Output'!E32/100 -> 0 | T6: ='Model Output'!F32/100 -> 0 | U6: ='Model Output'!G32/100 -> 0 | V6: ='Model Output'!H32/100 -> 0 | W6: ='Model Output'!I32/100 -> 0 | X6: ='Model Output'!J32/100 -> 0 | Y6: ='Model Output'!K32/100 -> 0 | Z6: ='Model Output'!L32/100 -> 0 | AA6: ='Model Output'!M32/100 -> 0 | AB6: ='Model Output'!N32/100 -> 0 | AC6: ='Model Output'!O32/100 -> 0 | AD6: =SUM(R6:AC6) -> 0
B7: Precipitation Data (mm/month) | C7: JAN | D7: FEB | E7: MAR | F7: APR | G7: MAY | H7: JUN | I7: JUL | J7: AUG | K7: SEP | L7: OCT | M7: NOV | N7: DEC | O7: ANNUAL TOTAL
B8: NORMAL | C8: ='Input Data'!D8 -> 39.7 | D8: ='Input Data'!E8 -> 20.5 | E8: ='Input Data'!F8 -> 16.5 | F8: ='Input Data'!G8 -> 18.4 | G8: ='Input Data'!H8 -> 29.6 | H8: ='Input Data'!I8 -> 37.6 | I8: ='Input Data'!J8 -> 29.6 | J8: ='Input Data'!K8 -> 24.3 | K8: ='Input Data'!L8 -> 23.8 | L8: ='Input Data'!M8 -> 26.1 | M8: ='Input Data'!N8 -> 44.5 | N8: ='Input Data'!O8 -> 36.4 | O8: ='Input Data'!P8 -> 347 | Q8: WATER BALANCE OUTPUTS
B9: DRY | C9: ='Input Data'!D9 -> 19.6 | D9: ='Input Data'!E9 -> 21.3 | E9: ='Input Data'!F9 -> 16.2 | F9: ='Input Data'!G9 -> 11.9 | G9: ='Input Data'!H9 -> 7.4 | H9: ='Input Data'!I9 -> 21.3 | I9: ='Input Data'!J9 -> 14.3 | J9: ='Input Data'!K9 -> 2.2 | K9: ='Input Data'!L9 -> 6.8 | L9: ='Input Data'!M9 -> 15.9 | M9: ='Input Data'!N9 -> 26.4 | N9: ='Input Data'!O9 -> 26.3 | O9: ='Input Data'!P9 -> 189.6
B10: WET | C10: ='Input Data'!D10 -> 35.9 | D10: ='Input Data'!E10 -> 23.3 | E10: ='Input Data'!F10 -> 20.4 | F10: ='Input Data'!G10 -> 40.2 | G10: ='Input Data'!H10 -> 54.2 | H10: ='Input Data'!I10 -> 62.2 | I10: ='Input Data'!J10 -> 24 | J10: ='Input Data'!K10 -> 42.6 | K10: ='Input Data'!L10 -> 5.2 | L10: ='Input Data'!M10 -> 19 | M10: ='Input Data'!N10 -> 37.4 | N10: ='Input Data'!O10 -> 30.4 | O10: ='Input Data'!P10 -> 394.8 | Q10: Evaporation Data (mm/month) | R10: JAN | S10: FEB | T10: MAR | U10: APR | V10: MAY | W10: JUN | X10: JUL | Y10: AUG | Z10: SEP | AA10: OCT | AB10: NOV | AC10: DEC | AD10: ANNUAL TOTAL
B11: OTHER | C11: ='Input Data'!D11 -> 0 | D11: ='Input Data'!E11 -> 0 | E11: ='Input Data'!F11 -> 0 | F11: ='Input Data'!G11 -> 0 | G11: ='Input Data'!H11 -> 0 | H11: ='Input Data'!I11 -> 0 | I11: ='Input Data'!J11 -> 0 | J11: ='Input Data'!K11 -> 0 | K11: ='Input Data'!L11 -> 0 | L11: ='Input Data'!M11 -> 0 | M11: ='Input Data'!N11 -> 0 | N11: ='Input Data'!O11 -> 0 | O11: ='Input Data'!P11 -> 0 | Q11: NORMAL | R11: ='Input Data'!T8 -> 18.3 | S11: ='Input Data'!U8 -> 27.4 | T11: ='Input Data'!V8 -> 57.6 | U11: ='Input Data'!W8 -> 89 | V11: ='Input Data'!X8 -> 127.7 | W11: ='Input Data'!Y8 -> 143.8 | X11: ='Input Data'!Z8 -> 165.4 | Y11: ='Input Data'!AA8 -> 147.6 | Z11: ='Input Data'!AB8 -> 98.1 | AA11: ='Input Data'!AC8 -> 52.9 | AB11: ='Input Data'!AD8 -> 23.7 | AC11: ='Input Data'!AE8 -> 15.9 | AD11: ='Input Data'!AF8 -> 967.4
Q12: DRY | R12: ='Input Data'!T9 -> 18.4 | S12: ='Input Data'!U9 -> 25.3 | T12: ='Input Data'!V9 -> 57.9 | U12: ='Input Data'!W9 -> 84.6 | V12: ='Input Data'!X9 -> 135.2 | W12: ='Input Data'!Y9 -> 134.8 | X12: ='Input Data'!Z9 -> 161.7 | Y12: ='Input Data'!AA9 -> 155.3 | Z12: ='Input Data'!AB9 -> 104.7 | AA12: ='Input Data'!AC9 -> 49.3 | AB12: ='Input Data'!AD9 -> 27.2 | AC12: ='Input Data'!AE9 -> 16.8 | AD12: ='Input Data'!AF9 -> 971.2
B13: Result to use for model run | C13: =IF('Model Parameters'!$D$7="NORMAL",'Lookup Tables'!C$8,IF('Model Parameters'!$D$7="DRY",'Lookup Tables'!C$9,IF('Model Parameters'!$D$7="WET",'Lookup Tables'!C$10,IF('Model Parameters'!$D$7="OTHER",'Lookup Tables'!C$11,"Select Scenario")))) -> 39.7 | D13: =IF('Model Parameters'!$D$7="NORMAL",'Lookup Tables'!D$8,IF('Model Parameters'!$D$7="DRY",'Lookup Tables'!D$9,IF('Model Parameters'!$D$7="WET",'Lookup Tables'!D$10,IF('Model Parameters'!$D$7="OTHER",'Lookup Tables'!D$11,"Select Scenario")))) -> 20.5 | E13: =IF('Model Parameters'!$D$7="NORMAL",'Lookup Tables'!E$8,IF('Model Parameters'!$D$7="DRY",'Lookup Tables'!E$9,IF('Model Parameters'!$D$7="WET",'Lookup Tables'!E$10,IF('Model Parameters'!$D$7="OTHER",'Lookup Tables'!E$11,"Select Scenario")))) -> 16.5 | F13: =IF('Model Parameters'!$D$7="NORMAL",'Lookup Tables'!F$8,IF('Model Parameters'!$D$7="DRY",'Lookup Tables'!F$9,IF('Model Parameters'!$D$7="WET",'Lookup Tables'!F$10,IF('Model Parameters'!$D$7="OTHER",'Lookup Tables'!F$11,"Select Scenario")))) -> 18.4 | G13: =IF('Model Parameters'!$D$7="NORMAL",'Lookup Tables'!G$8,IF('Model Parameters'!$D$7="DRY",'Lookup Tables'!G$9,IF('Model Parameters'!$D$7="WET",'Lookup Tables'!G$10,IF('Model Parameters'!$D$7="OTHER",'Lookup Tables'!G$11,"Select Scenario")))) -> 29.6 | H13: =IF('Model Parameters'!$D$7="NORMAL",'Lookup Tables'!H$8,IF('Model Parameters'!$D$7="DRY",'Lookup Tables'!H$9,IF('Model Parameters'!$D$7="WET",'Lookup Tables'!H$10,IF('Model Parameters'!$D$7="OTHER",'Lookup Tables'!H$11,"Select Scenario")))) -> 37.6 | I13: =IF('Model Parameters'!$D$7="NORMAL",'Lookup Tables'!I$8,IF('Model Parameters'!$D$7="DRY",'Lookup Tables'!I$9,IF('Model Parameters'!$D$7="WET",'Lookup Tables'!I$10,IF('Model Parameters'!$D$7="OTHER",'Lookup Tables'!I$11,"Select Scenario")))) -> 29.6 | J13: =IF('Model Parameters'!$D$7="NORMAL",'Lookup Tables'!J$8,IF('Model Parameters'!$D$7="DRY",'Lookup Tables'!J$9,IF('Model Parameters'!$D$7="WET",'Lookup Tables'!J$10,IF('Model Parameters'!$D$7="OTHER",'Lookup Tables'!J$11,"Select Scenario")))) -> 24.3 | K13: =IF('Model Parameters'!$D$7="NORMAL",'Lookup Tables'!K$8,IF('Model Parameters'!$D$7="DRY",'Lookup Tables'!K$9,IF('Model Parameters'!$D$7="WET",'Lookup Tables'!K$10,IF('Model Parameters'!$D$7="OTHER",'Lookup Tables'!K$11,"Select Scenario")))) -> 23.8 | L13: =IF('Model Parameters'!$D$7="NORMAL",'Lookup Tables'!L$8,IF('Model Parameters'!$D$7="DRY",'Lookup Tables'!L$9,IF('Model Parameters'!$D$7="WET",'Lookup Tables'!L$10,IF('Model Parameters'!$D$7="OTHER",'Lookup Tables'!L$11,"Select Scenario")))) -> 26.1 | M13: =IF('Model Parameters'!$D$7="NORMAL",'Lookup Tables'!M$8,IF('Model Parameters'!$D$7="DRY",'Lookup Tables'!M$9,IF('Model Parameters'!$D$7="WET",'Lookup Tables'!M$10,IF('Model Parameters'!$D$7="OTHER",'Lookup Tables'!M$11,"Select Scenario")))) -> 44.5 | N13: =IF('Model Parameters'!$D$7="NORMAL",'Lookup Tables'!N$8,IF('Model Parameters'!$D$7="DRY",'Lookup Tables'!N$9,IF('Model Parameters'!$D$7="WET",'Lookup Tables'!N$10,IF('Model Parameters'!$D$7="OTHER",'Lookup Tables'!N$11,"Select Scenario")))) -> 36.4 | O13: =IF('Model Parameters'!$D$7="NORMAL",'Lookup Tables'!O$8,IF('Model Parameters'!$D$7="DRY",'Lookup Tables'!O$9,IF('Model Parameters'!$D$7="WET",'Lookup Tables'!O$10,IF('Model Parameters'!$D$7="OTHER",'Lookup Tables'!O$11,"Select Scenario")))) -> 347 | Q13: WET | R13: ='Input Data'!T10 -> 16.2 | S13: ='Input Data'!U10 -> 28.9 | T13: ='Input Data'!V10 -> 52.8 | U13: ='Input Data'!W10 -> 87.3 | V13: ='Input Data'!X10 -> 116.7 | W13: ='Input Data'!Y10 -> 131 | X13: ='Input Data'!Z10 -> 166.3 | Y13: ='Input Data'!AA10 -> 140.3 | Z13: ='Input Data'!AB10 -> 109 | AA13: ='Input Data'!AC10 -> 57.6 | AB13: ='Input Data'!AD10 -> 23.9 | AC13: ='Input Data'!AE10 -> 18 | AD13: ='Input Data'!AF10 -> 948
Q14: OTHER | R14: ='Input Data'!T11 -> 0 | S14: ='Input Data'!U11 -> 0 | T14: ='Input Data'!V11 -> 0 | U14: ='Input Data'!W11 -> 0 | V14: ='Input Data'!X11 -> 0 | W14: ='Input Data'!Y11 -> 0 | X14: ='Input Data'!Z11 -> 0 | Y14: ='Input Data'!AA11 -> 0 | Z14: ='Input Data'!AB11 -> 0 | AA14: ='Input Data'!AC11 -> 0 | AB14: ='Input Data'!AD11 -> 0 | AC14: ='Input Data'!AE11 -> 0 | AD14: ='Input Data'!AF11 -> 0
B15: Surface Water Inflow Data (m3/s) | C15: JAN | D15: FEB | E15: MAR | F15: APR | G15: MAY | H15: JUN | I15: JUL | J15: AUG | K15: SEP | L15: OCT | M15: NOV | N15: DEC | O15: ANNUAL MEAN
Q16: Result to use for model run | R16: =IF('Model Parameters'!$D$7="NORMAL",'Lookup Tables'!R$11,IF('Model Parameters'!$D$7="DRY",'Lookup Tables'!R$12,IF('Model Parameters'!$D$7="WET",'Lookup Tables'!R$13,IF('Model Parameters'!$D$7="OTHER",'Lookup Tables'!R$14,"Select Scenario")))) -> 18.3 | S16: =IF('Model Parameters'!$D$7="NORMAL",'Lookup Tables'!S$11,IF('Model Parameters'!$D$7="DRY",'Lookup Tables'!S$12,IF('Model Parameters'!$D$7="WET",'Lookup Tables'!S$13,IF('Model Parameters'!$D$7="OTHER",'Lookup Tables'!S$14,"Select Scenario")))) -> 27.4 | T16: =IF('Model Parameters'!$D$7="NORMAL",'Lookup Tables'!T$11,IF('Model Parameters'!$D$7="DRY",'Lookup Tables'!T$12,IF('Model Parameters'!$D$7="WET",'Lookup Tables'!T$13,IF('Model Parameters'!$D$7="OTHER",'Lookup Tables'!T$14,"Select Scenario")))) -> 57.6 | U16: =IF('Model Parameters'!$D$7="NORMAL",'Lookup Tables'!U$11,IF('Model Parameters'!$D$7="DRY",'Lookup Tables'!U$12,IF('Model Parameters'!$D$7="WET",'Lookup Tables'!U$13,IF('Model Parameters'!$D$7="OTHER",'Lookup Tables'!U$14,"Select Scenario")))) -> 89 | V16: =IF('Model Parameters'!$D$7="NORMAL",'Lookup Tables'!V$11,IF('Model Parameters'!$D$7="DRY",'Lookup Tables'!V$12,IF('Model Parameters'!$D$7="WET",'Lookup Tables'!V$13,IF('Model Parameters'!$D$7="OTHER",'Lookup Tables'!V$14,"Select Scenario")))) -> 127.7 | W16: =IF('Model Parameters'!$D$7="NORMAL",'Lookup Tables'!W$11,IF('Model Parameters'!$D$7="DRY",'Lookup Tables'!W$12,IF('Model Parameters'!$D$7="WET",'Lookup Tables'!W$13,IF('Model Parameters'!$D$7="OTHER",'Lookup Tables'!W$14,"Select Scenario")))) -> 143.8 | X16: =IF('Model Parameters'!$D$7="NORMAL",'Lookup Tables'!X$11,IF('Model Parameters'!$D$7="DRY",'Lookup Tables'!X$12,IF('Model Parameters'!$D$7="WET",'Lookup Tables'!X$13,IF('Model Parameters'!$D$7="OTHER",'Lookup Tables'!X$14,"Select Scenario")))) -> 165.4 | Y16: =IF('Model Parameters'!$D$7="NORMAL",'Lookup Tables'!Y$11,IF('Model Parameters'!$D$7="DRY",'Lookup Tables'!Y$12,IF('Model Parameters'!$D$7="WET",'Lookup Tables'!Y$13,IF('Model Parameters'!$D$7="OTHER",'Lookup Tables'!Y$14,"Select Scenario")))) -> 147.6 | Z16: =IF('Model Parameters'!$D$7="NORMAL",'Lookup Tables'!Z$11,IF('Model Parameters'!$D$7="DRY",'Lookup Tables'!Z$12,IF('Model Parameters'!$D$7="WET",'Lookup Tables'!Z$13,IF('Model Parameters'!$D$7="OTHER",'Lookup Tables'!Z$14,"Select Scenario")))) -> 98.1 | AA16: =IF('Model Parameters'!$D$7="NORMAL",'Lookup Tables'!AA$11,IF('Model Parameters'!$D$7="DRY",'Lookup Tables'!AA$12,IF('Model Parameters'!$D$7="WET",'Lookup Tables'!AA$13,IF('Model Parameters'!$D$7="OTHER",'Lookup Tables'!AA$14,"Select Scenario")))) -> 52.9 | AB16: =IF('Model Parameters'!$D$7="NORMAL",'Lookup Tables'!AB$11,IF('Model Parameters'!$D$7="DRY",'Lookup Tables'!AB$12,IF('Model Parameters'!$D$7="WET",'Lookup Tables'!AB$13,IF('Model Parameters'!$D$7="OTHER",'Lookup Tables'!AB$14,"Select Scenario")))) -> 23.7 | AC16: =IF('Model Parameters'!$D$7="NORMAL",'Lookup Tables'!AC$11,IF('Model Parameters'!$D$7="DRY",'Lookup Tables'!AC$12,IF('Model Parameters'!$D$7="WET",'Lookup Tables'!AC$13,IF('Model Parameters'!$D$7="OTHER",'Lookup Tables'!AC$14,"Select Scenario")))) -> 15.9 | AD16: =IF('Model Parameters'!$D$7="NORMAL",'Lookup Tables'!AD$11,IF('Model Parameters'!$D$7="DRY",'Lookup Tables'!AD$12,IF('Model Parameters'!$D$7="WET",'Lookup Tables'!AD$13,IF('Model Parameters'!$D$7="OTHER",'Lookup Tables'!AD$14,"Select Scenario")))) -> 967.4
B17: MAINSTEM INFLOW
B18: NORMAL | C18: ='Input Data'!D16 -> 15 | D18: ='Input Data'!E16 -> 12.3 | E18: ='Input Data'!F16 -> 18.4 | F18: ='Input Data'!G16 -> 55.1 | G18: ='Input Data'!H16 -> 155 | H18: ='Input Data'!I16 -> 138 | I18: ='Input Data'!J16 -> 42.6 | J18: ='Input Data'!K16 -> 11.4 | K18: ='Input Data'!L16 -> 7.61 | L18: ='Input Data'!M16 -> 11.7 | M18: ='Input Data'!N16 -> 24.7 | N18: ='Input Data'!O16 -> 14.6 | O18: ='Input Data'!P16 -> 42.20083333 | Q18: Surface Water Outflow Data (m3/s) | R18: JAN | S18: FEB | T18: MAR | U18: APR | V18: MAY | W18: JUN | X18: JUL | Y18: AUG | Z18: SEP | AA18: OCT | AB18: NOV | AC18: DEC | AD18: ANNUAL MEAN
B19: DRY | C19: ='Input Data'!D17 -> 6.54 | D19: ='Input Data'!E17 -> 5.07 | E19: ='Input Data'!F17 -> 6.18 | F19: ='Input Data'!G17 -> 21.7 | G19: ='Input Data'!H17 -> 102 | H19: ='Input Data'!I17 -> 54.4 | I19: ='Input Data'!J17 -> 12.6 | J19: ='Input Data'!K17 -> 4.74 | K19: ='Input Data'!L17 -> 3.35 | L19: ='Input Data'!M17 -> 5.21 | M19: ='Input Data'!N17 -> 13 | N19: ='Input Data'!O17 -> 7.71 | O19: ='Input Data'!P17 -> 20.20833333 | Q19: NORMAL | R19: ='Input Data'!T14 -> 19.1 | S19: ='Input Data'!U14 -> 17.7 | T19: ='Input Data'!V14 -> 22.9 | U19: ='Input Data'!W14 -> 58.6 | V19: ='Input Data'!X14 -> 183 | W19: ='Input Data'!Y14 -> 186 | X19: ='Input Data'!Z14 -> 67.7 | Y19: ='Input Data'!AA14 -> 21.6 | Z19: ='Input Data'!AB14 -> 13.4 | AA19: ='Input Data'!AC14 -> 16 | AB19: ='Input Data'!AD14 -> 27.6 | AC19: ='Input Data'!AE14 -> 20.1 | AD19: ='Input Data'!AF14 -> 54.475
B20: WET | C20: ='Input Data'!D18 -> 20.1 | D20: ='Input Data'!E18 -> 39.4 | E20: ='Input Data'!F18 -> 29.9 | F20: ='Input Data'!G18 -> 82.7 | G20: ='Input Data'!H18 -> 243 | H20: ='Input Data'!I18 -> 260 | I20: ='Input Data'!J18 -> 139 | J20: ='Input Data'!K18 -> 30.4 | K20: ='Input Data'!L18 -> 11.5 | L20: ='Input Data'!M18 -> 6.6 | M20: ='Input Data'!N18 -> 13.1 | N20: ='Input Data'!O18 -> 11 | O20: ='Input Data'!P18 -> 73.89166667 | Q20: DRY | R20: ='Input Data'!T15 -> 9.39 | S20: ='Input Data'!U15 -> 8.22 | T20: ='Input Data'!V15 -> 9.38 | U20: ='Input Data'!W15 -> 21.3 | V20: ='Input Data'!X15 -> 109 | W20: ='Input Data'!Y15 -> 78.8 | X20: ='Input Data'!Z15 -> 25.1 | Y20: ='Input Data'!AA15 -> 9.36 | Z20: ='Input Data'!AB15 -> 5.39 | AA20: ='Input Data'!AC15 -> 7.19 | AB20: ='Input Data'!AD15 -> 15.2 | AC20: ='Input Data'!AE15 -> 10.1 | AD20: ='Input Data'!AF15 -> 25.7025
B21: OTHER | C21: ='Input Data'!D19 -> 0 | D21: ='Input Data'!E19 -> 0 | E21: ='Input Data'!F19 -> 0 | F21: ='Input Data'!G19 -> 0 | G21: ='Input Data'!H19 -> 0 | H21: ='Input Data'!I19 -> 0 | I21: ='Input Data'!J19 -> 0 | J21: ='Input Data'!K19 -> 0 | K21: ='Input Data'!L19 -> 0 | L21: ='Input Data'!M19 -> 0 | M21: ='Input Data'!N19 -> 0 | N21: ='Input Data'!O19 -> 0 | O21: ='Input Data'!P19 ->  | Q21: WET | R21: ='Input Data'!T16 -> 30.3 | S21: ='Input Data'!U16 -> 47.7 | T21: ='Input Data'!V16 -> 40.2 | U21: ='Input Data'!W16 -> 94.5 | V21: ='Input Data'!X16 -> 319 | W21: ='Input Data'!Y16 -> 342 | X21: ='Input Data'!Z16 -> 194 | Y21: ='Input Data'!AA16 -> 47.9 | Z21: ='Input Data'!AB16 -> 20.1 | AA21: ='Input Data'!AC16 -> 12.8 | AB21: ='Input Data'!AD16 -> 19.2 | AC21: ='Input Data'!AE16 -> 15.5 | AD21: ='Input Data'!AF16 -> 98.6
Q22: OTHER | R22: ='Input Data'!T17 -> 0 | S22: ='Input Data'!U17 -> 0 | T22: ='Input Data'!V17 -> 0 | U22: ='Input Data'!W17 -> 0 | V22: ='Input Data'!X17 -> 0 | W22: ='Input Data'!Y17 -> 0 | X22: ='Input Data'!Z17 -> 0 | Y22: ='Input Data'!AA17 -> 0 | Z22: ='Input Data'!AB17 -> 0 | AA22: ='Input Data'!AC17 -> 0 | AB22: ='Input Data'!AD17 -> 0 | AC22: ='Input Data'!AE17 -> 0 | AD22: ='Input Data'!AF17 -> 
B23: Result to use for model run | C23: =IF('Model Parameters'!$D$7="NORMAL",'Lookup Tables'!C$18,IF('Model Parameters'!$D$7="DRY",'Lookup Tables'!C$19,IF('Model Parameters'!$D$7="WET",'Lookup Tables'!C$20,IF('Model Parameters'!$D$7="OTHER",'Lookup Tables'!C$21,"Select Scenario")))) -> 15 | D23: =IF('Model Parameters'!$D$7="NORMAL",'Lookup Tables'!D$18,IF('Model Parameters'!$D$7="DRY",'Lookup Tables'!D$19,IF('Model Parameters'!$D$7="WET",'Lookup Tables'!D$20,IF('Model Parameters'!$D$7="OTHER",'Lookup Tables'!D$21,"Select Scenario")))) -> 12.3 | E23: =IF('Model Parameters'!$D$7="NORMAL",'Lookup Tables'!E$18,IF('Model Parameters'!$D$7="DRY",'Lookup Tables'!E$19,IF('Model Parameters'!$D$7="WET",'Lookup Tables'!E$20,IF('Model Parameters'!$D$7="OTHER",'Lookup Tables'!E$21,"Select Scenario")))) -> 18.4 | F23: =IF('Model Parameters'!$D$7="NORMAL",'Lookup Tables'!F$18,IF('Model Parameters'!$D$7="DRY",'Lookup Tables'!F$19,IF('Model Parameters'!$D$7="WET",'Lookup Tables'!F$20,IF('Model Parameters'!$D$7="OTHER",'Lookup Tables'!F$21,"Select Scenario")))) -> 55.1 | G23: =IF('Model Parameters'!$D$7="NORMAL",'Lookup Tables'!G$18,IF('Model Parameters'!$D$7="DRY",'Lookup Tables'!G$19,IF('Model Parameters'!$D$7="WET",'Lookup Tables'!G$20,IF('Model Parameters'!$D$7="OTHER",'Lookup Tables'!G$21,"Select Scenario")))) -> 155 | H23: =IF('Model Parameters'!$D$7="NORMAL",'Lookup Tables'!H$18,IF('Model Parameters'!$D$7="DRY",'Lookup Tables'!H$19,IF('Model Parameters'!$D$7="WET",'Lookup Tables'!H$20,IF('Model Parameters'!$D$7="OTHER",'Lookup Tables'!H$21,"Select Scenario")))) -> 138 | I23: =IF('Model Parameters'!$D$7="NORMAL",'Lookup Tables'!I$18,IF('Model Parameters'!$D$7="DRY",'Lookup Tables'!I$19,IF('Model Parameters'!$D$7="WET",'Lookup Tables'!I$20,IF('Model Parameters'!$D$7="OTHER",'Lookup Tables'!I$21,"Select Scenario")))) -> 42.6 | J23: =IF('Model Parameters'!$D$7="NORMAL",'Lookup Tables'!J$18,IF('Model Parameters'!$D$7="DRY",'Lookup Tables'!J$19,IF('Model Parameters'!$D$7="WET",'Lookup Tables'!J$20,IF('Model Parameters'!$D$7="OTHER",'Lookup Tables'!J$21,"Select Scenario")))) -> 11.4 | K23: =IF('Model Parameters'!$D$7="NORMAL",'Lookup Tables'!K$18,IF('Model Parameters'!$D$7="DRY",'Lookup Tables'!K$19,IF('Model Parameters'!$D$7="WET",'Lookup Tables'!K$20,IF('Model Parameters'!$D$7="OTHER",'Lookup Tables'!K$21,"Select Scenario")))) -> 7.61 | L23: =IF('Model Parameters'!$D$7="NORMAL",'Lookup Tables'!L$18,IF('Model Parameters'!$D$7="DRY",'Lookup Tables'!L$19,IF('Model Parameters'!$D$7="WET",'Lookup Tables'!L$20,IF('Model Parameters'!$D$7="OTHER",'Lookup Tables'!L$21,"Select Scenario")))) -> 11.7 | M23: =IF('Model Parameters'!$D$7="NORMAL",'Lookup Tables'!M$18,IF('Model Parameters'!$D$7="DRY",'Lookup Tables'!M$19,IF('Model Parameters'!$D$7="WET",'Lookup Tables'!M$20,IF('Model Parameters'!$D$7="OTHER",'Lookup Tables'!M$21,"Select Scenario")))) -> 24.7 | N23: =IF('Model Parameters'!$D$7="NORMAL",'Lookup Tables'!N$18,IF('Model Parameters'!$D$7="DRY",'Lookup Tables'!N$19,IF('Model Parameters'!$D$7="WET",'Lookup Tables'!N$20,IF('Model Parameters'!$D$7="OTHER",'Lookup Tables'!N$21,"Select Scenario")))) -> 14.6 | O23: =IF('Model Parameters'!$D$7="NORMAL",'Lookup Tables'!O$18,IF('Model Parameters'!$D$7="DRY",'Lookup Tables'!O$19,IF('Model Parameters'!$D$7="WET",'Lookup Tables'!O$20,IF('Model Parameters'!$D$7="OTHER",'Lookup Tables'!O$21,"Select Scenario")))) -> 42.20083333
Q24: Result to use for model run | R24: =IF('Model Parameters'!$D$7="NORMAL",'Lookup Tables'!R$19,IF('Model Parameters'!$D$7="DRY",'Lookup Tables'!R$20,IF('Model Parameters'!$D$7="WET",'Lookup Tables'!R$21,IF('Model Parameters'!$D$7="OTHER",'Lookup Tables'!R$22,"Select Scenario")))) -> 19.1 | S24: =IF('Model Parameters'!$D$7="NORMAL",'Lookup Tables'!S$19,IF('Model Parameters'!$D$7="DRY",'Lookup Tables'!S$20,IF('Model Parameters'!$D$7="WET",'Lookup Tables'!S$21,IF('Model Parameters'!$D$7="OTHER",'Lookup Tables'!S$22,"Select Scenario")))) -> 17.7 | T24: =IF('Model Parameters'!$D$7="NORMAL",'Lookup Tables'!T$19,IF('Model Parameters'!$D$7="DRY",'Lookup Tables'!T$20,IF('Model Parameters'!$D$7="WET",'Lookup Tables'!T$21,IF('Model Parameters'!$D$7="OTHER",'Lookup Tables'!T$22,"Select Scenario")))) -> 22.9 | U24: =IF('Model Parameters'!$D$7="NORMAL",'Lookup Tables'!U$19,IF('Model Parameters'!$D$7="DRY",'Lookup Tables'!U$20,IF('Model Parameters'!$D$7="WET",'Lookup Tables'!U$21,IF('Model Parameters'!$D$7="OTHER",'Lookup Tables'!U$22,"Select Scenario")))) -> 58.6 | V24: =IF('Model Parameters'!$D$7="NORMAL",'Lookup Tables'!V$19,IF('Model Parameters'!$D$7="DRY",'Lookup Tables'!V$20,IF('Model Parameters'!$D$7="WET",'Lookup Tables'!V$21,IF('Model Parameters'!$D$7="OTHER",'Lookup Tables'!V$22,"Select Scenario")))) -> 183 | W24: =IF('Model Parameters'!$D$7="NORMAL",'Lookup Tables'!W$19,IF('Model Parameters'!$D$7="DRY",'Lookup Tables'!W$20,IF('Model Parameters'!$D$7="WET",'Lookup Tables'!W$21,IF('Model Parameters'!$D$7="OTHER",'Lookup Tables'!W$22,"Select Scenario")))) -> 186 | X24: =IF('Model Parameters'!$D$7="NORMAL",'Lookup Tables'!X$19,IF('Model Parameters'!$D$7="DRY",'Lookup Tables'!X$20,IF('Model Parameters'!$D$7="WET",'Lookup Tables'!X$21,IF('Model Parameters'!$D$7="OTHER",'Lookup Tables'!X$22,"Select Scenario")))) -> 67.7 | Y24: =IF('Model Parameters'!$D$7="NORMAL",'Lookup Tables'!Y$19,IF('Model Parameters'!$D$7="DRY",'Lookup Tables'!Y$20,IF('Model Parameters'!$D$7="WET",'Lookup Tables'!Y$21,IF('Model Parameters'!$D$7="OTHER",'Lookup Tables'!Y$22,"Select Scenario")))) -> 21.6 | Z24: =IF('Model Parameters'!$D$7="NORMAL",'Lookup Tables'!Z$19,IF('Model Parameters'!$D$7="DRY",'Lookup Tables'!Z$20,IF('Model Parameters'!$D$7="WET",'Lookup Tables'!Z$21,IF('Model Parameters'!$D$7="OTHER",'Lookup Tables'!Z$22,"Select Scenario")))) -> 13.4 | AA24: =IF('Model Parameters'!$D$7="NORMAL",'Lookup Tables'!AA$19,IF('Model Parameters'!$D$7="DRY",'Lookup Tables'!AA$20,IF('Model Parameters'!$D$7="WET",'Lookup Tables'!AA$21,IF('Model Parameters'!$D$7="OTHER",'Lookup Tables'!AA$22,"Select Scenario")))) -> 16 | AB24: =IF('Model Parameters'!$D$7="NORMAL",'Lookup Tables'!AB$19,IF('Model Parameters'!$D$7="DRY",'Lookup Tables'!AB$20,IF('Model Parameters'!$D$7="WET",'Lookup Tables'!AB$21,IF('Model Parameters'!$D$7="OTHER",'Lookup Tables'!AB$22,"Select Scenario")))) -> 27.6 | AC24: =IF('Model Parameters'!$D$7="NORMAL",'Lookup Tables'!AC$19,IF('Model Parameters'!$D$7="DRY",'Lookup Tables'!AC$20,IF('Model Parameters'!$D$7="WET",'Lookup Tables'!AC$21,IF('Model Parameters'!$D$7="OTHER",'Lookup Tables'!AC$22,"Select Scenario")))) -> 20.1 | AD24: =IF('Model Parameters'!$D$7="NORMAL",'Lookup Tables'!AD$19,IF('Model Parameters'!$D$7="DRY",'Lookup Tables'!AD$20,IF('Model Parameters'!$D$7="WET",'Lookup Tables'!AD$21,IF('Model Parameters'!$D$7="OTHER",'Lookup Tables'!AD$22,"Select Scenario")))) -> 54.475
B25: TRIBUTARY INFLOW
B26: NORMAL | C26: ='Input Data'!D22 -> 2.774 | D26: ='Input Data'!E22 -> 2.519 | E26: ='Input Data'!F22 -> 3.34 | F26: ='Input Data'!G22 -> 11.8 | G26: ='Input Data'!H22 -> 48.16 | H26: ='Input Data'!I22 -> 44.99 | I26: ='Input Data'!J22 -> 16.49 | J26: ='Input Data'!K22 -> 5.865 | K26: ='Input Data'!L22 -> 3.802 | L26: ='Input Data'!M22 -> 3.567 | M26: ='Input Data'!N22 -> 4.437 | N26: ='Input Data'!O22 -> 3.202 | O26: ='Input Data'!P22 -> 12.57883333 | Q26: Existing Surface Water Demand Data (m3/s) | R26: JAN | S26: FEB | T26: MAR | U26: APR | V26: MAY | W26: JUN | X26: JUL | Y26: AUG | Z26: SEP | AA26: OCT | AB26: NOV | AC26: DEC | AD26: ANNUAL MEAN
B27: DRY | C27: ='Input Data'!D23 -> 1.8 | D27: ='Input Data'!E23 -> 1.6 | E27: ='Input Data'!F23 -> 1.83 | F27: ='Input Data'!G23 -> 5.17 | G27: ='Input Data'!H23 -> 26.53 | H27: ='Input Data'!I23 -> 17.57 | I27: ='Input Data'!J23 -> 7.14 | J27: ='Input Data'!K23 -> 3.09 | K27: ='Input Data'!L23 -> 1.58 | L27: ='Input Data'!M23 -> 1.75 | M27: ='Input Data'!N23 -> 2.78 | N27: ='Input Data'!O23 -> 2.47 | O27: ='Input Data'!P23 -> 6.109166667
B28: WET | C28: ='Input Data'!D24 -> 4.239 | D28: ='Input Data'!E24 -> 5.879 | E28: ='Input Data'!F24 -> 5.126 | F28: ='Input Data'!G24 -> 16.47 | G28: ='Input Data'!H24 -> 89.46 | H28: ='Input Data'!I24 -> 99.4 | I28: ='Input Data'!J24 -> 41.96 | J28: ='Input Data'!K24 -> 11.43 | K28: ='Input Data'!L24 -> 5.02 | L28: ='Input Data'!M24 -> 2.989 | M28: ='Input Data'!N24 -> 3.316 | N28: ='Input Data'!O24 -> 2.734 | O28: ='Input Data'!P24 -> 24.00191667 | Q28: ANNUAL WATER DEMAND
B29: OTHER | C29: ='Input Data'!D25 -> 0 | D29: ='Input Data'!E25 -> 0 | E29: ='Input Data'!F25 -> 0 | F29: ='Input Data'!G25 -> 0 | G29: ='Input Data'!H25 -> 0 | H29: ='Input Data'!I25 -> 0 | I29: ='Input Data'!J25 -> 0 | J29: ='Input Data'!K25 -> 0 | K29: ='Input Data'!L25 -> 0 | L29: ='Input Data'!M25 -> 0 | M29: ='Input Data'!N25 -> 0 | N29: ='Input Data'!O25 -> 0 | O29: ='Input Data'!P25 ->  | Q29: NORMAL | R29: ='Input Data'!T22 -> 0.029 | S29: ='Input Data'!U22 -> 0.029 | T29: ='Input Data'!V22 -> 0.029 | U29: ='Input Data'!W22 -> 0.029 | V29: ='Input Data'!X22 -> 0.03 | W29: ='Input Data'!Y22 -> 0.03 | X29: ='Input Data'!Z22 -> 0.03 | Y29: ='Input Data'!AA22 -> 0.03 | Z29: ='Input Data'!AB22 -> 0.03 | AA29: ='Input Data'!AC22 -> 0.029 | AB29: ='Input Data'!AD22 -> 0.029 | AC29: ='Input Data'!AE22 -> 0.029 | AD29: ='Input Data'!AF22 -> 0.02941666667
Q30: DRY | R30: ='Input Data'!T23 -> 0.029 | S30: ='Input Data'!U23 -> 0.029 | T30: ='Input Data'!V23 -> 0.029 | U30: ='Input Data'!W23 -> 0.029 | V30: ='Input Data'!X23 -> 0.03 | W30: ='Input Data'!Y23 -> 0.03 | X30: ='Input Data'!Z23 -> 0.03 | Y30: ='Input Data'!AA23 -> 0.03 | Z30: ='Input Data'!AB23 -> 0.03 | AA30: ='Input Data'!AC23 -> 0.029 | AB30: ='Input Data'!AD23 -> 0.029 | AC30: ='Input Data'!AE23 -> 0.029 | AD30: ='Input Data'!AF23 -> 0.02941666667
B31: Result to use for model run | C31: =IF('Model Parameters'!$D$7="NORMAL",'Lookup Tables'!C$26,IF('Model Parameters'!$D$7="DRY",'Lookup Tables'!C$27,IF('Model Parameters'!$D$7="WET",'Lookup Tables'!C$28,IF('Model Parameters'!$D$7="OTHER",'Lookup Tables'!C$29,"Select Scenario")))) -> 2.774 | D31: =IF('Model Parameters'!$D$7="NORMAL",'Lookup Tables'!D$26,IF('Model Parameters'!$D$7="DRY",'Lookup Tables'!D$27,IF('Model Parameters'!$D$7="WET",'Lookup Tables'!D$28,IF('Model Parameters'!$D$7="OTHER",'Lookup Tables'!D$29,"Select Scenario")))) -> 2.519 | E31: =IF('Model Parameters'!$D$7="NORMAL",'Lookup Tables'!E$26,IF('Model Parameters'!$D$7="DRY",'Lookup Tables'!E$27,IF('Model Parameters'!$D$7="WET",'Lookup Tables'!E$28,IF('Model Parameters'!$D$7="OTHER",'Lookup Tables'!E$29,"Select Scenario")))) -> 3.34 | F31: =IF('Model Parameters'!$D$7="NORMAL",'Lookup Tables'!F$26,IF('Model Parameters'!$D$7="DRY",'Lookup Tables'!F$27,IF('Model Parameters'!$D$7="WET",'Lookup Tables'!F$28,IF('Model Parameters'!$D$7="OTHER",'Lookup Tables'!F$29,"Select Scenario")))) -> 11.8 | G31: =IF('Model Parameters'!$D$7="NORMAL",'Lookup Tables'!G$26,IF('Model Parameters'!$D$7="DRY",'Lookup Tables'!G$27,IF('Model Parameters'!$D$7="WET",'Lookup Tables'!G$28,IF('Model Parameters'!$D$7="OTHER",'Lookup Tables'!G$29,"Select Scenario")))) -> 48.16 | H31: =IF('Model Parameters'!$D$7="NORMAL",'Lookup Tables'!H$26,IF('Model Parameters'!$D$7="DRY",'Lookup Tables'!H$27,IF('Model Parameters'!$D$7="WET",'Lookup Tables'!H$28,IF('Model Parameters'!$D$7="OTHER",'Lookup Tables'!H$29,"Select Scenario")))) -> 44.99 | I31: =IF('Model Parameters'!$D$7="NORMAL",'Lookup Tables'!I$26,IF('Model Parameters'!$D$7="DRY",'Lookup Tables'!I$27,IF('Model Parameters'!$D$7="WET",'Lookup Tables'!I$28,IF('Model Parameters'!$D$7="OTHER",'Lookup Tables'!I$29,"Select Scenario")))) -> 16.49 | J31: =IF('Model Parameters'!$D$7="NORMAL",'Lookup Tables'!J$26,IF('Model Parameters'!$D$7="DRY",'Lookup Tables'!J$27,IF('Model Parameters'!$D$7="WET",'Lookup Tables'!J$28,IF('Model Parameters'!$D$7="OTHER",'Lookup Tables'!J$29,"Select Scenario")))) -> 5.865 | K31: =IF('Model Parameters'!$D$7="NORMAL",'Lookup Tables'!K$26,IF('Model Parameters'!$D$7="DRY",'Lookup Tables'!K$27,IF('Model Parameters'!$D$7="WET",'Lookup Tables'!K$28,IF('Model Parameters'!$D$7="OTHER",'Lookup Tables'!K$29,"Select Scenario")))) -> 3.802 | L31: =IF('Model Parameters'!$D$7="NORMAL",'Lookup Tables'!L$26,IF('Model Parameters'!$D$7="DRY",'Lookup Tables'!L$27,IF('Model Parameters'!$D$7="WET",'Lookup Tables'!L$28,IF('Model Parameters'!$D$7="OTHER",'Lookup Tables'!L$29,"Select Scenario")))) -> 3.567 | M31: =IF('Model Parameters'!$D$7="NORMAL",'Lookup Tables'!M$26,IF('Model Parameters'!$D$7="DRY",'Lookup Tables'!M$27,IF('Model Parameters'!$D$7="WET",'Lookup Tables'!M$28,IF('Model Parameters'!$D$7="OTHER",'Lookup Tables'!M$29,"Select Scenario")))) -> 4.437 | N31: =IF('Model Parameters'!$D$7="NORMAL",'Lookup Tables'!N$26,IF('Model Parameters'!$D$7="DRY",'Lookup Tables'!N$27,IF('Model Parameters'!$D$7="WET",'Lookup Tables'!N$28,IF('Model Parameters'!$D$7="OTHER",'Lookup Tables'!N$29,"Select Scenario")))) -> 3.202 | O31: =IF('Model Parameters'!$D$7="NORMAL",'Lookup Tables'!O$26,IF('Model Parameters'!$D$7="DRY",'Lookup Tables'!O$27,IF('Model Parameters'!$D$7="WET",'Lookup Tables'!O$28,IF('Model Parameters'!$D$7="OTHER",'Lookup Tables'!O$29,"Select Scenario")))) -> 12.57883333 | Q31: WET | R31: ='Input Data'!T24 -> 0.029 | S31: ='Input Data'!U24 -> 0.029 | T31: ='Input Data'!V24 -> 0.029 | U31: ='Input Data'!W24 -> 0.029 | V31: ='Input Data'!X24 -> 0.03 | W31: ='Input Data'!Y24 -> 0.03 | X31: ='Input Data'!Z24 -> 0.03 | Y31: ='Input Data'!AA24 -> 0.03 | Z31: ='Input Data'!AB24 -> 0.03 | AA31: ='Input Data'!AC24 -> 0.029 | AB31: ='Input Data'!AD24 -> 0.029 | AC31: ='Input Data'!AE24 -> 0.029 | AD31: ='Input Data'!AF24 -> 0.02941666667
Q32: OTHER | R32: ='Input Data'!T25 -> 0 | S32: ='Input Data'!U25 -> 0 | T32: ='Input Data'!V25 -> 0 | U32: ='Input Data'!W25 -> 0 | V32: ='Input Data'!X25 -> 0 | W32: ='Input Data'!Y25 -> 0 | X32: ='Input Data'!Z25 -> 0 | Y32: ='Input Data'!AA25 -> 0 | Z32: ='Input Data'!AB25 -> 0 | AA32: ='Input Data'!AC25 -> 0 | AB32: ='Input Data'!AD25 -> 0 | AC32: ='Input Data'!AE25 -> 0 | AD32: ='Input Data'!AF25 -> 
B33: Aquifer Recharge - Monthly Distribution(%) | C33: JAN | D33: FEB | E33: MAR | F33: APR | G33: MAY | H33: JUN | I33: JUL | J33: AUG | K33: SEP | L33: OCT | M33: NOV | N33: DEC | O33: ANNUAL TOTAL
B34: Monthly Distrbution - NORMAL | C34: ='Input Data'!D28 -> 4 | D34: ='Input Data'!E28 -> 2 | E34: ='Input Data'!F28 -> 20 | F34: ='Input Data'!G28 -> 24 | G34: ='Input Data'!H28 -> 18 | H34: ='Input Data'!I28 -> 8 | I34: ='Input Data'!J28 -> 4 | J34: ='Input Data'!K28 -> 3 | K34: ='Input Data'!L28 -> 4 | L34: ='Input Data'!M28 -> 9 | M34: ='Input Data'!N28 -> 1.5 | N34: ='Input Data'!O28 -> 2.5 | O34: =SUM(C34:N34) -> 100 | Q34: Result to use for model run | R34: =IF('Model Parameters'!$D$7="NORMAL",'Lookup Tables'!R$29,IF('Model Parameters'!$D$7="DRY",'Lookup Tables'!R$30,IF('Model Parameters'!$D$7="WET",'Lookup Tables'!R$31,IF('Model Parameters'!$D$7="OTHER",'Lookup Tables'!R$32,"Select Scenario")))) -> 0.029 | S34: =IF('Model Parameters'!$D$7="NORMAL",'Lookup Tables'!S$29,IF('Model Parameters'!$D$7="DRY",'Lookup Tables'!S$30,IF('Model Parameters'!$D$7="WET",'Lookup Tables'!S$31,IF('Model Parameters'!$D$7="OTHER",'Lookup Tables'!S$32,"Select Scenario")))) -> 0.029 | T34: =IF('Model Parameters'!$D$7="NORMAL",'Lookup Tables'!T$29,IF('Model Parameters'!$D$7="DRY",'Lookup Tables'!T$30,IF('Model Parameters'!$D$7="WET",'Lookup Tables'!T$31,IF('Model Parameters'!$D$7="OTHER",'Lookup Tables'!T$32,"Select Scenario")))) -> 0.029 | U34: =IF('Model Parameters'!$D$7="NORMAL",'Lookup Tables'!U$29,IF('Model Parameters'!$D$7="DRY",'Lookup Tables'!U$30,IF('Model Parameters'!$D$7="WET",'Lookup Tables'!U$31,IF('Model Parameters'!$D$7="OTHER",'Lookup Tables'!U$32,"Select Scenario")))) -> 0.029 | V34: =IF('Model Parameters'!$D$7="NORMAL",'Lookup Tables'!V$29,IF('Model Parameters'!$D$7="DRY",'Lookup Tables'!V$30,IF('Model Parameters'!$D$7="WET",'Lookup Tables'!V$31,IF('Model Parameters'!$D$7="OTHER",'Lookup Tables'!V$32,"Select Scenario")))) -> 0.03 | W34: =IF('Model Parameters'!$D$7="NORMAL",'Lookup Tables'!W$29,IF('Model Parameters'!$D$7="DRY",'Lookup Tables'!W$30,IF('Model Parameters'!$D$7="WET",'Lookup Tables'!W$31,IF('Model Parameters'!$D$7="OTHER",'Lookup Tables'!W$32,"Select Scenario")))) -> 0.03 | X34: =IF('Model Parameters'!$D$7="NORMAL",'Lookup Tables'!X$29,IF('Model Parameters'!$D$7="DRY",'Lookup Tables'!X$30,IF('Model Parameters'!$D$7="WET",'Lookup Tables'!X$31,IF('Model Parameters'!$D$7="OTHER",'Lookup Tables'!X$32,"Select Scenario")))) -> 0.03 | Y34: =IF('Model Parameters'!$D$7="NORMAL",'Lookup Tables'!Y$29,IF('Model Parameters'!$D$7="DRY",'Lookup Tables'!Y$30,IF('Model Parameters'!$D$7="WET",'Lookup Tables'!Y$31,IF('Model Parameters'!$D$7="OTHER",'Lookup Tables'!Y$32,"Select Scenario")))) -> 0.03 | Z34: =IF('Model Parameters'!$D$7="NORMAL",'Lookup Tables'!Z$29,IF('Model Parameters'!$D$7="DRY",'Lookup Tables'!Z$30,IF('Model Parameters'!$D$7="WET",'Lookup Tables'!Z$31,IF('Model Parameters'!$D$7="OTHER",'Lookup Tables'!Z$32,"Select Scenario")))) -> 0.03 | AA34: =IF('Model Parameters'!$D$7="NORMAL",'Lookup Tables'!AA$29,IF('Model Parameters'!$D$7="DRY",'Lookup Tables'!AA$30,IF('Model Parameters'!$D$7="WET",'Lookup Tables'!AA$31,IF('Model Parameters'!$D$7="OTHER",'Lookup Tables'!AA$32,"Select Scenario")))) -> 0.029 | AB34: =IF('Model Parameters'!$D$7="NORMAL",'Lookup Tables'!AB$29,IF('Model Parameters'!$D$7="DRY",'Lookup Tables'!AB$30,IF('Model Parameters'!$D$7="WET",'Lookup Tables'!AB$31,IF('Model Parameters'!$D$7="OTHER",'Lookup Tables'!AB$32,"Select Scenario")))) -> 0.029 | AC34: =IF('Model Parameters'!$D$7="NORMAL",'Lookup Tables'!AC$29,IF('Model Parameters'!$D$7="DRY",'Lookup Tables'!AC$30,IF('Model Parameters'!$D$7="WET",'Lookup Tables'!AC$31,IF('Model Parameters'!$D$7="OTHER",'Lookup Tables'!AC$32,"Select Scenario")))) -> 0.029 | AD34: =IF('Model Parameters'!$D$7="NORMAL",'Lookup Tables'!AD$29,IF('Model Parameters'!$D$7="DRY",'Lookup Tables'!AD$30,IF('Model Parameters'!$D$7="WET",'Lookup Tables'!AD$31,IF('Model Parameters'!$D$7="OTHER",'Lookup Tables'!AD$32,"Select Scenario")))) -> 0.02941666667
B35: Monthly Distrbution - DRY | C35: ='Input Data'!D29 -> 4 | D35: ='Input Data'!E29 -> 2 | E35: ='Input Data'!F29 -> 20 | F35: ='Input Data'!G29 -> 24 | G35: ='Input Data'!H29 -> 18 | H35: ='Input Data'!I29 -> 8 | I35: ='Input Data'!J29 -> 4 | J35: ='Input Data'!K29 -> 3 | K35: ='Input Data'!L29 -> 4 | L35: ='Input Data'!M29 -> 9 | M35: ='Input Data'!N29 -> 1.5 | N35: ='Input Data'!O29 -> 2.5 | O35: =SUM(C35:N35) -> 100
B36: Monthly Distrbution - WET | C36: ='Input Data'!D30 -> 4 | D36: ='Input Data'!E30 -> 2 | E36: ='Input Data'!F30 -> 20 | F36: ='Input Data'!G30 -> 24 | G36: ='Input Data'!H30 -> 18 | H36: ='Input Data'!I30 -> 8 | I36: ='Input Data'!J30 -> 4 | J36: ='Input Data'!K30 -> 3 | K36: ='Input Data'!L30 -> 4 | L36: ='Input Data'!M30 -> 9 | M36: ='Input Data'!N30 -> 1.5 | N36: ='Input Data'!O30 -> 2.5 | O36: 100 | Q36: SEASONAL WATER DEMAND
B37: Monthly Distrbution - OTHER | O37: 0 | Q37: NORMAL | R37: ='Input Data'!T28 -> 0 | S37: ='Input Data'!U28 -> 0 | T37: ='Input Data'!V28 -> 0 | U37: ='Input Data'!W28 -> 0.018 | V37: ='Input Data'!X28 -> 0.207 | W37: ='Input Data'!Y28 -> 0.654 | X37: ='Input Data'!Z28 -> 0.901 | Y37: ='Input Data'!AA28 -> 0.818 | Z37: ='Input Data'!AB28 -> 0.497 | AA37: ='Input Data'!AC28 -> 0 | AB37: ='Input Data'!AD28 -> 0 | AC37: ='Input Data'!AE28 -> 0 | AD37: ='Input Data'!AF28 -> 0.2579166667
Q38: DRY | R38: ='Input Data'!T29 -> 0 | S38: ='Input Data'!U29 -> 0 | T38: ='Input Data'!V29 -> 0 | U38: ='Input Data'!W29 -> 0.009 | V38: ='Input Data'!X29 -> 0.183 | W38: ='Input Data'!Y29 -> 0.766 | X38: ='Input Data'!Z29 -> 0.858 | Y38: ='Input Data'!AA29 -> 0.944 | Z38: ='Input Data'!AB29 -> 0.617 | AA38: ='Input Data'!AC29 -> 0 | AB38: ='Input Data'!AD29 -> 0 | AC38: ='Input Data'!AE29 -> 0 | AD38: ='Input Data'!AF29 -> 0.2814166667
B39: Result to use for model run | C39: =IF('Model Parameters'!$D$7="NORMAL",'Lookup Tables'!C$34,IF('Model Parameters'!$D$7="DRY",'Lookup Tables'!C$35,IF('Model Parameters'!$D$7="WET",'Lookup Tables'!C$36,IF('Model Parameters'!$D$7="OTHER",'Lookup Tables'!C$37,"Select Scenario")))) -> 4 | D39: =IF('Model Parameters'!$D$7="NORMAL",'Lookup Tables'!D$34,IF('Model Parameters'!$D$7="DRY",'Lookup Tables'!D$35,IF('Model Parameters'!$D$7="WET",'Lookup Tables'!D$36,IF('Model Parameters'!$D$7="OTHER",'Lookup Tables'!D$37,"Select Scenario")))) -> 2 | E39: =IF('Model Parameters'!$D$7="NORMAL",'Lookup Tables'!E$34,IF('Model Parameters'!$D$7="DRY",'Lookup Tables'!E$35,IF('Model Parameters'!$D$7="WET",'Lookup Tables'!E$36,IF('Model Parameters'!$D$7="OTHER",'Lookup Tables'!E$37,"Select Scenario")))) -> 20 | F39: =IF('Model Parameters'!$D$7="NORMAL",'Lookup Tables'!F$34,IF('Model Parameters'!$D$7="DRY",'Lookup Tables'!F$35,IF('Model Parameters'!$D$7="WET",'Lookup Tables'!F$36,IF('Model Parameters'!$D$7="OTHER",'Lookup Tables'!F$37,"Select Scenario")))) -> 24 | G39: =IF('Model Parameters'!$D$7="NORMAL",'Lookup Tables'!G$34,IF('Model Parameters'!$D$7="DRY",'Lookup Tables'!G$35,IF('Model Parameters'!$D$7="WET",'Lookup Tables'!G$36,IF('Model Parameters'!$D$7="OTHER",'Lookup Tables'!G$37,"Select Scenario")))) -> 18 | H39: =IF('Model Parameters'!$D$7="NORMAL",'Lookup Tables'!H$34,IF('Model Parameters'!$D$7="DRY",'Lookup Tables'!H$35,IF('Model Parameters'!$D$7="WET",'Lookup Tables'!H$36,IF('Model Parameters'!$D$7="OTHER",'Lookup Tables'!H$37,"Select Scenario")))) -> 8 | I39: =IF('Model Parameters'!$D$7="NORMAL",'Lookup Tables'!I$34,IF('Model Parameters'!$D$7="DRY",'Lookup Tables'!I$35,IF('Model Parameters'!$D$7="WET",'Lookup Tables'!I$36,IF('Model Parameters'!$D$7="OTHER",'Lookup Tables'!I$37,"Select Scenario")))) -> 4 | J39: =IF('Model Parameters'!$D$7="NORMAL",'Lookup Tables'!J$34,IF('Model Parameters'!$D$7="DRY",'Lookup Tables'!J$35,IF('Model Parameters'!$D$7="WET",'Lookup Tables'!J$36,IF('Model Parameters'!$D$7="OTHER",'Lookup Tables'!J$37,"Select Scenario")))) -> 3 | K39: =IF('Model Parameters'!$D$7="NORMAL",'Lookup Tables'!K$34,IF('Model Parameters'!$D$7="DRY",'Lookup Tables'!K$35,IF('Model Parameters'!$D$7="WET",'Lookup Tables'!K$36,IF('Model Parameters'!$D$7="OTHER",'Lookup Tables'!K$37,"Select Scenario")))) -> 4 | L39: =IF('Model Parameters'!$D$7="NORMAL",'Lookup Tables'!L$34,IF('Model Parameters'!$D$7="DRY",'Lookup Tables'!L$35,IF('Model Parameters'!$D$7="WET",'Lookup Tables'!L$36,IF('Model Parameters'!$D$7="OTHER",'Lookup Tables'!L$37,"Select Scenario")))) -> 9 | M39: =IF('Model Parameters'!$D$7="NORMAL",'Lookup Tables'!M$34,IF('Model Parameters'!$D$7="DRY",'Lookup Tables'!M$35,IF('Model Parameters'!$D$7="WET",'Lookup Tables'!M$36,IF('Model Parameters'!$D$7="OTHER",'Lookup Tables'!M$37,"Select Scenario")))) -> 1.5 | N39: =IF('Model Parameters'!$D$7="NORMAL",'Lookup Tables'!N$34,IF('Model Parameters'!$D$7="DRY",'Lookup Tables'!N$35,IF('Model Parameters'!$D$7="WET",'Lookup Tables'!N$36,IF('Model Parameters'!$D$7="OTHER",'Lookup Tables'!N$37,"Select Scenario")))) -> 2.5 | Q39: WET | R39: ='Input Data'!T30 -> 0 | S39: ='Input Data'!U30 -> 0 | T39: ='Input Data'!V30 -> 0 | U39: ='Input Data'!W30 -> 0.014 | V39: ='Input Data'!X30 -> 0.103 | W39: ='Input Data'!Y30 -> 0.509 | X39: ='Input Data'!Z30 -> 0.904 | Y39: ='Input Data'!AA30 -> 0.673 | Z39: ='Input Data'!AB30 -> 0.618 | AA39: ='Input Data'!AC30 -> 0 | AB39: ='Input Data'!AD30 -> 0 | AC39: ='Input Data'!AE30 -> 0 | AD39: ='Input Data'!AF30 -> 0.2350833333
Q40: OTHER | R40: ='Input Data'!T31 -> 0 | S40: ='Input Data'!U31 -> 0 | T40: ='Input Data'!V31 -> 0 | U40: ='Input Data'!W31 -> 0 | V40: ='Input Data'!X31 -> 0 | W40: ='Input Data'!Y31 -> 0 | X40: ='Input Data'!Z31 -> 0 | Y40: ='Input Data'!AA31 -> 0 | Z40: ='Input Data'!AB31 -> 0 | AA40: ='Input Data'!AC31 -> 0 | AB40: ='Input Data'!AD31 -> 0 | AC40: ='Input Data'!AE31 -> 0 | AD40: ='Input Data'!AF31 -> 
B41: Irrigation Return - Monthly Distribution (%) | C41: JAN | D41: FEB | E41: MAR | F41: APR | G41: MAY | H41: JUN | I41: JUL | J41: AUG | K41: SEP | L41: OCT | M41: NOV | N41: DEC | O41: ANNUAL TOTAL
B42: Monthly Distrbution - NORMAL | C42: ='Input Data'!D34 -> 0 | D42: ='Input Data'!E34 -> 0 | E42: ='Input Data'!F34 -> 0 | F42: ='Input Data'!G34 -> 0 | G42: ='Input Data'!H34 -> 0 | H42: ='Input Data'!I34 -> 0 | I42: ='Input Data'!J34 -> 0 | J42: ='Input Data'!K34 -> 0 | K42: ='Input Data'!L34 -> 0 | L42: ='Input Data'!M34 -> 0 | M42: ='Input Data'!N34 -> 0 | N42: ='Input Data'!O34 -> 0 | O42: =SUM(C42:N42) -> 0 | Q42: Result ot use for model run | R42: =IF('Model Parameters'!$D$7="NORMAL",'Lookup Tables'!R$37,IF('Model Parameters'!$D$7="DRY",'Lookup Tables'!R$38,IF('Model Parameters'!$D$7="WET",'Lookup Tables'!R$39,IF('Model Parameters'!$D$7="OTHER",'Lookup Tables'!R$40,"Select Scenario")))) -> 0 | S42: =IF('Model Parameters'!$D$7="NORMAL",'Lookup Tables'!S$37,IF('Model Parameters'!$D$7="DRY",'Lookup Tables'!S$38,IF('Model Parameters'!$D$7="WET",'Lookup Tables'!S$39,IF('Model Parameters'!$D$7="OTHER",'Lookup Tables'!S$40,"Select Scenario")))) -> 0 | T42: =IF('Model Parameters'!$D$7="NORMAL",'Lookup Tables'!T$37,IF('Model Parameters'!$D$7="DRY",'Lookup Tables'!T$38,IF('Model Parameters'!$D$7="WET",'Lookup Tables'!T$39,IF('Model Parameters'!$D$7="OTHER",'Lookup Tables'!T$40,"Select Scenario")))) -> 0 | U42: =IF('Model Parameters'!$D$7="NORMAL",'Lookup Tables'!U$37,IF('Model Parameters'!$D$7="DRY",'Lookup Tables'!U$38,IF('Model Parameters'!$D$7="WET",'Lookup Tables'!U$39,IF('Model Parameters'!$D$7="OTHER",'Lookup Tables'!U$40,"Select Scenario")))) -> 0.018 | V42: =IF('Model Parameters'!$D$7="NORMAL",'Lookup Tables'!V$37,IF('Model Parameters'!$D$7="DRY",'Lookup Tables'!V$38,IF('Model Parameters'!$D$7="WET",'Lookup Tables'!V$39,IF('Model Parameters'!$D$7="OTHER",'Lookup Tables'!V$40,"Select Scenario")))) -> 0.207 | W42: =IF('Model Parameters'!$D$7="NORMAL",'Lookup Tables'!W$37,IF('Model Parameters'!$D$7="DRY",'Lookup Tables'!W$38,IF('Model Parameters'!$D$7="WET",'Lookup Tables'!W$39,IF('Model Parameters'!$D$7="OTHER",'Lookup Tables'!W$40,"Select Scenario")))) -> 0.654 | X42: =IF('Model Parameters'!$D$7="NORMAL",'Lookup Tables'!X$37,IF('Model Parameters'!$D$7="DRY",'Lookup Tables'!X$38,IF('Model Parameters'!$D$7="WET",'Lookup Tables'!X$39,IF('Model Parameters'!$D$7="OTHER",'Lookup Tables'!X$40,"Select Scenario")))) -> 0.901 | Y42: =IF('Model Parameters'!$D$7="NORMAL",'Lookup Tables'!Y$37,IF('Model Parameters'!$D$7="DRY",'Lookup Tables'!Y$38,IF('Model Parameters'!$D$7="WET",'Lookup Tables'!Y$39,IF('Model Parameters'!$D$7="OTHER",'Lookup Tables'!Y$40,"Select Scenario")))) -> 0.818 | Z42: =IF('Model Parameters'!$D$7="NORMAL",'Lookup Tables'!Z$37,IF('Model Parameters'!$D$7="DRY",'Lookup Tables'!Z$38,IF('Model Parameters'!$D$7="WET",'Lookup Tables'!Z$39,IF('Model Parameters'!$D$7="OTHER",'Lookup Tables'!Z$40,"Select Scenario")))) -> 0.497 | AA42: =IF('Model Parameters'!$D$7="NORMAL",'Lookup Tables'!AA$37,IF('Model Parameters'!$D$7="DRY",'Lookup Tables'!AA$38,IF('Model Parameters'!$D$7="WET",'Lookup Tables'!AA$39,IF('Model Parameters'!$D$7="OTHER",'Lookup Tables'!AA$40,"Select Scenario")))) -> 0 | AB42: =IF('Model Parameters'!$D$7="NORMAL",'Lookup Tables'!AB$37,IF('Model Parameters'!$D$7="DRY",'Lookup Tables'!AB$38,IF('Model Parameters'!$D$7="WET",'Lookup Tables'!AB$39,IF('Model Parameters'!$D$7="OTHER",'Lookup Tables'!AB$40,"Select Scenario")))) -> 0 | AC42: =IF('Model Parameters'!$D$7="NORMAL",'Lookup Tables'!AC$37,IF('Model Parameters'!$D$7="DRY",'Lookup Tables'!AC$38,IF('Model Parameters'!$D$7="WET",'Lookup Tables'!AC$39,IF('Model Parameters'!$D$7="OTHER",'Lookup Tables'!AC$40,"Select Scenario")))) -> 0 | AD42: =IF('Model Parameters'!$D$7="NORMAL",'Lookup Tables'!AD$37,IF('Model Parameters'!$D$7="DRY",'Lookup Tables'!AD$38,IF('Model Parameters'!$D$7="WET",'Lookup Tables'!AD$39,IF('Model Parameters'!$D$7="OTHER",'Lookup Tables'!AD$40,"Select Scenario")))) -> 0.2579166667
B43: Monthly Distrbution - DRY | C43: ='Input Data'!D35 -> 0 | D43: ='Input Data'!E35 -> 0 | E43: ='Input Data'!F35 -> 0 | F43: ='Input Data'!G35 -> 0 | G43: ='Input Data'!H35 -> 0 | H43: ='Input Data'!I35 -> 0 | I43: ='Input Data'!J35 -> 0 | J43: ='Input Data'!K35 -> 0 | K43: ='Input Data'!L35 -> 0 | L43: ='Input Data'!M35 -> 0 | M43: ='Input Data'!N35 -> 0 | N43: ='Input Data'!O35 -> 0 | O43: =SUM(C43:N43) -> 0
B44: Monthly Distrbution - WET | C44: ='Input Data'!D36 -> 0 | D44: ='Input Data'!E36 -> 0 | E44: ='Input Data'!F36 -> 0 | F44: ='Input Data'!G36 -> 0 | G44: ='Input Data'!H36 -> 0 | H44: ='Input Data'!I36 -> 0 | I44: ='Input Data'!J36 -> 0 | J44: ='Input Data'!K36 -> 0 | K44: ='Input Data'!L36 -> 0 | L44: ='Input Data'!M36 -> 0 | M44: ='Input Data'!N36 -> 0 | N44: ='Input Data'!O36 -> 0 | O44: 0 | Q44: Existing Groundwater Demand Data (m3/s) | R44: JAN | S44: FEB | T44: MAR | U44: APR | V44: MAY | W44: JUN | X44: JUL | Y44: AUG | Z44: SEP | AA44: OCT | AB44: NOV | AC44: DEC | AD44: ANNUAL MEAN
B45: Monthly Distrbution - OTHER | O45: 0
Q46: ANNUAL WATER DEMAND
B47: Result to use for model run | C47: =IF('Model Parameters'!$D$7="NORMAL",'Lookup Tables'!C$42,IF('Model Parameters'!$D$7="DRY",'Lookup Tables'!C$43,IF('Model Parameters'!$D$7="WET",'Lookup Tables'!C$44,IF('Model Parameters'!$D$7="OTHER",'Lookup Tables'!C$45,"Select Scenario")))) -> 0 | D47: =IF('Model Parameters'!$D$7="NORMAL",'Lookup Tables'!D$42,IF('Model Parameters'!$D$7="DRY",'Lookup Tables'!D$43,IF('Model Parameters'!$D$7="WET",'Lookup Tables'!D$44,IF('Model Parameters'!$D$7="OTHER",'Lookup Tables'!D$45,"Select Scenario")))) -> 0 | E47: =IF('Model Parameters'!$D$7="NORMAL",'Lookup Tables'!E$42,IF('Model Parameters'!$D$7="DRY",'Lookup Tables'!E$43,IF('Model Parameters'!$D$7="WET",'Lookup Tables'!E$44,IF('Model Parameters'!$D$7="OTHER",'Lookup Tables'!E$45,"Select Scenario")))) -> 0 | F47: =IF('Model Parameters'!$D$7="NORMAL",'Lookup Tables'!F$42,IF('Model Parameters'!$D$7="DRY",'Lookup Tables'!F$43,IF('Model Parameters'!$D$7="WET",'Lookup Tables'!F$44,IF('Model Parameters'!$D$7="OTHER",'Lookup Tables'!F$45,"Select Scenario")))) -> 0 | G47: =IF('Model Parameters'!$D$7="NORMAL",'Lookup Tables'!G$42,IF('Model Parameters'!$D$7="DRY",'Lookup Tables'!G$43,IF('Model Parameters'!$D$7="WET",'Lookup Tables'!G$44,IF('Model Parameters'!$D$7="OTHER",'Lookup Tables'!G$45,"Select Scenario")))) -> 0 | H47: =IF('Model Parameters'!$D$7="NORMAL",'Lookup Tables'!H$42,IF('Model Parameters'!$D$7="DRY",'Lookup Tables'!H$43,IF('Model Parameters'!$D$7="WET",'Lookup Tables'!H$44,IF('Model Parameters'!$D$7="OTHER",'Lookup Tables'!H$45,"Select Scenario")))) -> 0 | I47: =IF('Model Parameters'!$D$7="NORMAL",'Lookup Tables'!I$42,IF('Model Parameters'!$D$7="DRY",'Lookup Tables'!I$43,IF('Model Parameters'!$D$7="WET",'Lookup Tables'!I$44,IF('Model Parameters'!$D$7="OTHER",'Lookup Tables'!I$45,"Select Scenario")))) -> 0 | J47: =IF('Model Parameters'!$D$7="NORMAL",'Lookup Tables'!J$42,IF('Model Parameters'!$D$7="DRY",'Lookup Tables'!J$43,IF('Model Parameters'!$D$7="WET",'Lookup Tables'!J$44,IF('Model Parameters'!$D$7="OTHER",'Lookup Tables'!J$45,"Select Scenario")))) -> 0 | K47: =IF('Model Parameters'!$D$7="NORMAL",'Lookup Tables'!K$42,IF('Model Parameters'!$D$7="DRY",'Lookup Tables'!K$43,IF('Model Parameters'!$D$7="WET",'Lookup Tables'!K$44,IF('Model Parameters'!$D$7="OTHER",'Lookup Tables'!K$45,"Select Scenario")))) -> 0 | L47: =IF('Model Parameters'!$D$7="NORMAL",'Lookup Tables'!L$42,IF('Model Parameters'!$D$7="DRY",'Lookup Tables'!L$43,IF('Model Parameters'!$D$7="WET",'Lookup Tables'!L$44,IF('Model Parameters'!$D$7="OTHER",'Lookup Tables'!L$45,"Select Scenario")))) -> 0 | M47: =IF('Model Parameters'!$D$7="NORMAL",'Lookup Tables'!M$42,IF('Model Parameters'!$D$7="DRY",'Lookup Tables'!M$43,IF('Model Parameters'!$D$7="WET",'Lookup Tables'!M$44,IF('Model Parameters'!$D$7="OTHER",'Lookup Tables'!M$45,"Select Scenario")))) -> 0 | N47: =IF('Model Parameters'!$D$7="NORMAL",'Lookup Tables'!N$42,IF('Model Parameters'!$D$7="DRY",'Lookup Tables'!N$43,IF('Model Parameters'!$D$7="WET",'Lookup Tables'!N$44,IF('Model Parameters'!$D$7="OTHER",'Lookup Tables'!N$45,"Select Scenario")))) -> 0 | Q47: NORMAL | R47: ='Input Data'!T36 -> 0.066 | S47: ='Input Data'!U36 -> 0.055 | T47: ='Input Data'!V36 -> 0.059 | U47: ='Input Data'!W36 -> 0.067 | V47: ='Input Data'!X36 -> 0.077 | W47: ='Input Data'!Y36 -> 0.078 | X47: ='Input Data'!Z36 -> 0.082 | Y47: ='Input Data'!AA36 -> 0.088 | Z47: ='Input Data'!AB36 -> 0.079 | AA47: ='Input Data'!AC36 -> 0.065 | AB47: ='Input Data'!AD36 -> 0.056 | AC47: ='Input Data'!AE36 -> 0.065 | AD47: ='Input Data'!AF36 -> 0.06975
Q48: DRY | R48: ='Input Data'!T37 -> 0.064 | S48: ='Input Data'!U37 -> 0.053 | T48: ='Input Data'!V37 -> 0.057 | U48: ='Input Data'!W37 -> 0.065 | V48: ='Input Data'!X37 -> 0.074 | W48: ='Input Data'!Y37 -> 0.075 | X48: ='Input Data'!Z37 -> 0.079 | Y48: ='Input Data'!AA37 -> 0.084 | Z48: ='Input Data'!AB37 -> 0.076 | AA48: ='Input Data'!AC37 -> 0.063 | AB48: ='Input Data'!AD37 -> 0.055 | AC48: ='Input Data'!AE37 -> 0.063 | AD48: ='Input Data'!AF37 -> 0.06733333333
B49: MODEL CALIBRATION - OBSERVATION WELL DATA | Q49: WET | R49: ='Input Data'!T38 -> 0.064 | S49: ='Input Data'!U38 -> 0.053 | T49: ='Input Data'!V38 -> 0.057 | U49: ='Input Data'!W38 -> 0.065 | V49: ='Input Data'!X38 -> 0.074 | W49: ='Input Data'!Y38 -> 0.075 | X49: ='Input Data'!Z38 -> 0.079 | Y49: ='Input Data'!AA38 -> 0.084 | Z49: ='Input Data'!AB38 -> 0.076 | AA49: ='Input Data'!AC38 -> 0.063 | AB49: ='Input Data'!AD38 -> 0.055 | AC49: ='Input Data'!AE38 -> 0.063 | AD49: ='Input Data'!AF38 -> 0.06733333333
Q50: OTHER | R50: ='Input Data'!T39 -> 0 | S50: ='Input Data'!U39 -> 0 | T50: ='Input Data'!V39 -> 0 | U50: ='Input Data'!W39 -> 0 | V50: ='Input Data'!X39 -> 0 | W50: ='Input Data'!Y39 -> 0 | X50: ='Input Data'!Z39 -> 0 | Y50: ='Input Data'!AA39 -> 0 | Z50: ='Input Data'!AB39 -> 0 | AA50: ='Input Data'!AC39 -> 0 | AB50: ='Input Data'!AD39 -> 0 | AC50: ='Input Data'!AE39 -> 0 | AD50: ='Input Data'!AF39 -> 
B51: OBSERVATION WELL DATA (m bgl) | C51: Preceding DEC | D51: JAN | E51: FEB | F51: MAR | G51: APR | H51: MAY | I51: JUN | J51: JUL | K51: AUG | L51: SEP | M51: OCT | N51: NOV | O51: DEC
Q52: Result to use for model run | R52: =IF('Model Parameters'!$D$7="NORMAL",'Lookup Tables'!R$47,IF('Model Parameters'!$D$7="DRY",'Lookup Tables'!R$48,IF('Model Parameters'!$D$7="WET",'Lookup Tables'!R$49,IF('Model Parameters'!$D$7="OTHER",'Lookup Tables'!R$50,"Select Scenario")))) -> 0.066 | S52: =IF('Model Parameters'!$D$7="NORMAL",'Lookup Tables'!S$47,IF('Model Parameters'!$D$7="DRY",'Lookup Tables'!S$48,IF('Model Parameters'!$D$7="WET",'Lookup Tables'!S$49,IF('Model Parameters'!$D$7="OTHER",'Lookup Tables'!S$50,"Select Scenario")))) -> 0.055 | T52: =IF('Model Parameters'!$D$7="NORMAL",'Lookup Tables'!T$47,IF('Model Parameters'!$D$7="DRY",'Lookup Tables'!T$48,IF('Model Parameters'!$D$7="WET",'Lookup Tables'!T$49,IF('Model Parameters'!$D$7="OTHER",'Lookup Tables'!T$50,"Select Scenario")))) -> 0.059 | U52: =IF('Model Parameters'!$D$7="NORMAL",'Lookup Tables'!U$47,IF('Model Parameters'!$D$7="DRY",'Lookup Tables'!U$48,IF('Model Parameters'!$D$7="WET",'Lookup Tables'!U$49,IF('Model Parameters'!$D$7="OTHER",'Lookup Tables'!U$50,"Select Scenario")))) -> 0.067 | V52: =IF('Model Parameters'!$D$7="NORMAL",'Lookup Tables'!V$47,IF('Model Parameters'!$D$7="DRY",'Lookup Tables'!V$48,IF('Model Parameters'!$D$7="WET",'Lookup Tables'!V$49,IF('Model Parameters'!$D$7="OTHER",'Lookup Tables'!V$50,"Select Scenario")))) -> 0.077 | W52: =IF('Model Parameters'!$D$7="NORMAL",'Lookup Tables'!W$47,IF('Model Parameters'!$D$7="DRY",'Lookup Tables'!W$48,IF('Model Parameters'!$D$7="WET",'Lookup Tables'!W$49,IF('Model Parameters'!$D$7="OTHER",'Lookup Tables'!W$50,"Select Scenario")))) -> 0.078 | X52: =IF('Model Parameters'!$D$7="NORMAL",'Lookup Tables'!X$47,IF('Model Parameters'!$D$7="DRY",'Lookup Tables'!X$48,IF('Model Parameters'!$D$7="WET",'Lookup Tables'!X$49,IF('Model Parameters'!$D$7="OTHER",'Lookup Tables'!X$50,"Select Scenario")))) -> 0.082 | Y52: =IF('Model Parameters'!$D$7="NORMAL",'Lookup Tables'!Y$47,IF('Model Parameters'!$D$7="DRY",'Lookup Tables'!Y$48,IF('Model Parameters'!$D$7="WET",'Lookup Tables'!Y$49,IF('Model Parameters'!$D$7="OTHER",'Lookup Tables'!Y$50,"Select Scenario")))) -> 0.088 | Z52: =IF('Model Parameters'!$D$7="NORMAL",'Lookup Tables'!Z$47,IF('Model Parameters'!$D$7="DRY",'Lookup Tables'!Z$48,IF('Model Parameters'!$D$7="WET",'Lookup Tables'!Z$49,IF('Model Parameters'!$D$7="OTHER",'Lookup Tables'!Z$50,"Select Scenario")))) -> 0.079 | AA52: =IF('Model Parameters'!$D$7="NORMAL",'Lookup Tables'!AA$47,IF('Model Parameters'!$D$7="DRY",'Lookup Tables'!AA$48,IF('Model Parameters'!$D$7="WET",'Lookup Tables'!AA$49,IF('Model Parameters'!$D$7="OTHER",'Lookup Tables'!AA$50,"Select Scenario")))) -> 0.065 | AB52: =IF('Model Parameters'!$D$7="NORMAL",'Lookup Tables'!AB$47,IF('Model Parameters'!$D$7="DRY",'Lookup Tables'!AB$48,IF('Model Parameters'!$D$7="WET",'Lookup Tables'!AB$49,IF('Model Parameters'!$D$7="OTHER",'Lookup Tables'!AB$50,"Select Scenario")))) -> 0.056 | AC52: =IF('Model Parameters'!$D$7="NORMAL",'Lookup Tables'!AC$47,IF('Model Parameters'!$D$7="DRY",'Lookup Tables'!AC$48,IF('Model Parameters'!$D$7="WET",'Lookup Tables'!AC$49,IF('Model Parameters'!$D$7="OTHER",'Lookup Tables'!AC$50,"Select Scenario")))) -> 0.065 | AD52: =IF('Model Parameters'!$D$7="NORMAL",'Lookup Tables'!AD$47,IF('Model Parameters'!$D$7="DRY",'Lookup Tables'!AD$48,IF('Model Parameters'!$D$7="WET",'Lookup Tables'!AD$49,IF('Model Parameters'!$D$7="OTHER",'Lookup Tables'!AD$50,"Select Scenario")))) -> 0.06975
B53: Keremeos (Well # 75)
B54: NORMAL | C54: ='Input Data'!D44 -> 2.688 | D54: ='Input Data'!E44 -> 2.586 | E54: ='Input Data'!F44 -> 2.702 | F54: ='Input Data'!G44 -> 2.644 | G54: ='Input Data'!H44 -> 2.467 | H54: ='Input Data'!I44 -> 1.97 | I54: ='Input Data'!J44 -> 2.055 | J54: ='Input Data'!K44 -> 2.307 | K54: ='Input Data'!L44 -> 2.735 | L54: ='Input Data'!M44 -> 2.883 | M54: ='Input Data'!N44 -> 2.868 | N54: ='Input Data'!O44 -> 2.686 | O54: ='Input Data'!P44 -> 2.688 | Q54: SEASONAL WATER DEMAND
B55: DRY | C55: ='Input Data'!D45 -> 2.875 | D55: ='Input Data'!E45 -> 2.975 | E55: ='Input Data'!F45 -> 3.025 | F55: ='Input Data'!G45 -> 2.965 | G55: ='Input Data'!H45 -> 2.795 | H55: ='Input Data'!I45 -> 2.275 | I55: ='Input Data'!J45 -> 2.505 | J55: ='Input Data'!K45 -> 2.865 | K55: ='Input Data'!L45 -> 3.195 | L55: ='Input Data'!M45 -> 3.025 | M55: ='Input Data'!N45 -> 3.055 | N55: ='Input Data'!O45 -> 3.01 | O55: ='Input Data'!P45 -> 3.005 | Q55: NORMAL | R55: ='Input Data'!T42 -> 0 | S55: ='Input Data'!U42 -> 0 | T55: ='Input Data'!V42 -> 0 | U55: ='Input Data'!W42 -> 0.078 | V55: ='Input Data'!X42 -> 0.384 | W55: ='Input Data'!Y42 -> 0.81 | X55: ='Input Data'!Z42 -> 1.053 | Y55: ='Input Data'!AA42 -> 0.927 | Z55: ='Input Data'!AB42 -> 0.563 | AA55: ='Input Data'!AC42 -> 0 | AB55: ='Input Data'!AD42 -> 0 | AC55: ='Input Data'!AE42 -> 0 | AD55: ='Input Data'!AF42 -> 0.3179166667
B56: WET | C56: ='Input Data'!D46 -> 2.015 | D56: ='Input Data'!E46 -> 1.9425 | E56: ='Input Data'!F46 -> 1.9475 | F56: ='Input Data'!G46 -> 2.07 | G56: ='Input Data'!H46 -> 2.1175 | H56: ='Input Data'!I46 -> 1.22 | I56: ='Input Data'!J46 -> 1.17 | J56: ='Input Data'!K46 -> 1.4475 | K56: ='Input Data'!L46 -> 2.26 | L56: ='Input Data'!M46 -> 2.565 | M56: ='Input Data'!N46 -> 2.615 | N56: ='Input Data'!O46 -> 2.62 | O56: ='Input Data'!P46 -> 2.635 | Q56: DRY | R56: ='Input Data'!T43 -> 0 | S56: ='Input Data'!U43 -> 0 | T56: ='Input Data'!V43 -> 0 | U56: ='Input Data'!W43 -> 0.058 | V56: ='Input Data'!X43 -> 0.372 | W56: ='Input Data'!Y43 -> 0.895 | X56: ='Input Data'!Z43 -> 0.994 | Y56: ='Input Data'!AA43 -> 1.087 | Z56: ='Input Data'!AB43 -> 0.695 | AA56: ='Input Data'!AC43 -> 0 | AB56: ='Input Data'!AD43 -> 0 | AC56: ='Input Data'!AE43 -> 0 | AD56: ='Input Data'!AF43 -> 0.34175
B57: OTHER | C57: ='Input Data'!D47 -> 0 | D57: ='Input Data'!E47 -> 0 | E57: ='Input Data'!F47 -> 0 | F57: ='Input Data'!G47 -> 0 | G57: ='Input Data'!H47 -> 0 | H57: ='Input Data'!I47 -> 0 | I57: ='Input Data'!J47 -> 0 | J57: ='Input Data'!K47 -> 0 | K57: ='Input Data'!L47 -> 0 | L57: ='Input Data'!M47 -> 0 | M57: ='Input Data'!N47 -> 0 | N57: ='Input Data'!O47 -> 0 | O57: ='Input Data'!P47 -> 0 | Q57: WET | R57: ='Input Data'!T44 -> 0 | S57: ='Input Data'!U44 -> 0 | T57: ='Input Data'!V44 -> 0 | U57: ='Input Data'!W44 -> 0.054 | V57: ='Input Data'!X44 -> 0.234 | W57: ='Input Data'!Y44 -> 0.618 | X57: ='Input Data'!Z44 -> 1.037 | Y57: ='Input Data'!AA44 -> 0.767 | Z57: ='Input Data'!AB44 -> 0.631 | AA57: ='Input Data'!AC44 -> 0 | AB57: ='Input Data'!AD44 -> 0 | AC57: ='Input Data'!AE44 -> 0 | AD57: ='Input Data'!AF44 -> 0.2784166667
Q58: OTHER | R58: ='Input Data'!T45 -> 0 | S58: ='Input Data'!U45 -> 0 | T58: ='Input Data'!V45 -> 0 | U58: ='Input Data'!W45 -> 0 | V58: ='Input Data'!X45 -> 0 | W58: ='Input Data'!Y45 -> 0 | X58: ='Input Data'!Z45 -> 0 | Y58: ='Input Data'!AA45 -> 0 | Z58: ='Input Data'!AB45 -> 0 | AA58: ='Input Data'!AC45 -> 0 | AB58: ='Input Data'!AD45 -> 0 | AC58: ='Input Data'!AE45 -> 0 | AD58: ='Input Data'!AF45 -> 
B59: Other
B60: NORMAL | C60: ='Input Data'!D50 -> 0 | D60: ='Input Data'!E50 -> 0 | E60: ='Input Data'!F50 -> 0 | F60: ='Input Data'!G50 -> 0 | G60: ='Input Data'!H50 -> 0 | H60: ='Input Data'!I50 -> 0 | I60: ='Input Data'!J50 -> 0 | J60: ='Input Data'!K50 -> 0 | K60: ='Input Data'!L50 -> 0 | L60: ='Input Data'!M50 -> 0 | M60: ='Input Data'!N50 -> 0 | N60: ='Input Data'!O50 -> 0 | O60: ='Input Data'!P50 -> 0 | Q60: Result ot use for model run | R60: =IF('Model Parameters'!$D$7="NORMAL",'Lookup Tables'!R$55,IF('Model Parameters'!$D$7="DRY",'Lookup Tables'!R$56,IF('Model Parameters'!$D$7="WET",'Lookup Tables'!R$57,IF('Model Parameters'!$D$7="OTHER",'Lookup Tables'!R$58,"Select Scenario")))) -> 0 | S60: =IF('Model Parameters'!$D$7="NORMAL",'Lookup Tables'!S$55,IF('Model Parameters'!$D$7="DRY",'Lookup Tables'!S$56,IF('Model Parameters'!$D$7="WET",'Lookup Tables'!S$57,IF('Model Parameters'!$D$7="OTHER",'Lookup Tables'!S$58,"Select Scenario")))) -> 0 | T60: =IF('Model Parameters'!$D$7="NORMAL",'Lookup Tables'!T$55,IF('Model Parameters'!$D$7="DRY",'Lookup Tables'!T$56,IF('Model Parameters'!$D$7="WET",'Lookup Tables'!T$57,IF('Model Parameters'!$D$7="OTHER",'Lookup Tables'!T$58,"Select Scenario")))) -> 0 | U60: =IF('Model Parameters'!$D$7="NORMAL",'Lookup Tables'!U$55,IF('Model Parameters'!$D$7="DRY",'Lookup Tables'!U$56,IF('Model Parameters'!$D$7="WET",'Lookup Tables'!U$57,IF('Model Parameters'!$D$7="OTHER",'Lookup Tables'!U$58,"Select Scenario")))) -> 0.078 | V60: =IF('Model Parameters'!$D$7="NORMAL",'Lookup Tables'!V$55,IF('Model Parameters'!$D$7="DRY",'Lookup Tables'!V$56,IF('Model Parameters'!$D$7="WET",'Lookup Tables'!V$57,IF('Model Parameters'!$D$7="OTHER",'Lookup Tables'!V$58,"Select Scenario")))) -> 0.384 | W60: =IF('Model Parameters'!$D$7="NORMAL",'Lookup Tables'!W$55,IF('Model Parameters'!$D$7="DRY",'Lookup Tables'!W$56,IF('Model Parameters'!$D$7="WET",'Lookup Tables'!W$57,IF('Model Parameters'!$D$7="OTHER",'Lookup Tables'!W$58,"Select Scenario")))) -> 0.81 | X60: =IF('Model Parameters'!$D$7="NORMAL",'Lookup Tables'!X$55,IF('Model Parameters'!$D$7="DRY",'Lookup Tables'!X$56,IF('Model Parameters'!$D$7="WET",'Lookup Tables'!X$57,IF('Model Parameters'!$D$7="OTHER",'Lookup Tables'!X$58,"Select Scenario")))) -> 1.053 | Y60: =IF('Model Parameters'!$D$7="NORMAL",'Lookup Tables'!Y$55,IF('Model Parameters'!$D$7="DRY",'Lookup Tables'!Y$56,IF('Model Parameters'!$D$7="WET",'Lookup Tables'!Y$57,IF('Model Parameters'!$D$7="OTHER",'Lookup Tables'!Y$58,"Select Scenario")))) -> 0.927 | Z60: =IF('Model Parameters'!$D$7="NORMAL",'Lookup Tables'!Z$55,IF('Model Parameters'!$D$7="DRY",'Lookup Tables'!Z$56,IF('Model Parameters'!$D$7="WET",'Lookup Tables'!Z$57,IF('Model Parameters'!$D$7="OTHER",'Lookup Tables'!Z$58,"Select Scenario")))) -> 0.563 | AA60: =IF('Model Parameters'!$D$7="NORMAL",'Lookup Tables'!AA$55,IF('Model Parameters'!$D$7="DRY",'Lookup Tables'!AA$56,IF('Model Parameters'!$D$7="WET",'Lookup Tables'!AA$57,IF('Model Parameters'!$D$7="OTHER",'Lookup Tables'!AA$58,"Select Scenario")))) -> 0 | AB60: =IF('Model Parameters'!$D$7="NORMAL",'Lookup Tables'!AB$55,IF('Model Parameters'!$D$7="DRY",'Lookup Tables'!AB$56,IF('Model Parameters'!$D$7="WET",'Lookup Tables'!AB$57,IF('Model Parameters'!$D$7="OTHER",'Lookup Tables'!AB$58,"Select Scenario")))) -> 0 | AC60: =IF('Model Parameters'!$D$7="NORMAL",'Lookup Tables'!AC$55,IF('Model Parameters'!$D$7="DRY",'Lookup Tables'!AC$56,IF('Model Parameters'!$D$7="WET",'Lookup Tables'!AC$57,IF('Model Parameters'!$D$7="OTHER",'Lookup Tables'!AC$58,"Select Scenario")))) -> 0 | AD60: =IF('Model Parameters'!$D$7="NORMAL",'Lookup Tables'!AD$55,IF('Model Parameters'!$D$7="DRY",'Lookup Tables'!AD$56,IF('Model Parameters'!$D$7="WET",'Lookup Tables'!AD$57,IF('Model Parameters'!$D$7="OTHER",'Lookup Tables'!AD$58,"Select Scenario")))) -> 0.3179166667
B61: DRY | C61: ='Input Data'!D51 -> 0 | D61: ='Input Data'!E51 -> 0 | E61: ='Input Data'!F51 -> 0 | F61: ='Input Data'!G51 -> 0 | G61: ='Input Data'!H51 -> 0 | H61: ='Input Data'!I51 -> 0 | I61: ='Input Data'!J51 -> 0 | J61: ='Input Data'!K51 -> 0 | K61: ='Input Data'!L51 -> 0 | L61: ='Input Data'!M51 -> 0 | M61: ='Input Data'!N51 -> 0 | N61: ='Input Data'!O51 -> 0 | O61: ='Input Data'!P51 -> 0
B62: WET | C62: ='Input Data'!D52 -> 0 | D62: ='Input Data'!E52 -> 0 | E62: ='Input Data'!F52 -> 0 | F62: ='Input Data'!G52 -> 0 | G62: ='Input Data'!H52 -> 0 | H62: ='Input Data'!I52 -> 0 | I62: ='Input Data'!J52 -> 0 | J62: ='Input Data'!K52 -> 0 | K62: ='Input Data'!L52 -> 0 | L62: ='Input Data'!M52 -> 0 | M62: ='Input Data'!N52 -> 0 | N62: ='Input Data'!O52 -> 0 | O62: ='Input Data'!P52 -> 0 | Q62: Total Licensed Water Demand Data (m3/s) | R62: JAN | S62: FEB | T62: MAR | U62: APR | V62: MAY | W62: JUN | X62: JUL | Y62: AUG | Z62: SEP | AA62: OCT | AB62: NOV | AC62: DEC | AD62: ANNUAL MEAN
B63: OTHER | C63: ='Input Data'!D53 -> 0 | D63: ='Input Data'!E53 -> 0 | E63: ='Input Data'!F53 -> 0 | F63: ='Input Data'!G53 -> 0 | G63: ='Input Data'!H53 -> 0 | H63: ='Input Data'!I53 -> 0 | I63: ='Input Data'!J53 -> 0 | J63: ='Input Data'!K53 -> 0 | K63: ='Input Data'!L53 -> 0 | L63: ='Input Data'!M53 -> 0 | M63: ='Input Data'!N53 -> 0 | N63: ='Input Data'!O53 -> 0 | O63: ='Input Data'!P53 -> 0 | Q63: Annual Water Use | R63: ='Input Data'!T48 -> 0.608 | S63: ='Input Data'!U48 -> 0.572 | T63: ='Input Data'!V48 -> 0.568 | U63: ='Input Data'!W48 -> 0.726 | V63: ='Input Data'!X48 -> 1.096 | W63: ='Input Data'!Y48 -> 1.185 | X63: ='Input Data'!Z48 -> 1.685 | Y63: ='Input Data'!AA48 -> 1.616 | Z63: ='Input Data'!AB48 -> 1.066 | AA63: ='Input Data'!AC48 -> 0.671 | AB63: ='Input Data'!AD48 -> 0.532 | AC63: ='Input Data'!AE48 -> 0.541 | AD63: ='Input Data'!AF48 -> 0.9055
Q64: Seasonal Water Use | R64: ='Input Data'!T49 -> 0 | S64: ='Input Data'!U49 -> 0 | T64: ='Input Data'!V49 -> 0 | U64: ='Input Data'!W49 -> 0.082 | V64: ='Input Data'!X49 -> 0.896 | W64: ='Input Data'!Y49 -> 2.82 | X64: ='Input Data'!Z49 -> 3.889 | Y64: ='Input Data'!AA49 -> 3.553 | Z64: ='Input Data'!AB49 -> 2.139 | AA64: ='Input Data'!AC49 -> 0 | AB64: ='Input Data'!AD49 -> 0 | AC64: ='Input Data'!AE49 -> 0 | AD64: ='Input Data'!AF49 -> 1.114916667
B65: Mean Groundwater Level
B66: NORMAL | C66: ='Input Data'!D56 -> 2.688 | D66: ='Input Data'!E56 -> 2.586 | E66: ='Input Data'!F56 -> 2.702 | F66: ='Input Data'!G56 -> 2.644 | G66: ='Input Data'!H56 -> 2.467 | H66: ='Input Data'!I56 -> 1.97 | I66: ='Input Data'!J56 -> 2.055 | J66: ='Input Data'!K56 -> 2.307 | K66: ='Input Data'!L56 -> 2.735 | L66: ='Input Data'!M56 -> 2.883 | M66: ='Input Data'!N56 -> 2.868 | N66: ='Input Data'!O56 -> 2.686 | O66: ='Input Data'!P56 -> 2.688 | Q66: Result ot use for model run | R66: =SUM(R63:R64) -> 0.608 | S66: =SUM(S63:S64) -> 0.572 | T66: 0.568 | U66: 0.808 | V66: 1.992 | W66: 4.005 | X66: 5.574 | Y66: 5.169 | Z66: 3.205 | AA66: 0.671 | AB66: 0.532 | AC66: 0.541 | AD66: 2.020416667
B67: DRY | C67: ='Input Data'!D57 -> 2.875 | D67: ='Input Data'!E57 -> 2.975 | E67: ='Input Data'!F57 -> 3.025 | F67: ='Input Data'!G57 -> 2.965 | G67: ='Input Data'!H57 -> 2.795 | H67: ='Input Data'!I57 -> 2.275 | I67: ='Input Data'!J57 -> 2.505 | J67: ='Input Data'!K57 -> 2.865 | K67: ='Input Data'!L57 -> 3.195 | L67: ='Input Data'!M57 -> 3.025 | M67: ='Input Data'!N57 -> 3.055 | N67: ='Input Data'!O57 -> 3.01 | O67: ='Input Data'!P57 -> 3.005 | AF67: `
B68: WET | C68: ='Input Data'!D58 -> 2.015 | D68: ='Input Data'!E58 -> 1.9425 | E68: ='Input Data'!F58 -> 1.9475 | F68: ='Input Data'!G58 -> 2.07 | G68: ='Input Data'!H58 -> 2.1175 | H68: ='Input Data'!I58 -> 1.22 | I68: ='Input Data'!J58 -> 1.17 | J68: ='Input Data'!K58 -> 1.4475 | K68: ='Input Data'!L58 -> 2.26 | L68: ='Input Data'!M58 -> 2.565 | M68: ='Input Data'!N58 -> 2.615 | N68: ='Input Data'!O58 -> 2.62 | O68: ='Input Data'!P58 -> 2.635 | Q68: Future Surface Water Demand Data (m3/month) | R68: JAN | S68: FEB | T68: MAR | U68: APR | V68: MAY | W68: JUN | X68: JUL | Y68: AUG | Z68: SEP | AA68: OCT | AB68: NOV | AC68: DEC
B69: OTHER | C69: ='Input Data'!D59 -> 0 | D69: ='Input Data'!E59 -> 0 | E69: ='Input Data'!F59 -> 0 | F69: ='Input Data'!G59 -> 0 | G69: ='Input Data'!H59 -> 0 | H69: ='Input Data'!I59 -> 0 | I69: ='Input Data'!J59 -> 0 | J69: ='Input Data'!K59 -> 0 | K69: ='Input Data'!L59 -> 0 | L69: ='Input Data'!M59 -> 0 | M69: ='Input Data'!N59 -> 0 | N69: ='Input Data'!O59 -> 0 | O69: ='Input Data'!P59 -> 0 | Q69: Annual | R69: =IF('Model Output'!$F$24="ANNUAL", 'Model Output'!$D$24*'Lookup Tables'!R3, 0) -> 0 | S69: =IF('Model Output'!$F$24="ANNUAL", 'Model Output'!$D$24*'Lookup Tables'!S3, 0) -> 0 | T69: =IF('Model Output'!$F$24="ANNUAL", 'Model Output'!$D$24*'Lookup Tables'!T3, 0) -> 0 | U69: =IF('Model Output'!$F$24="ANNUAL", 'Model Output'!$D$24*'Lookup Tables'!U3, 0) -> 0 | V69: =IF('Model Output'!$F$24="ANNUAL", 'Model Output'!$D$24*'Lookup Tables'!V3, 0) -> 0 | W69: =IF('Model Output'!$F$24="ANNUAL", 'Model Output'!$D$24*'Lookup Tables'!W3, 0) -> 0 | X69: =IF('Model Output'!$F$24="ANNUAL", 'Model Output'!$D$24*'Lookup Tables'!X3, 0) -> 0 | Y69: =IF('Model Output'!$F$24="ANNUAL", 'Model Output'!$D$24*'Lookup Tables'!Y3, 0) -> 0 | Z69: =IF('Model Output'!$F$24="ANNUAL", 'Model Output'!$D$24*'Lookup Tables'!Z3, 0) -> 0 | AA69: =IF('Model Output'!$F$24="ANNUAL", 'Model Output'!$D$24*'Lookup Tables'!AA3, 0) -> 0 | AB69: =IF('Model Output'!$F$24="ANNUAL", 'Model Output'!$D$24*'Lookup Tables'!AB3, 0) -> 0 | AC69: =IF('Model Output'!$F$24="ANNUAL", 'Model Output'!$D$24*'Lookup Tables'!AC3, 0) -> 0
Q70: Seasonal | R70: =IF('Model Output'!$F$24="SEASONAL", 'Model Output'!$D$24*'Lookup Tables'!R4, 0) -> 0 | S70: =IF('Model Output'!$F$24="SEASONAL", 'Model Output'!$D$24*'Lookup Tables'!S4, 0) -> 0 | T70: =IF('Model Output'!$F$24="SEASONAL", 'Model Output'!$D$24*'Lookup Tables'!T4, 0) -> 0 | U70: =IF('Model Output'!$F$24="SEASONAL", 'Model Output'!$D$24*'Lookup Tables'!U4, 0) -> 0 | V70: =IF('Model Output'!$F$24="SEASONAL", 'Model Output'!$D$24*'Lookup Tables'!V4, 0) -> 0 | W70: =IF('Model Output'!$F$24="SEASONAL", 'Model Output'!$D$24*'Lookup Tables'!W4, 0) -> 0 | X70: =IF('Model Output'!$F$24="SEASONAL", 'Model Output'!$D$24*'Lookup Tables'!X4, 0) -> 0 | Y70: =IF('Model Output'!$F$24="SEASONAL", 'Model Output'!$D$24*'Lookup Tables'!Y4, 0) -> 0 | Z70: =IF('Model Output'!$F$24="SEASONAL", 'Model Output'!$D$24*'Lookup Tables'!Z4, 0) -> 0 | AA70: =IF('Model Output'!$F$24="SEASONAL", 'Model Output'!$D$24*'Lookup Tables'!AA4, 0) -> 0 | AB70: =IF('Model Output'!$F$24="SEASONAL", 'Model Output'!$D$24*'Lookup Tables'!AB4, 0) -> 0 | AC70: =IF('Model Output'!$F$24="SEASONAL", 'Model Output'!$D$24*'Lookup Tables'!AC4, 0) -> 0
B71: Result to use for model run | C71: =IF('Model Parameters'!$D$7="NORMAL",'Lookup Tables'!C$66,IF('Model Parameters'!$D$7="DRY",'Lookup Tables'!C$67,IF('Model Parameters'!$D$7="WET",'Lookup Tables'!C$68,IF('Model Parameters'!$D$7="OTHER",'Lookup Tables'!C$69,"Select Scenario")))) -> 2.688 | D71: =IF('Model Parameters'!$D$7="NORMAL",'Lookup Tables'!D$66,IF('Model Parameters'!$D$7="DRY",'Lookup Tables'!D$67,IF('Model Parameters'!$D$7="WET",'Lookup Tables'!D$68,IF('Model Parameters'!$D$7="OTHER",'Lookup Tables'!D$69,"Select Scenario")))) -> 2.586 | E71: =IF('Model Parameters'!$D$7="NORMAL",'Lookup Tables'!E$66,IF('Model Parameters'!$D$7="DRY",'Lookup Tables'!E$67,IF('Model Parameters'!$D$7="WET",'Lookup Tables'!E$68,IF('Model Parameters'!$D$7="OTHER",'Lookup Tables'!E$69,"Select Scenario")))) -> 2.702 | F71: =IF('Model Parameters'!$D$7="NORMAL",'Lookup Tables'!F$66,IF('Model Parameters'!$D$7="DRY",'Lookup Tables'!F$67,IF('Model Parameters'!$D$7="WET",'Lookup Tables'!F$68,IF('Model Parameters'!$D$7="OTHER",'Lookup Tables'!F$69,"Select Scenario")))) -> 2.644 | G71: =IF('Model Parameters'!$D$7="NORMAL",'Lookup Tables'!G$66,IF('Model Parameters'!$D$7="DRY",'Lookup Tables'!G$67,IF('Model Parameters'!$D$7="WET",'Lookup Tables'!G$68,IF('Model Parameters'!$D$7="OTHER",'Lookup Tables'!G$69,"Select Scenario")))) -> 2.467 | H71: =IF('Model Parameters'!$D$7="NORMAL",'Lookup Tables'!H$66,IF('Model Parameters'!$D$7="DRY",'Lookup Tables'!H$67,IF('Model Parameters'!$D$7="WET",'Lookup Tables'!H$68,IF('Model Parameters'!$D$7="OTHER",'Lookup Tables'!H$69,"Select Scenario")))) -> 1.97 | I71: =IF('Model Parameters'!$D$7="NORMAL",'Lookup Tables'!I$66,IF('Model Parameters'!$D$7="DRY",'Lookup Tables'!I$67,IF('Model Parameters'!$D$7="WET",'Lookup Tables'!I$68,IF('Model Parameters'!$D$7="OTHER",'Lookup Tables'!I$69,"Select Scenario")))) -> 2.055 | J71: =IF('Model Parameters'!$D$7="NORMAL",'Lookup Tables'!J$66,IF('Model Parameters'!$D$7="DRY",'Lookup Tables'!J$67,IF('Model Parameters'!$D$7="WET",'Lookup Tables'!J$68,IF('Model Parameters'!$D$7="OTHER",'Lookup Tables'!J$69,"Select Scenario")))) -> 2.307 | K71: =IF('Model Parameters'!$D$7="NORMAL",'Lookup Tables'!K$66,IF('Model Parameters'!$D$7="DRY",'Lookup Tables'!K$67,IF('Model Parameters'!$D$7="WET",'Lookup Tables'!K$68,IF('Model Parameters'!$D$7="OTHER",'Lookup Tables'!K$69,"Select Scenario")))) -> 2.735 | L71: =IF('Model Parameters'!$D$7="NORMAL",'Lookup Tables'!L$66,IF('Model Parameters'!$D$7="DRY",'Lookup Tables'!L$67,IF('Model Parameters'!$D$7="WET",'Lookup Tables'!L$68,IF('Model Parameters'!$D$7="OTHER",'Lookup Tables'!L$69,"Select Scenario")))) -> 2.883 | M71: =IF('Model Parameters'!$D$7="NORMAL",'Lookup Tables'!M$66,IF('Model Parameters'!$D$7="DRY",'Lookup Tables'!M$67,IF('Model Parameters'!$D$7="WET",'Lookup Tables'!M$68,IF('Model Parameters'!$D$7="OTHER",'Lookup Tables'!M$69,"Select Scenario")))) -> 2.868 | N71: =IF('Model Parameters'!$D$7="NORMAL",'Lookup Tables'!N$66,IF('Model Parameters'!$D$7="DRY",'Lookup Tables'!N$67,IF('Model Parameters'!$D$7="WET",'Lookup Tables'!N$68,IF('Model Parameters'!$D$7="OTHER",'Lookup Tables'!N$69,"Select Scenario")))) -> 2.686 | O71: =IF('Model Parameters'!$D$7="NORMAL",'Lookup Tables'!O$66,IF('Model Parameters'!$D$7="DRY",'Lookup Tables'!O$67,IF('Model Parameters'!$D$7="WET",'Lookup Tables'!O$68,IF('Model Parameters'!$D$7="OTHER",'Lookup Tables'!O$69,"Select Scenario")))) -> 2.688 | Q71: Other | R71: =IF('Model Output'!$F$24="OTHER", 'Model Output'!$D$24*'Lookup Tables'!R6, 0) -> 0 | S71: =IF('Model Output'!$F$24="OTHER", 'Model Output'!$D$24*'Lookup Tables'!S6, 0) -> 0 | T71: =IF('Model Output'!$F$24="OTHER", 'Model Output'!$D$24*'Lookup Tables'!T6, 0) -> 0 | U71: =IF('Model Output'!$F$24="OTHER", 'Model Output'!$D$24*'Lookup Tables'!U6, 0) -> 0 | V71: =IF('Model Output'!$F$24="OTHER", 'Model Output'!$D$24*'Lookup Tables'!V6, 0) -> 0 | W71: =IF('Model Output'!$F$24="OTHER", 'Model Output'!$D$24*'Lookup Tables'!W6, 0) -> 0 | X71: =IF('Model Output'!$F$24="OTHER", 'Model Output'!$D$24*'Lookup Tables'!X6, 0) -> 0 | Y71: =IF('Model Output'!$F$24="OTHER", 'Model Output'!$D$24*'Lookup Tables'!Y6, 0) -> 0 | Z71: =IF('Model Output'!$F$24="OTHER", 'Model Output'!$D$24*'Lookup Tables'!Z6, 0) -> 0 | AA71: =IF('Model Output'!$F$24="OTHER", 'Model Output'!$D$24*'Lookup Tables'!AA6, 0) -> 0 | AB71: =IF('Model Output'!$F$24="OTHER", 'Model Output'!$D$24*'Lookup Tables'!AB6, 0) -> 0 | AC71: =IF('Model Output'!$F$24="OTHER", 'Model Output'!$D$24*'Lookup Tables'!AC6, 0) -> 0
B73: SCENARIO/OPTION SELECTIONS | Q73: Result ot use for model run | R73: =SUM(R69:R71) -> 0 | S73: =SUM(S69:S71) -> 0 | T73: 0 | U73: 0 | V73: 0 | W73: 0 | X73: 0 | Y73: 0 | Z73: 0 | AA73: 0 | AB73: 0 | AC73: 0
B75: MBR Method | C75: Model Calibration Mode | F75: Surface Water Use Scenario | J75: Recharge/Irrigation Return Option | Q75: Future GroundWater Demand Data (m3/month) | R75: JAN | S75: FEB | T75: MAR | U75: APR | V75: MAY | W75: JUN | X75: JUL | Y75: AUG | Z75: SEP | AA75: OCT | AB75: NOV | AC75: DEC
B76: Neilson-Welch | C76: ON = 1; OFF = 2 | D76: 2 | F76: Estimated Actual Demand | J76: Monthly Distribution | Q76: Annual | R76: =IF('Model Output'!$F$25="ANNUAL", 'Model Output'!$D$25*'Lookup Tables'!R3, 0) -> 0 | S76: =IF('Model Output'!$F$25="ANNUAL", 'Model Output'!$D$25*'Lookup Tables'!S3, 0) -> 0 | T76: =IF('Model Output'!$F$25="ANNUAL", 'Model Output'!$D$25*'Lookup Tables'!T3, 0) -> 0 | U76: =IF('Model Output'!$F$25="ANNUAL", 'Model Output'!$D$25*'Lookup Tables'!U3, 0) -> 0 | V76: =IF('Model Output'!$F$25="ANNUAL", 'Model Output'!$D$25*'Lookup Tables'!V3, 0) -> 0 | W76: =IF('Model Output'!$F$25="ANNUAL", 'Model Output'!$D$25*'Lookup Tables'!W3, 0) -> 0 | X76: =IF('Model Output'!$F$25="ANNUAL", 'Model Output'!$D$25*'Lookup Tables'!X3, 0) -> 0 | Y76: =IF('Model Output'!$F$25="ANNUAL", 'Model Output'!$D$25*'Lookup Tables'!Y3, 0) -> 0 | Z76: =IF('Model Output'!$F$25="ANNUAL", 'Model Output'!$D$25*'Lookup Tables'!Z3, 0) -> 0 | AA76: =IF('Model Output'!$F$25="ANNUAL", 'Model Output'!$D$25*'Lookup Tables'!AA3, 0) -> 0 | AB76: =IF('Model Output'!$F$25="ANNUAL", 'Model Output'!$D$25*'Lookup Tables'!AB3, 0) -> 0 | AC76: =IF('Model Output'!$F$25="ANNUAL", 'Model Output'!$D$25*'Lookup Tables'!AC3, 0) -> 0
B77: Darcy Equation | F77: Total Licensed Demand | J77: Fixed Percentage | Q77: Seasonal | R77: =IF('Model Output'!$F$25="SEASONAL", 'Model Output'!$D$25*'Lookup Tables'!R4, 0) -> 0 | S77: =IF('Model Output'!$F$25="SEASONAL", 'Model Output'!$D$25*'Lookup Tables'!S4, 0) -> 0 | T77: =IF('Model Output'!$F$25="SEASONAL", 'Model Output'!$D$25*'Lookup Tables'!T4, 0) -> 0 | U77: =IF('Model Output'!$F$25="SEASONAL", 'Model Output'!$D$25*'Lookup Tables'!U4, 0) -> 0 | V77: =IF('Model Output'!$F$25="SEASONAL", 'Model Output'!$D$25*'Lookup Tables'!V4, 0) -> 0 | W77: =IF('Model Output'!$F$25="SEASONAL", 'Model Output'!$D$25*'Lookup Tables'!W4, 0) -> 0 | X77: =IF('Model Output'!$F$25="SEASONAL", 'Model Output'!$D$25*'Lookup Tables'!X4, 0) -> 0 | Y77: =IF('Model Output'!$F$25="SEASONAL", 'Model Output'!$D$25*'Lookup Tables'!Y4, 0) -> 0 | Z77: =IF('Model Output'!$F$25="SEASONAL", 'Model Output'!$D$25*'Lookup Tables'!Z4, 0) -> 0 | AA77: =IF('Model Output'!$F$25="SEASONAL", 'Model Output'!$D$25*'Lookup Tables'!AA4, 0) -> 0 | AB77: =IF('Model Output'!$F$25="SEASONAL", 'Model Output'!$D$25*'Lookup Tables'!AB4, 0) -> 0 | AC77: =IF('Model Output'!$F$25="SEASONAL", 'Model Output'!$D$25*'Lookup Tables'!AC4, 0) -> 0
Q78: Other | R78: =IF('Model Output'!$F$25="OTHER", 'Model Output'!$D$25*'Lookup Tables'!R6, 0) -> 0 | S78: =IF('Model Output'!$F$25="OTHER", 'Model Output'!$D$25*'Lookup Tables'!S6, 0) -> 0 | T78: =IF('Model Output'!$F$25="OTHER", 'Model Output'!$D$25*'Lookup Tables'!T6, 0) -> 0 | U78: =IF('Model Output'!$F$25="OTHER", 'Model Output'!$D$25*'Lookup Tables'!U6, 0) -> 0 | V78: =IF('Model Output'!$F$25="OTHER", 'Model Output'!$D$25*'Lookup Tables'!V6, 0) -> 0 | W78: =IF('Model Output'!$F$25="OTHER", 'Model Output'!$D$25*'Lookup Tables'!W6, 0) -> 0 | X78: =IF('Model Output'!$F$25="OTHER", 'Model Output'!$D$25*'Lookup Tables'!X6, 0) -> 0 | Y78: =IF('Model Output'!$F$25="OTHER", 'Model Output'!$D$25*'Lookup Tables'!Y6, 0) -> 0 | Z78: =IF('Model Output'!$F$25="OTHER", 'Model Output'!$D$25*'Lookup Tables'!Z6, 0) -> 0 | AA78: =IF('Model Output'!$F$25="OTHER", 'Model Output'!$D$25*'Lookup Tables'!AA6, 0) -> 0 | AB78: =IF('Model Output'!$F$25="OTHER", 'Model Output'!$D$25*'Lookup Tables'!AB6, 0) -> 0 | AC78: =IF('Model Output'!$F$25="OTHER", 'Model Output'!$D$25*'Lookup Tables'!AC6, 0) -> 0
Q80: Result ot use for model run | R80: =SUM(R76:R78) -> 0 | S80: =SUM(S76:S78) -> 0 | T80: 0 | U80: 0 | V80: 0 | W80: 0 | X80: 0 | Y80: 0 | Z80: 0 | AA80: 0 | AB80: 0 | AC80: 0
B83: SAFETY FACTORS
C85: Absolute Value | D85: JAN | E85: FEB | F85: MAR | G85: APR | H85: MAY | I85: JUN | J85: JUL | K85: AUG | L85: SEP | M85: OCT | N85: NOV | O85: DEC
B86: ΔS - +25% | C86: =AVERAGE(ABS('Water Budget'!D34), ABS('Water Budget'!E34), ABS('Water Budget'!F34), ABS('Water Budget'!G34), ABS('Water Budget'!H34), ABS('Water Budget'!I34), ABS('Water Budget'!J34), ABS('Water Budget'!K34), ABS('Water Budget'!L34), ABS('Water Budget'!M34), ABS('Water Budget'!N34), ABS('Water Budget'!O34)) -> 0.4414324382 | D86: ='Model Output'!D17+('Lookup Tables'!$C$86*0.25) -> 2.907759296 | E86: ='Model Output'!E17+('Lookup Tables'!$C$86*0.25) -> 3.138187643 | F86: ='Model Output'!F17+('Lookup Tables'!$C$86*0.25) -> 3.214186274 | G86: ='Model Output'!G17+('Lookup Tables'!$C$86*0.25) -> 2.512071305 | H86: ='Model Output'!H17+('Lookup Tables'!$C$86*0.25) -> 0.8354337477 | I86: ='Model Output'!I17+('Lookup Tables'!$C$86*0.25) -> 1.215826988 | J86: ='Model Output'!J17+('Lookup Tables'!$C$86*0.25) -> 2.141985368 | K86: ='Model Output'!K17+('Lookup Tables'!$C$86*0.25) -> 2.686760653 | L86: ='Model Output'!L17+('Lookup Tables'!$C$86*0.25) -> 2.953728098 | M86: ='Model Output'!M17+('Lookup Tables'!$C$86*0.25) -> 3.015960063 | N86: ='Model Output'!N17+('Lookup Tables'!$C$86*0.25) -> 2.890158388 | O86: ='Model Output'!O17+('Lookup Tables'!$C$86*0.25) -> 3.086438967
B87: ΔS - -25% | D87: ='Model Output'!D17-('Lookup Tables'!$C$86*0.25) -> 2.687043077 | E87: ='Model Output'!E17-('Lookup Tables'!$C$86*0.25) -> 2.917471424 | F87: ='Model Output'!F17-('Lookup Tables'!$C$86*0.25) -> 2.993470055 | G87: ='Model Output'!G17-('Lookup Tables'!$C$86*0.25) -> 2.291355086 | H87: ='Model Output'!H17-('Lookup Tables'!$C$86*0.25) -> 0.6147175286 | I87: ='Model Output'!I17-('Lookup Tables'!$C$86*0.25) -> 0.9951107693 | J87: ='Model Output'!J17-('Lookup Tables'!$C$86*0.25) -> 1.921269149 | K87: ='Model Output'!K17-('Lookup Tables'!$C$86*0.25) -> 2.466044433 | L87: ='Model Output'!L17-('Lookup Tables'!$C$86*0.25) -> 2.733011879 | M87: ='Model Output'!M17-('Lookup Tables'!$C$86*0.25) -> 2.795243843 | N87: ='Model Output'!N17-('Lookup Tables'!$C$86*0.25) -> 2.669442169 | O87: ='Model Output'!O17-('Lookup Tables'!$C$86*0.25) -> 2.865722748
B89: TOTAL OFFSTREAM LICENCES (m3/s) | C89: JAN | D89: FEB | E89: MAR | F89: APR | G89: MAY | H89: JUN | I89: JUL | J89: AUG | K89: SEP | L89: OCT | M89: NOV | N89: DEC
B90: Total Offstream Licence (m3/s) | C90: 1.26 | D90: 1.22 | E90: 1.45 | F90: 1.99 | G90: 3.49 | H90: 6.54 | I90: 9.32 | J90: 8.52 | K90: 5.24 | L90: 1.7 | M90: 1.16 | N90: 1.18
B92: Similkameen outflow + 40% Total Offstream Licence | C92: =R24+('Lookup Tables'!C90*0.4) -> 19.604 | D92: =S24+('Lookup Tables'!D90*0.4) -> 18.188 | E92: =T24+('Lookup Tables'!E90*0.4) -> 23.48 | F92: =U24+('Lookup Tables'!F90*0.4) -> 59.396 | G92: =V24+('Lookup Tables'!G90*0.4) -> 184.396 | H92: =W24+('Lookup Tables'!H90*0.4) -> 188.616 | I92: =X24+('Lookup Tables'!I90*0.4) -> 71.428 | J92: =Y24+('Lookup Tables'!J90*0.4) -> 25.008 | K92: =Z24+('Lookup Tables'!K90*0.4) -> 15.496 | L92: =AA24+('Lookup Tables'!L90*0.4) -> 16.68 | M92: =AB24+('Lookup Tables'!M90*0.4) -> 28.064 | N92: =AC24+('Lookup Tables'!N90*0.4) -> 20.572
B93: Similkameen outflow - 60% Total Offstream Licence | C93: =(R24-('Lookup Tables'!C90*0.6)) - (SUM(R73,R80)/(60*60*24*C3)) -> 18.344 | D93: =(S24-('Lookup Tables'!D90*0.6)) - (SUM(S73,S80)/(60*60*24*D3)) -> 16.968 | E93: =(T24-('Lookup Tables'!E90*0.6)) - (SUM(T73,T80)/(60*60*24*E3)) -> 22.03 | F93: =(U24-('Lookup Tables'!F90*0.6)) - (SUM(U73,U80)/(60*60*24*F3)) -> 57.406 | G93: =(V24-('Lookup Tables'!G90*0.6)) - (SUM(V73,V80)/(60*60*24*G3)) -> 180.906 | H93: =(W24-('Lookup Tables'!H90*0.6)) - (SUM(W73,W80)/(60*60*24*H3)) -> 182.076 | I93: =(X24-('Lookup Tables'!I90*0.6)) - (SUM(X73,X80)/(60*60*24*I3)) -> 62.108 | J93: =(Y24-('Lookup Tables'!J90*0.6)) - (SUM(Y73,Y80)/(60*60*24*J3)) -> 16.488 | K93: =(Z24-('Lookup Tables'!K90*0.6)) - (SUM(Z73,Z80)/(60*60*24*K3)) -> 10.256 | L93: =(AA24-('Lookup Tables'!L90*0.6)) - (SUM(AA73,AA80)/(60*60*24*L3)) -> 14.98 | M93: =(AB24-('Lookup Tables'!M90*0.6)) - (SUM(AB73,AB80)/(60*60*24*M3)) -> 26.904 | N93: =(AC24-('Lookup Tables'!N90*0.6)) - (SUM(AC73,AC80)/(60*60*24*N3)) -> 19.392
B95: TOTAL LICENSED USE IN AQUIFER #259 | C95: JAN | D95: FEB | E95: MAR | F95: APR | G95: MAY | H95: JUN | I95: JUL | J95: AUG | K95: SEP | L95: OCT | M95: NOV | N95: DEC
B96: Total Licenced Use in Aquifer #259 (m3) | C96: =R66*(60*60*24*C3) -> 1628467.2 | D96: 1383782.4 | E96: 1521331.2 | F96: 2094336 | G96: 5335372.8 | H96: 10380960 | I96: 14929401.6 | J96: 13844649.6 | K96: 8307360 | L96: 1797206.4 | M96: 1378944 | N96: 1449014.4
B98: Equivalent GW Level | C98: =IF($D$76=2, (C96/('Model Parameters'!$D$13*'Model Parameters'!$D$14)), IF($D$76=1, C96/('Model Parameters'!$D$13*'Model Sensitivity'!$M$17))) -> 0.05192211878 | D98: =IF($D$76=2, (D96/('Model Parameters'!$D$13*'Model Parameters'!$D$14)), IF($D$76=1, D96/('Model Parameters'!$D$13*'Model Sensitivity'!$M$17))) -> 0.04412057801 | E98: =IF($D$76=2, (E96/('Model Parameters'!$D$13*'Model Parameters'!$D$14)), IF($D$76=1, E96/('Model Parameters'!$D$13*'Model Sensitivity'!$M$17))) -> 0.04850618991 | F98: =IF($D$76=2, (F96/('Model Parameters'!$D$13*'Model Parameters'!$D$14)), IF($D$76=1, F96/('Model Parameters'!$D$13*'Model Sensitivity'!$M$17))) -> 0.06677589978 | G98: =IF($D$76=2, (G96/('Model Parameters'!$D$13*'Model Parameters'!$D$14)), IF($D$76=1, G96/('Model Parameters'!$D$13*'Model Sensitivity'!$M$17))) -> 0.1701132576 | H98: =IF($D$76=2, (H96/('Model Parameters'!$D$13*'Model Parameters'!$D$14)), IF($D$76=1, H96/('Model Parameters'!$D$13*'Model Sensitivity'!$M$17))) -> 0.3309869785 | I98: =IF($D$76=2, (I96/('Model Parameters'!$D$13*'Model Parameters'!$D$14)), IF($D$76=1, I96/('Model Parameters'!$D$13*'Model Sensitivity'!$M$17))) -> 0.4760096876 | J98: =IF($D$76=2, (J96/('Model Parameters'!$D$13*'Model Parameters'!$D$14)), IF($D$76=1, J96/('Model Parameters'!$D$13*'Model Sensitivity'!$M$17))) -> 0.4414234078 | K98: =IF($D$76=2, (K96/('Model Parameters'!$D$13*'Model Parameters'!$D$14)), IF($D$76=1, K96/('Model Parameters'!$D$13*'Model Sensitivity'!$M$17))) -> 0.2648722262 | L98: =IF($D$76=2, (L96/('Model Parameters'!$D$13*'Model Parameters'!$D$14)), IF($D$76=1, L96/('Model Parameters'!$D$13*'Model Sensitivity'!$M$17))) -> 0.05730220674 | M98: =IF($D$76=2, (M96/('Model Parameters'!$D$13*'Model Parameters'!$D$14)), IF($D$76=1, M96/('Model Parameters'!$D$13*'Model Sensitivity'!$M$17))) -> 0.04396631025 | N98: =IF($D$76=2, (N96/('Model Parameters'!$D$13*'Model Parameters'!$D$14)), IF($D$76=1, N96/('Model Parameters'!$D$13*'Model Sensitivity'!$M$17))) -> 0.04620043792
B100: GW Level with total licenced extraction | C100: =('Model Output'!D9+'Lookup Tables'!C98) + ('Model Output'!D17-'Model Output'!D9) -> 2.849323305 | D100: =('Model Output'!E9+'Lookup Tables'!D98) + ('Model Output'!E17-'Model Output'!E9) -> 3.071950111 | E100: =('Model Output'!F9+'Lookup Tables'!E98) + ('Model Output'!F17-'Model Output'!F9) -> 3.152334354 | F100: =('Model Output'!G9+'Lookup Tables'!F98) + ('Model Output'!G17-'Model Output'!G9) -> 2.468489095 | G100: =('Model Output'!H9+'Lookup Tables'!G98) + ('Model Output'!H17-'Model Output'!H9) -> 0.8951888957 | H100: =('Model Output'!I9+'Lookup Tables'!H98) + ('Model Output'!I17-'Model Output'!I9) -> 1.436455857 | I100: =('Model Output'!J9+'Lookup Tables'!I98) + ('Model Output'!J17-'Model Output'!J9) -> 2.507636946 | J100: =('Model Output'!K9+'Lookup Tables'!J98) + ('Model Output'!K17-'Model Output'!K9) -> 3.017825951 | K100: =('Model Output'!L9+'Lookup Tables'!K98) + ('Model Output'!L17-'Model Output'!L9) -> 3.108242214 | L100: =('Model Output'!M9+'Lookup Tables'!L98) + ('Model Output'!M17-'Model Output'!M9) -> 2.96290416 | M100: =('Model Output'!N9+'Lookup Tables'!M98) + ('Model Output'!N17-'Model Output'!N9) -> 2.823766589 | N100: =('Model Output'!O9+'Lookup Tables'!N98) + ('Model Output'!O17-'Model Output'!O9) -> 3.022281295
